Workbook

Sheet Notes
A1: TruncatedBandPass.xlsm; Traders Tip spreadsheet created for the July 2020 Issue
A2: Coded beginning 2020-May-10 by Ronald McAllister (rpmac_xltt@sprynet.com)
A4: This Workbook demonstrates an EXCEL version of the ideas presented
A5: by John Ehlers in an article titled "Truncated Indicators"
A6: which originally appeared in the July 2020 issue of
A7: "Technical Analysis of Stocks and Commodities" magazine.
A9: * * * * * * * * * * * * * * * *
A11: Development Notes:
A12: User Defined Function: BPTrunc - An implementation of MR. Ehlers Truncated Bandpass Filter
A13: In the article, MR. Ehlers mentions "mathematical slight of hand tricks".
A14: I was not able to come up with any mathematical jujitsu that would keep an implementation of the Truncated Bandpass filter entirely with in native EXCEL cell formula capabilities.
A15: The problem is due the Bandpass filter formulation requiring two of its previous output values as a feed back input.
A16: Between the truncated version needing the two oldest feed back values to be zero, and complexity of the Bandpass filter formula itself, and the need for a full recalculation for each bar, I was stymied.
A17: (Perhaps a better mathematician than I....)
A19: Instead, I have resorted to VBA to create a User Defined Function (UDF) - "BPTrunc" - that can be used directly in complex cell formulas.
A20: For this spreadsheet, I have chosen to use BPTrunc in a column by itself for charting purposes.
A22: BPTrunc is portable.
A23: For those comfortable with VBA and who might wish to try the Truncated Bandpass filter in other spreadsheets that have used the Bandpass filter,
A24: your best approach would be to export a copy of module "Truncated Bandpass" and then import that copy into your target spreadsheet'
A26: For this article I replicated Mr. Ehlers Figure 1 - Bandpass and Truncated Bandpass as follows:
A27: Data for SPY, dates 11/6/2018 thru 01/14/2020, Period 20, Bandwidth 0.1, Trunc Length 10,
A28: and chart control button "Bandpass with Truncated Bandpass"
A30: Next, I decided to take a look at the impact a Truncated Bandpass filter might have on an indicator that uses the Bandpass Filter.
A32: A quick look thru my T-Tip spreadsheet archives landed on Mr. Ehlers August 2019 article "A Peek Into The Future" which presented the Voss Predictive Filter.
A33: The coding for the Voss Predictive filter is three simple columns of cell formulas which I brought forward to this spreadsheet.
A35: Replicating Voss Predictor Chart from the August 2019 article:
A36: Data for SPY, dates 01/03/2018 thru 03/08/2019, Period 20, Bandwidth 0.25, Trunc Length 10,
A37: and chart control button "Bandpass with Voss Predictor"
A39: One may simply cycle thru the Bandpass Chart Control buttons to see the various native and truncated comparisons.
A41: New with this version of my T-Tips template: VBA to implement a "Perpetual" U.S. Markets Closed Holiday Calendar.
A43: Why we need one: The Yahoo Finance recently has begun having occasional filtration problems where bars for U.S. Market Closed Holidays
A44: make their way onto the Historical Data web page and into the Historical Data download.
A46: While testing this May 2020 spreadsheet with different symbols, I found that I sometimes had bars with the text "null" in the price fields.
A47: My code always translates the "null" text price values to zeros.
A48: The resulting zeros cause real problems with indicator computations and the amount of blank space below price candles on the price chart.
A50: "null" price bars can be valid for very lightly traded penny sheet symbols which may not trade every day the markets are open.
A51: But is definitely not normal for symbols on the big boards.
A53: A closer look determined that these "bars" were for holiday dates when the US markets are normally closed.
A54: I found it interesting that some times the next download for the same symbol would not contain any of these "holiday" bars. Weird!
A56: My approach here was to write code to determine if the DATE on a null price values bar falls on one of the 9 market closed U.S. Holidays.
A57: If the bar date corresponds to one of these market closed holidays, I drop the bar before it reaches the InputPriceData tab.
A58: If the date is not a holiday, I let the bar through with the resulting zero values.
A60: No messy tables to update over the years as there are good solid rules that can be used in VBA or any other programming language to determine
A61: the dates for U.S. Market Closed Holidays for any given calendar year.
A63: This workbook contains and uses VBA macros and may take advantage of user defined VBA Class structures.
A64: Input Data:
A65: The data in this workbook is sorted date-descending (most recent date at the top). All cell formulas and
A66: VBA routines are built assuming this date sequence.
A68: ERROR 9 (already fixed in this spreadsheet)
A69: On or about Jan 29, 2020 Yahoo Finance changed the format of the split factor expression used their historical data downloads.
A70: The Split expression went from using "/" as in "New Share Number/Old Share Number",
A71: to using ":" as in "New Share Number:Old Share Number".
A72: This caused the then current version of my VBA code to fail with a "Runtime Error '9': subscript out of range".
A74: Fix for this ERROR 9
A75: For T-Tip spreadsheets from September 2018 up to present:
A76: Selecting the Debug option takes one into the VBA at the code line which causes the failure:
A77: CellArray(C_A_RowNdx, C_A_ColNdx + 1) = SplitFactors(1)
A78: Two lines above the failing VBA line is a line that reads:
A79: SplitFactors = Split(CsvColumns(CsvColNdx), "/")
A80: Change the / to a :
A81: The corrected line should now read
A82: SplitFactors = Split(CsvColumns(CsvColNdx), ":")
A84: If you are fixing several spreadsheets and do not want to use the failure to find the fix location,
A85: you can use VBA’s FIND dialog (Ctrl F) to look for the substring
A86: SplitFactors =
A87: Do include one space and the equal sign in your FIND string
A88: Select the "Current Project" option
A89: There should only be one instance.
A91: T-Tip spreadsheets prior to the September 2018 spreadsheet do not hard fail.
A93: They just get weird results in the split columns of the Input Price Data tab (soft fail).
A94: These older spreadsheets used different data retrieval and formatting logic.
A96: To fix these older spreadsheets:
A97: In the VBA editor, use find (CTRL-F).
A98: Select the "Current Project" option, and search for the following:
A99: OtherChar:="/"
A100: You are looking for a hit in a line reading:
A101: Other:=True, OtherChar:="/", _
A102: This line is part of a multiline block of code starting with a line that reads:
A103: SplitRange.Offset(0, 1).Resize(SpRows, 1).TextToColumns
A104: Change the / to a : so that the line reads
A105: Other:=True, OtherChar:=":", _
A108: 2019-04-04 Finally came up with a mechanism to align the left location and overall length of the cursor scroll bar so that the left most and right most
A109: scroll bar thumb positions visually align reasonably well with the left and right ends of the price chart horizontal axis.
A110: Makes it a little easier to visually align the Thumb and thus the cursor with points of interest on the charts.
A112: Older:
B113: My sincere apologies to our Macintosh based readers: Neither MSXML nor WinHttpRequest are supported in your environment. So as it stands this version of the spreadsheet will not work for you.
B114: See "Why this approach does not work for Macintosh" below.
B115: I am investigating cURL as a non-Querytable based approach for the Macintosh environment.
A117: The new Yahoo Finance history download interface has changed rather radically. The biggest hurdle being a pseudo-security requirement of adding a
B118: crumb character string to any URL requesting any type of history download. That crumb must match up (by way of some sort of hash algorithm) with
B119: the Yahoo Finance cookie that must also be sent with any request to the new Yahoo History down load interface.
B121: A crumb value is returned, buried in the HTML for any of what I call the "entry level" Yahoo Finance web pages (no crumb security requirement for entry level pages).
B122: A crumb may come with other Yahoo Finance pages. A crumb may even accompany some of the secured pages as well. I have not checked.
B124: Entry level pages are the top level pages of the various Yahoo Finance dialogs and include: Quote Lookup, Stock Summary Quote, and any of the pages
B125: with links in the horizontal row with the "Summary" link on the quote summary page such as Options, Historical Data, and the rest.
B127: To date I have found no way to get at this crumb value using any native EXCEL capabilities.
B129: So this crumb requirement effectively shuts out any solution that attempts to exclusively use built-in facilities of EXCEL, which is to say a purely Querytables solution.
B131: The approach built for this Traders Tip spreadsheet uses WINHTTP calls to Load the InputPriceData worksheet.
B133: First I call to get the HTML text for the Yahoo Summary Quote page using the requested symbol. From this HTML text I extract the full company name,
B134: the market it trades, the market status and time stamp, and finally the associated crumb string. There is a bunch of other useful bits buried in this HTML
B135: text that do not necessarily appear on the web page your browser presents. Perhaps some day I will go after and build a worksheet with these other bits.
B137: Next I add the freshly extracted crumb string to the URLs I use in three separate WINHTTP calls to retrieve Price history, Split history, and Dividend history respectively.
B139: From there VBA code proceeds as in the past to fill in the cell formulas and formatting that make the "prettied up" InputPriceData sheet.
A141: Why this approach works for Windows:
B142: WINHTTP maintains a temporary computer memory cache where cookies are maintained for as long as the WINHTTP object is instantiated.
B143: WINHTTP updates this cache any time a "set cookie" header accompanies a web response.
B144: Subsequent WINHTTP calls automatically search this cache for cookies and add any "appropriate" cookies to the headers
B145: of any web requests that get sent out.
B146: This cookie handling automation means that even if the response to our WINHTTP call for the Summary web page includes a new version of
B147: the Yahoo Finance cookie, the imbedded Crumb value will always match the cookie newly installed in the cache!
A150: Why this approach does not work for Macintosh:
B151: For what it is worth, the Macintosh version of the MS Office suite of products do in fact maintain a special, shared amongst themselves only, cookie cache.
B152: They automate cookie handling into and from this cache JUST for the Office products and any Querytable activity they might originate.
B154: This cache is not tied to, nor shared with, any browser that might be installed on the MAC. And I have not found anything with HTTP capabilities similar to
B155: MSXML that can work with that Office product cookie cache.
B157: When working in the MAC EXCEL environment, I have not yet become conversant with a Mac based WINHTTP like capability.
B158: So l currently have no mechanism to replicate the non-Querytable data retrieval process I am using in Windows environments.
B159: A software product called CURL has been suggested as providing this capability in the MAC environment.
B160: A version of CURL is available for the Windows So some day I may explore its capabilities and how to access those capabilities from VBA.
A162: Calculation and Chart Worksheet Usage Comments:
C163: In General, Items in Bolded BLUE are items you may freely change to play what-if games.
C164: Be sure to have a backup copy of the spreadsheet before you alter anything else.
A166: Features carried forward from the June 2016 version of my T-Tips Template
A167: Added a pair of buttons near cell F12 that will allow the user to step the charting window forward or backward one bar for each click.
A168: I find this to be a good way to test my understanding of the author's ideas as I step through the evolution of the price behavior and the indicators.
B170: First: In the "Help! I would like to plot data" area.
B171: Added button to resolve #NA problems by locating the bar in the input data with a slightly more recent date than what the user actually requested.
B172: I find this particularly useful when I have a general idea of where I want to be date wise. Now I can pick a set of dates "out of the air".
B173: If either (or both) of my date specifications fall between dates that are available in the price history,
B174: this button will resolve them to the dates of the nearest, slightly more recent input bars.
B175: I can then refine my data interval search as necessary from there.
B176: Really great when working with Weekly or Monthly studies!
C177: 2016Jun11 - added logic to the "I would like to chart.." button to detect #N/A values and terminate
C178: gracefully with a message instead of blowing up in the charting logic.
B180: Second: In the "Price Chart Windowing Controls" area. (A11 and A12)
B181: When retrieving data for a new symbol or when changing from daily to weekly or monthly data, there was the possibility that the
B182: residual settings in A11 and A12 would fall outside of the number bars available on the input data tab after the new data retrieval.
B183: In certain combinations, this could create a serious error in the chart sizing logic and crash the spreadsheet.
B184: I have taken this opportunity to update the validity checking logic used in the chart sizing macros
B185: to adjust these values as necessary so that they fall within the boundaries of the newly retrieved input data.
A186: Features carried forward from the October 2015 Traders Tips Template
B187: Improved automation: changes to any of the following will automatically initiate calculations appropriate to reflect a change.
C188: Changing either of cells A11 (pan) or A12 (zoom) will automatically initiate the same chart sizing macros that the manual
C189: "Set Chart" button uses.

Sheet InputPriceData
A1: SPDR S&P 500 ETF Trust (SPY) -NYSEArca (Daily)
IJ2: 241.79
A3: Request Online Yahoo History for: | F3: Market State == > | G3: At close: | H3: 16:00:00 | I3: EDT
A4: Symbol | B4: SPY | D4: Valid | I4: =OFFSET(I4,-2,0,1,1) -> 0
A5: From | B5: 1950-01-01 | D5: Data | AD5: Trailing 12 Div return (Cur Close)
A6: To | B6: =NOW() -> 2020-05-16T15:08:45.120 | D6: Types | E6: =VLOOKUP(B7,D7:E10,2,FALSE) -> d
A7: Data Type | B7: Daily | D7: Daily | E7: d
A8: Crumb | B8: HftuOxvOqUi | D8: Weekly | E8: w
A9: Available Data | D9: Monthly | E9: m
A10: Bar Count: | B10: 6874 | AD10: =OFFSET(AC15,1,0,1,1)/OFFSET(N15,1,0,1,1) -> 0.02023194076
A11: From: | B11: =IF(B10<=0,"",OFFSET(B15,B10,IF(HistReqDataType="v",1,0),1,1)) -> 1993-01-29 | W11: Trailing 12 Month Dividend Returns
A12: To: | B12: =IF(B10<=0,"",IF(HistReqDataType="v",OFFSET(B15,2,1,1,1),OFFSET(B15,1,0,1,1))) -> 2020-05-15 | W12: Raw Close price on Dividend date | X12: Div Year and Month | Y12: Looking for year ago Div Year and Month | Z12: Year ago Div Date we found | AA12: row offset to year ago div Date | AB12: Same month flag | AC12: Trailing 12 Div Total | AD12: Trailing 12 Div return
Q13: Split History | S13: 0 | T13: Running | U13: Dividend History
B14: Raw Data Values | H14: Adjusted | I14: Price Adjust | J14: Vol Adjust | K14: Adjusted Values | P14: Last | Q14: Effective | R14: Shares | T14: Vol Adjust | V14: 113
A15: RelRow | B15: Date | C15: Open | D15: High | E15: Low | F15: Close | G15: Volume | H15: Close | I15: Factor | J15: Factor | K15: Open | L15: High | M15: Low | N15: Close | O15: Volume | P15: Trade | Q15: 43967 | R15: New | S15: Old | T15: 1 | U15: Date | V15: $ / Share
A16: 1 | B16: 2020-05-15 | C16: 282.369995 | D16: 286.329987 | E16: 281.339996 | F16: 286.279999 | G16: 95724021 | H16: 286.279999 | I16: =IF(F16=0,1,H16/F16) -> 1 | J16: =INDEX(OFFSET($T$15,0,0,$S$13+1,1),MATCH(B16,OFFSET($Q$15,0,0,$S$13+1,1),-1)) -> 1 | K16: =ROUND($I16*C16,2) -> 282.37 | L16: =ROUND($I16*D16,2) -> 286.33 | M16: 281.34 | N16: 286.28 | O16: =G16*J16 -> 95724021 | U16: 2020-03-20 | V16: 1.406 | W16: =(INDEX(OFFSET($F$15,1,0,$B$10,1),MATCH(U16,OFFSET($B$15,1,0,$B$10,1),-1))) -> 228.800003 | X16: =YEAR(U16)&RIGHT("0"&MONTH(U16),2) -> 202003 | Y16: =YEAR(U16)-1&RIGHT("0"&MONTH(U16),2) -> 201903 | Z16: =OFFSET(U15,AA16,0,1,1) -> 2019-03-15 | AA16: =MATCH(Y16,OFFSET($X$15,A16,0,$V$14+1-A16,1),-1) -> 5 | AB16: =IF(OR(AND(YEAR(U16)=YEAR(Z16),MONTH(U16)=MONTH(Z16)),MONTH(U16)=MONTH(Z16)),1,0) -> 1 | AC16: =(V16+IF(AA16-AB16=0,0,IFERROR(SUM(OFFSET(V16,1,0,AA16-AB16-1,1)),0))) -> 5.792 | AD16: =AC16/(INDEX(OFFSET($F$15,1,0,$B$10,1),MATCH(U16,OFFSET($B$15,1,0,$B$10,1),-1))) -> 0.02531468498
A17: 2 | B17: 2020-05-14 | C17: 278.950012 | D17: 285.109985 | E17: 272.98999 | F17: 284.970001 | G17: 121620300 | H17: 284.970001 | I17: =IF(F17=0,1,H17/F17) -> 1 | J17: =INDEX(OFFSET($T$15,0,0,$S$13+1,1),MATCH(B17,OFFSET($Q$15,0,0,$S$13+1,1),-1)) -> 1 | K17: =ROUND($I17*C17,2) -> 278.95 | L17: =ROUND($I17*D17,2) -> 285.11 | M17: =ROUND($I17*E17,2) -> 272.99 | N17: =ROUND($I17*F17,2) -> 284.97 | O17: =G17*J17 -> 121620300 | U17: 2019-12-20 | V17: 1.57 | W17: =(INDEX(OFFSET($F$15,1,0,$B$10,1),MATCH(U17,OFFSET($B$15,1,0,$B$10,1),-1))) -> 320.730011 | X17: =YEAR(U17)&RIGHT("0"&MONTH(U17),2) -> 201912 | Y17: =YEAR(U17)-1&RIGHT("0"&MONTH(U17),2) -> 201812 | Z17: =OFFSET(U16,AA17,0,1,1) -> 2018-12-21 | AA17: =MATCH(Y17,OFFSET($X$15,A17,0,$V$14+1-A17,1),-1) -> 5 | AB17: =IF(OR(AND(YEAR(U17)=YEAR(Z17),MONTH(U17)=MONTH(Z17)),MONTH(U17)=MONTH(Z17)),1,0) -> 1 | AC17: =(V17+IF(AA17-AB17=0,0,IFERROR(SUM(OFFSET(V17,1,0,AA17-AB17-1,1)),0))) -> 5.619 | AD17: =AC17/(INDEX(OFFSET($F$15,1,0,$B$10,1),MATCH(U17,OFFSET($B$15,1,0,$B$10,1),-1))) -> 0.01751940825
A18: 3 | B18: 2020-05-13 | C18: 286.059998 | D18: 287.190002 | E18: 278.959991 | F18: 281.600006 | G18: 144721100 | H18: 281.600006 | I18: 1 | J18: 1 | K18: 286.06 | L18: 287.19 | M18: 278.96 | N18: 281.6 | O18: 144721100 | U18: 2019-09-20 | V18: 1.384 | W18: 298.279999 | X18: 201909 | Y18: 201809 | Z18: 2018-09-21 | AA18: 5 | AB18: 1 | AC18: 5.484 | AD18: 0.01838540974
A19: 4 | B19: 2020-05-12 | C19: 293.790009 | D19: 294.23999 | E19: 286.519989 | F19: 286.670013 | G19: 95870800 | H19: 286.670013 | I19: 1 | J19: 1 | K19: 293.79 | L19: 294.24 | M19: 286.52 | N19: 286.67 | O19: 95870800 | U19: 2019-06-21 | V19: 1.432 | W19: 294 | X19: 201906 | Y19: 201806 | Z19: 2018-06-15 | AA19: 5 | AB19: 1 | AC19: 5.423 | AD19: 0.01844557823
A20: 5 | B20: 2020-05-11 | C20: 290.339996 | D20: 294 | E20: 289.880005 | F20: 292.5 | G20: 79030200 | H20: 292.5 | I20: 1 | J20: 1 | K20: 290.34 | L20: 294 | M20: 289.88 | N20: 292.5 | O20: 79030200 | U20: 2019-03-15 | V20: 1.233 | W20: 281.309998 | X20: 201903 | Y20: 201803 | Z20: 2018-03-16 | AA20: 5 | AB20: 1 | AC20: 5.237 | AD20: 0.01861647306
A21: 6 | B21: 2020-05-08 | C21: 291.089996 | D21: 292.950012 | E21: 289.859985 | F21: 292.440002 | G21: 76622100 | H21: 292.440002 | I21: 1 | J21: 1 | K21: 291.09 | L21: 292.95 | M21: 289.86 | N21: 292.44 | O21: 76622100 | U21: 2018-12-21 | V21: 1.435 | W21: 240.699997 | X21: 201812 | Y21: 201712 | Z21: 2017-12-15 | AA21: 5 | AB21: 1 | AC21: 5.101 | AD21: 0.02119235589
A22: 7 | B22: 2020-05-07 | C22: 287.75 | D22: 289.779999 | E22: 287.130005 | F22: 287.679993 | G22: 75250400 | H22: 287.679993 | I22: 1 | J22: 1 | K22: 287.75 | L22: 289.78 | M22: 287.13 | N22: 287.68 | O22: 75250400 | U22: 2018-09-21 | V22: 1.323 | W22: 291.98999 | X22: 201809 | Y22: 201709 | Z22: 2017-09-15 | AA22: 5 | AB22: 1 | AC22: 5.017 | AD22: 0.01718209587
A23: 8 | B23: 2020-05-06 | C23: 288.040009 | D23: 288.459991 | E23: 283.779999 | F23: 284.25 | G23: 73632600 | H23: 284.25 | I23: 1 | J23: 1 | K23: 288.04 | L23: 288.46 | M23: 283.78 | N23: 284.25 | O23: 73632600 | U23: 2018-06-15 | V23: 1.246 | W23: 277.130005 | X23: 201806 | Y23: 201706 | Z23: 2017-06-16 | AA23: 5 | AB23: 1 | AC23: 4.929 | AD23: 0.01778587634
A24: 9 | B24: 2020-05-05 | C24: 286.640015 | D24: 289.25 | E24: 283.709991 | F24: 286.190002 | G24: 79569900 | H24: 286.190002 | I24: 1 | J24: 1 | K24: 286.64 | L24: 289.25 | M24: 283.71 | N24: 286.19 | O24: 79569900 | U24: 2018-03-16 | V24: 1.097 | W24: 274.200012 | X24: 201803 | Y24: 201703 | Z24: 2017-03-17 | AA24: 5 | AB24: 1 | AC24: 4.866 | AD24: 0.0177461699
A25: 10 | B25: 2020-05-04 | C25: 280.73999 | D25: 283.899994 | E25: 279.130005 | F25: 283.570007 | G25: 80873200 | H25: 283.570007 | I25: 1 | J25: 1 | K25: 280.74 | L25: 283.9 | M25: 279.13 | N25: 283.57 | O25: 80873200 | U25: 2017-12-15 | V25: 1.351 | W25: 266.51001 | X25: 201712 | Y25: 201612 | Z25: 2016-12-16 | AA25: 5 | AB25: 1 | AC25: 4.802 | AD25: 0.01801808495
A26: 11 | B26: 2020-05-01 | C26: 285.309998 | D26: 290.660004 | E26: 281.519989 | F26: 282.790009 | G26: 125180000 | H26: 282.790009 | I26: 1 | J26: 1 | K26: 285.31 | L26: 290.66 | M26: 281.52 | N26: 282.79 | O26: 125180000 | U26: 2017-09-15 | V26: 1.235 | W26: 249.190002 | X26: 201709 | Y26: 201609 | Z26: 2016-09-16 | AA26: 5 | AB26: 1 | AC26: 4.78 | AD26: 0.01918215001
A27: 12 | B27: 2020-04-30 | C27: 291.709991 | D27: 293.320007 | E27: 288.589996 | F27: 290.480011 | G27: 122901700 | H27: 290.480011 | I27: 1 | J27: 1 | K27: 291.71 | L27: 293.32 | M27: 288.59 | N27: 290.48 | O27: 122901700 | U27: 2017-06-16 | V27: 1.183 | W27: 242.639999 | X27: 201706 | Y27: 201606 | Z27: 2016-06-17 | AA27: 5 | AB27: 1 | AC27: 4.627 | AD27: 0.01906940331
A28: 13 | B28: 2020-04-29 | C28: 291.529999 | D28: 294.880005 | E28: 290.410004 | F28: 293.209991 | G28: 118745600 | H28: 293.209991 | I28: 1 | J28: 1 | K28: 291.53 | L28: 294.88 | M28: 290.41 | N28: 293.21 | O28: 118745600 | U28: 2017-03-17 | V28: 1.033 | W28: 237.029999 | X28: 201703 | Y28: 201603 | Z28: 2016-03-18 | AA28: 5 | AB28: 1 | AC28: 4.522 | AD28: 0.01907775395
A29: 14 | B29: 2020-04-28 | C29: 291.019989 | D29: 291.399994 | E29: 285.399994 | F29: 285.730011 | G29: 105270000 | H29: 285.730011 | I29: 1 | J29: 1 | K29: 291.02 | L29: 291.4 | M29: 285.4 | N29: 285.73 | O29: 105270000 | U29: 2016-12-16 | V29: 1.329 | W29: 225.039993 | X29: 201612 | Y29: 201512 | Z29: 2015-12-18 | AA29: 5 | AB29: 1 | AC29: 4.539 | AD29: 0.02016974823
A30: 15 | B30: 2020-04-27 | C30: 285.119995 | D30: 288.269989 | E30: 284.619995 | F30: 287.049988 | G30: 77896600 | H30: 287.049988 | I30: 1 | J30: 1 | K30: 285.12 | L30: 288.27 | M30: 284.62 | N30: 287.05 | O30: 77896600 | U30: 2016-09-16 | V30: 1.082 | W30: 213.369995 | X30: 201609 | Y30: 201509 | Z30: 2015-09-18 | AA30: 5 | AB30: 1 | AC30: 4.422 | AD30: 0.02072456345
A31: 16 | B31: 2020-04-24 | C31: 280.730011 | D31: 283.700012 | E31: 278.5 | F31: 282.970001 | G31: 85166000 | H31: 282.970001 | I31: 1 | J31: 1 | K31: 280.73 | L31: 283.7 | M31: 278.5 | N31: 282.97 | O31: 85166000 | U31: 2016-06-17 | V31: 1.078 | W31: 206.520004 | X31: 201606 | Y31: 201506 | Z31: 2015-06-19 | AA31: 5 | AB31: 1 | AC31: 4.373 | AD31: 0.02117470422
A32: 17 | B32: 2020-04-23 | C32: 280.48999 | D32: 283.940002 | E32: 278.75 | F32: 279.079987 | G32: 104709700 | H32: 279.079987 | I32: 1 | J32: 1 | K32: 280.49 | L32: 283.94 | M32: 278.75 | N32: 279.08 | O32: 104709700 | U32: 2016-03-18 | V32: 1.05 | W32: 204.380005 | X32: 201603 | Y32: 201503 | Z32: 2015-03-20 | AA32: 5 | AB32: 1 | AC32: 4.325 | AD32: 0.02116156128
A33: 18 | B33: 2020-04-22 | C33: 278.350006 | D33: 281 | E33: 276.910004 | F33: 279.100006 | G33: 93524600 | H33: 279.100006 | I33: 1 | J33: 1 | K33: 278.35 | L33: 281 | M33: 276.91 | N33: 279.1 | O33: 93524600 | U33: 2015-12-18 | V33: 1.212 | W33: 200.020004 | X33: 201512 | Y33: 201412 | Z33: 2014-12-19 | AA33: 5 | AB33: 1 | AC33: 4.206 | AD33: 0.02102789679
A34: 19 | B34: 2020-04-21 | C34: 276.730011 | D34: 278.040009 | E34: 272.019989 | F34: 273.040009 | G34: 126385700 | H34: 273.040009 | I34: 1 | J34: 1 | K34: 276.73 | L34: 278.04 | M34: 272.02 | N34: 273.04 | O34: 126385700 | U34: 2015-09-18 | V34: 1.033 | W34: 195.449997 | X34: 201509 | Y34: 201409 | Z34: 2014-09-19 | AA34: 5 | AB34: 1 | AC34: 4.129 | AD34: 0.0211256079
A35: 20 | B35: 2020-04-20 | C35: 282.609985 | D35: 286.790009 | E35: 281.350006 | F35: 281.589996 | G35: 100109300 | H35: 281.589996 | I35: 1 | J35: 1 | K35: 282.61 | L35: 286.79 | M35: 281.35 | N35: 281.59 | O35: 100109300 | U35: 2015-06-19 | V35: 1.03 | W35: 210.809998 | X35: 201506 | Y35: 201406 | Z35: 2014-06-20 | AA35: 5 | AB35: 1 | AC35: 4.035 | AD35: 0.01914045841
A36: 21 | B36: 2020-04-17 | C36: 285.380005 | D36: 287.299988 | E36: 282.399994 | F36: 286.640015 | G36: 146684800 | H36: 286.640015 | I36: 1 | J36: 1 | K36: 285.38 | L36: 287.3 | M36: 282.4 | N36: 286.64 | O36: 146684800 | U36: 2015-03-20 | V36: 0.931 | W36: 210.410004 | X36: 201503 | Y36: 201403 | Z36: 2014-03-21 | AA36: 5 | AB36: 1 | AC36: 3.942 | AD36: 0.01873485065
A37: 22 | B37: 2020-04-16 | C37: 279.149994 | D37: 280.029999 | E37: 275.76001 | F37: 279.100006 | G37: 131798300 | H37: 279.100006 | I37: 1 | J37: 1 | K37: 279.15 | L37: 280.03 | M37: 275.76 | N37: 279.1 | O37: 131798300 | U37: 2014-12-19 | V37: 1.135 | W37: 206.520004 | X37: 201412 | Y37: 201312 | Z37: 2013-12-20 | AA37: 5 | AB37: 1 | AC37: 3.836 | AD37: 0.01857447185
A38: 23 | B38: 2020-04-15 | C38: 277.570007 | D38: 283.940002 | E38: 275.459991 | F38: 277.76001 | G38: 121775000 | H38: 277.76001 | I38: 1 | J38: 1 | K38: 277.57 | L38: 283.94 | M38: 275.46 | N38: 277.76 | O38: 121775000 | U38: 2014-09-19 | V38: 0.939 | W38: 200.699997 | X38: 201409 | Y38: 201309 | Z38: 2013-09-20 | AA38: 5 | AB38: 1 | AC38: 3.681 | AD38: 0.01834080745
A39: 24 | B39: 2020-04-14 | C39: 280.980011 | D39: 284.899994 | E39: 275.51001 | F39: 283.790009 | G39: 134143400 | H39: 283.790009 | I39: 1 | J39: 1 | K39: 280.98 | L39: 284.9 | M39: 275.51 | N39: 283.79 | O39: 134143400 | U39: 2014-06-20 | V39: 0.937 | W39: 195.940002 | X39: 201406 | Y39: 201306 | Z39: 2013-06-21 | AA39: 5 | AB39: 1 | AC39: 3.58 | AD39: 0.01827089907
A40: 25 | B40: 2020-04-13 | C40: 277.140015 | D40: 277.51001 | E40: 271.410004 | F40: 275.660004 | G40: 114839100 | H40: 275.660004 | I40: 1 | J40: 1 | K40: 277.14 | L40: 277.51 | M40: 271.41 | N40: 275.66 | O40: 114839100 | U40: 2014-03-21 | V40: 0.825 | W40: 186.199997 | X40: 201403 | Y40: 201303 | Z40: 2013-03-15 | AA40: 5 | AB40: 1 | AC40: 3.482 | AD40: 0.01870032254
A41: 26 | B41: 2020-04-09 | C41: 277.579987 | D41: 281.200012 | E41: 275.470001 | F41: 278.200012 | G41: 190282700 | H41: 278.200012 | I41: 1 | J41: 1 | K41: 277.58 | L41: 281.2 | M41: 275.47 | N41: 278.2 | O41: 190282700 | U41: 2013-12-20 | V41: 0.98 | W41: 181.559998 | X41: 201312 | Y41: 201212 | Z41: 2012-12-21 | AA41: 5 | AB41: 1 | AC41: 3.351 | AD41: 0.01845670873
A42: 27 | B42: 2020-04-08 | C42: 267.959991 | D42: 276 | E42: 265.25 | F42: 274.029999 | G42: 153774500 | H42: 274.029999 | I42: 1 | J42: 1 | K42: 267.96 | L42: 276 | M42: 265.25 | N42: 274.03 | O42: 153774500 | U42: 2013-09-20 | V42: 0.838 | W42: 170.720001 | X42: 201309 | Y42: 201209 | Z42: 2012-09-21 | AA42: 5 | AB42: 1 | AC42: 3.393 | AD42: 0.01987464843
A43: 28 | B43: 2020-04-07 | C43: 274.209991 | D43: 275.029999 | E43: 264.890015 | F43: 265.130005 | G43: 201427200 | H43: 265.130005 | I43: 1 | J43: 1 | K43: 274.21 | L43: 275.03 | M43: 264.89 | N43: 265.13 | O43: 201427200 | U43: 2013-06-21 | V43: 0.839 | W43: 159.070007 | X43: 201306 | Y43: 201206 | Z43: 2012-06-15 | AA43: 5 | AB43: 1 | AC43: 3.334 | AD43: 0.02095932516
A44: 29 | B44: 2020-04-06 | C44: 257.839996 | D44: 267 | E44: 248.169998 | F44: 264.859985 | G44: 188061200 | H44: 264.859985 | I44: 1 | J44: 1 | K44: 257.84 | L44: 267 | M44: 248.17 | N44: 264.86 | O44: 188061200 | U44: 2013-03-15 | V44: 0.694 | W44: 155.830002 | X44: 201303 | Y44: 201203 | Z44: 2012-03-16 | AA44: 5 | AB44: 1 | AC44: 3.183 | AD44: 0.02042610511
A45: 30 | B45: 2020-04-03 | C45: 250.759995 | D45: 253.320007 | E45: 245.220001 | F45: 248.190002 | G45: 135561200 | H45: 248.190002 | I45: 1 | J45: 1 | K45: 250.76 | L45: 253.32 | M45: 245.22 | N45: 248.19 | O45: 135561200 | U45: 2012-12-21 | V45: 1.022 | W45: 142.789993 | X45: 201212 | Y45: 201112 | Z45: 2011-12-16 | AA45: 5 | AB45: 1 | AC45: 3.103 | AD45: 0.02173121474
A46: 31 | B46: 2020-04-02 | C46: 245.190002 | D46: 252.679993 | E46: 244.589996 | F46: 251.830002 | G46: 177660400 | H46: 251.830002 | I46: 1 | J46: 1 | K46: 245.19 | L46: 252.68 | M46: 244.59 | N46: 251.83 | O46: 177660400 | U46: 2012-09-21 | V46: 0.779 | W46: 145.869995 | X46: 201209 | Y46: 201109 | Z46: 2011-09-16 | AA46: 5 | AB46: 1 | AC46: 2.851 | AD46: 0.01954480083
A47: 32 | B47: 2020-04-01 | C47: 247.979996 | D47: 257.660004 | E47: 243.899994 | F47: 246.149994 | G47: 189554600 | H47: 246.149994 | I47: 1 | J47: 1 | K47: 247.98 | L47: 257.66 | M47: 243.9 | N47: 246.15 | O47: 189554600 | U47: 2012-06-15 | V47: 0.688 | W47: 134.139999 | X47: 201206 | Y47: 201106 | Z47: 2011-06-17 | AA47: 5 | AB47: 1 | AC47: 2.697 | AD47: 0.0201058597
A48: 33 | B48: 2020-03-31 | C48: 260.559998 | D48: 263.329987 | E48: 256.220001 | F48: 257.75 | G48: 194881100 | H48: 257.75 | I48: 1 | J48: 1 | K48: 260.56 | L48: 263.33 | M48: 256.22 | N48: 257.75 | O48: 194881100 | U48: 2012-03-16 | V48: 0.614 | W48: 140.300003 | X48: 201203 | Y48: 201103 | Z48: 2011-03-18 | AA48: 5 | AB48: 1 | AC48: 2.637 | AD48: 0.01879543794
A49: 34 | B49: 2020-03-30 | C49: 255.699997 | D49: 262.429993 | E49: 253.529999 | F49: 261.649994 | G49: 171369500 | H49: 261.649994 | I49: 1 | J49: 1 | K49: 255.7 | L49: 262.43 | M49: 253.53 | N49: 261.65 | O49: 171369500 | U49: 2011-12-16 | V49: 0.77 | W49: 121.589996 | X49: 201112 | Y49: 201012 | Z49: 2010-12-17 | AA49: 5 | AB49: 1 | AC49: 2.576 | AD49: 0.02118595349
A50: 35 | B50: 2020-03-27 | C50: 253.270004 | D50: 260.809998 | E50: 251.050003 | F50: 253.419998 | G50: 224341200 | H50: 253.419998 | I50: 1 | J50: 1 | K50: 253.27 | L50: 260.81 | M50: 251.05 | N50: 253.42 | O50: 224341200 | U50: 2011-09-16 | V50: 0.625 | W50: 121.519997 | X50: 201109 | Y50: 201009 | Z50: 2010-09-17 | AA50: 5 | AB50: 1 | AC50: 2.459 | AD50: 0.0202353527
A51: 36 | B51: 2020-03-26 | C51: 249.520004 | D51: 262.799988 | E51: 249.050003 | F51: 261.200012 | G51: 257632800 | H51: 261.200012 | I51: 1 | J51: 1 | K51: 249.52 | L51: 262.8 | M51: 249.05 | N51: 261.2 | O51: 257632800 | U51: 2011-06-17 | V51: 0.628 | W51: 127.050003 | X51: 201106 | Y51: 201006 | Z51: 2010-06-18 | AA51: 5 | AB51: 1 | AC51: 2.436 | AD51: 0.01917355327
A52: 37 | B52: 2020-03-25 | C52: 244.869995 | D52: 256.350006 | E52: 239.75 | F52: 246.789993 | G52: 299430300 | H52: 246.789993 | I52: 1 | J52: 1 | K52: 244.87 | L52: 256.35 | M52: 239.75 | N52: 246.79 | O52: 299430300 | U52: 2011-03-18 | V52: 0.553 | W52: 127.760002 | X52: 201103 | Y52: 201003 | Z52: 2010-03-19 | AA52: 5 | AB52: 1 | AC52: 2.339 | AD52: 0.01830776427
A53: 38 | B53: 2020-03-24 | C53: 234.419998 | D53: 244.100006 | E53: 233.800003 | F53: 243.149994 | G53: 235494500 | H53: 243.149994 | I53: 1 | J53: 1 | K53: 234.42 | L53: 244.1 | M53: 233.8 | N53: 243.15 | O53: 235494500 | U53: 2010-12-17 | V53: 0.653 | W53: 124.300003 | X53: 201012 | Y53: 200912 | Z53: 2009-12-18 | AA53: 5 | AB53: 1 | AC53: 2.266 | AD53: 0.01823008806
A54: 39 | B54: 2020-03-23 | C54: 228.190002 | D54: 229.679993 | E54: 218.259995 | F54: 222.949997 | G54: 326025200 | H54: 222.949997 | I54: 1 | J54: 1 | K54: 228.19 | L54: 229.68 | M54: 218.26 | N54: 222.95 | O54: 326025200 | U54: 2010-09-17 | V54: 0.602 | W54: 112.489998 | X54: 201009 | Y54: 200909 | Z54: 2009-09-18 | AA54: 5 | AB54: 1 | AC54: 2.203 | AD54: 0.01958396337
A55: 40 | B55: 2020-03-20 | C55: 242.529999 | D55: 244.470001 | E55: 228.5 | F55: 228.800003 | G55: 347158800 | H55: 228.800003 | I55: 1 | J55: 1 | K55: 242.53 | L55: 244.47 | M55: 228.5 | N55: 228.8 | O55: 347158800 | U55: 2010-06-18 | V55: 0.531 | W55: 111.730003 | X55: 201006 | Y55: 200906 | Z55: 2009-06-19 | AA55: 5 | AB55: 1 | AC55: 2.109 | AD55: 0.01887586094
A56: 41 | B56: 2020-03-19 | C56: 239.25 | D56: 247.380005 | E56: 232.220001 | F56: 240.509995 | G56: 289322000 | H56: 239.103989 | I56: 0.9941540642 | J56: 1 | K56: 237.85 | L56: 245.93 | M56: 230.86 | N56: 239.1 | O56: 289322000 | U56: 2010-03-19 | V56: 0.48 | W56: 115.970001 | X56: 201003 | Y56: 200903 | Z56: 2009-03-20 | AA56: 5 | AB56: 1 | AC56: 2.096 | AD56: 0.01807363958
A57: 42 | B57: 2020-03-18 | C57: 236.25 | D57: 248.369995 | E57: 228.020004 | F57: 240 | G57: 327597100 | H57: 238.596985 | I57: 0.9941541042 | J57: 1 | K57: 234.87 | L57: 246.92 | M57: 226.69 | N57: 238.6 | O57: 327597100 | U57: 2009-12-18 | V57: 0.59 | W57: 110.209999 | X57: 200912 | Y57: 200812 | Z57: 2008-12-19 | AA57: 5 | AB57: 1 | AC57: 2.177 | AD57: 0.01975319862
A58: 43 | B58: 2020-03-17 | C58: 245.039993 | D58: 256.170013 | E58: 237.070007 | F58: 252.800003 | G58: 262070500 | H58: 251.322159 | I58: 0.9941540982 | J58: 1 | K58: 243.61 | L58: 254.67 | M58: 235.68 | N58: 251.32 | O58: 262070500 | U58: 2009-09-18 | V58: 0.508 | W58: 106.720001 | X58: 200909 | Y58: 200809 | Z58: 2008-09-19 | AA58: 5 | AB58: 1 | AC58: 2.306 | AD58: 0.02160794582
A59: 44 | B59: 2020-03-16 | C59: 241.179993 | D59: 256.899994 | E59: 237.360001 | F59: 239.850006 | G59: 297240000 | H59: 238.447861 | I59: 0.9941540756 | J59: 1 | K59: 239.77 | L59: 255.4 | M59: 235.97 | N59: 238.45 | O59: 297240000 | U59: 2009-06-19 | V59: 0.518 | W59: 92.040001 | X59: 200906 | Y59: 200806 | Z59: 2008-06-20 | AA59: 5 | AB59: 1 | AC59: 2.489 | AD59: 0.02704258988
A60: 45 | B60: 2020-03-13 | C60: 263.089996 | D60: 271.480011 | E60: 248.520004 | F60: 269.320007 | G60: 329566100 | H60: 267.745575 | I60: 0.9941540474 | J60: 1 | K60: 261.55 | L60: 269.89 | M60: 247.07 | N60: 267.75 | O60: 329566100 | U60: 2009-03-20 | V60: 0.561 | W60: 76.709999 | X60: 200903 | Y60: 200803 | Z60: 2008-03-20 | AA60: 5 | AB60: 1 | AC60: 2.64 | AD60: 0.03441533091
A61: 46 | B61: 2020-03-12 | C61: 256 | D61: 266.660004 | E61: 247.679993 | F61: 248.110001 | G61: 392220700 | H61: 246.659576 | I61: 0.9941541051 | J61: 1 | K61: 254.5 | L61: 265.1 | M61: 246.23 | N61: 246.66 | O61: 392220700 | U61: 2008-12-19 | V61: 0.719 | W61: 88.190002 | X61: 200812 | Y61: 200712 | Z61: 2007-12-21 | AA61: 5 | AB61: 1 | AC61: 2.721 | AD61: 0.0308538376
A62: 47 | B62: 2020-03-11 | C62: 280.700012 | D62: 281.940002 | E62: 270.880005 | F62: 274.359985 | G62: 255316300 | H62: 272.756104 | I62: 0.9941541001 | J62: 1 | K62: 279.06 | L62: 280.29 | M62: 269.3 | N62: 272.76 | O62: 255316300 | U62: 2008-09-19 | V62: 0.691 | W62: 124.120003 | X62: 200809 | Y62: 200709 | Z62: 2007-09-21 | AA62: 5 | AB62: 1 | AC62: 2.777 | AD62: 0.02237350897
A63: 48 | B63: 2020-03-10 | C63: 284.640015 | D63: 288.519989 | E63: 273.5 | F63: 288.420013 | G63: 276444100 | H63: 286.733948 | I63: 0.9941541331 | J63: 1 | K63: 282.98 | L63: 286.83 | M63: 271.9 | N63: 286.73 | O63: 276444100 | U63: 2008-06-20 | V63: 0.669 | W63: 131.580002 | X63: 200806 | Y63: 200706 | Z63: 2007-06-15 | AA63: 5 | AB63: 1 | AC63: 2.805 | AD63: 0.02131782913
A64: 49 | B64: 2020-03-09 | C64: 275.299988 | D64: 284.190002 | E64: 273.450012 | F64: 274.230011 | G64: 309417300 | H64: 272.626892 | I64: 0.9941541081 | J64: 1 | K64: 273.69 | L64: 282.53 | M64: 271.85 | N64: 272.63 | O64: 309417300 | U64: 2008-03-20 | V64: 0.642 | W64: 132.080002 | X64: 200803 | Y64: 200703 | Z64: 2007-03-16 | AA64: 5 | AB64: 1 | AC64: 2.792 | AD64: 0.0211387035
A65: 50 | B65: 2020-03-06 | C65: 293.149994 | D65: 298.779999 | E65: 290.230011 | F65: 297.459991 | G65: 228667200 | H65: 295.721069 | I65: 0.9941540979 | J65: 1 | K65: 291.44 | L65: 297.03 | M65: 288.53 | N65: 295.72 | O65: 228667200 | U65: 2007-12-21 | V65: 0.775 | W65: 148.130005 | X65: 200712 | Y65: 200612 | Z65: 2006-12-15 | AA65: 5 | AB65: 1 | AC65: 2.701 | AD65: 0.01823398305
A66: 51 | B66: 2020-03-05 | C66: 304.980011 | D66: 308.470001 | E66: 300.01001 | F66: 302.459991 | G66: 186366800 | H66: 300.691833 | I66: 0.9941540764 | J66: 1 | K66: 303.2 | L66: 306.67 | M66: 298.26 | N66: 300.69 | O66: 186366800 | U66: 2007-09-21 | V66: 0.719 | W66: 151.970001 | X66: 200709 | Y66: 200609 | Z66: 2006-09-15 | AA66: 5 | AB66: 1 | AC66: 2.719 | AD66: 0.01789168903
A67: 52 | B67: 2020-03-04 | C67: 306.119995 | D67: 313.100006 | E67: 303.329987 | F67: 312.859985 | G67: 176613400 | H67: 311.031036 | I67: 0.9941540974 | J67: 1 | K67: 304.33 | L67: 311.27 | M67: 301.56 | N67: 311.03 | O67: 176613400 | U67: 2007-06-15 | V67: 0.656 | W67: 153.070007 | X67: 200706 | Y67: 200606 | Z67: 2006-06-16 | AA67: 5 | AB67: 1 | AC67: 2.579 | AD67: 0.01684849992
A68: 53 | B68: 2020-03-03 | C68: 309.5 | D68: 313.839996 | E68: 297.570007 | F68: 300.23999 | G68: 300139100 | H68: 298.484802 | I68: 0.9941540499 | J68: 1 | K68: 307.69 | L68: 312.01 | M68: 295.83 | N68: 298.48 | O68: 300139100 | U68: 2007-03-16 | V68: 0.551 | W68: 138.529999 | X68: 200703 | Y68: 200603 | Z68: 2006-03-17 | AA68: 5 | AB68: 1 | AC68: 2.478 | AD68: 0.01788782226
A69: 54 | B69: 2020-03-02 | C69: 298.209991 | D69: 309.160004 | E69: 294.459991 | F69: 309.089996 | G69: 238703600 | H69: 307.283081 | I69: 0.9941540813 | J69: 1 | K69: 296.47 | L69: 307.35 | M69: 292.74 | N69: 307.28 | O69: 238703600 | U69: 2006-12-15 | V69: 0.793 | W69: 142.339996 | X69: 200612 | Y69: 200512 | Z69: 2005-12-16 | AA69: 5 | AB69: 1 | AC69: 2.446 | AD69: 0.01718420731
A70: 55 | B70: 2020-02-28 | C70: 288.700012 | D70: 297.890015 | E70: 285.540009 | F70: 296.26001 | G70: 385764000 | H70: 294.528107 | I70: 0.9941541115 | J70: 1 | K70: 287.01 | L70: 296.15 | M70: 283.87 | N70: 294.53 | O70: 385764000 | U70: 2006-09-15 | V70: 0.579 | W70: 131.960007 | X70: 200609 | Y70: 200509 | Z70: 2005-09-16 | AA70: 5 | AB70: 1 | AC70: 2.325 | AD70: 0.01761897451
A71: 56 | B71: 2020-02-27 | C71: 305.459991 | D71: 311.559998 | E71: 297.51001 | F71: 297.51001 | G71: 284353500 | H71: 295.770782 | I71: 0.9941540522 | J71: 1 | K71: 303.67 | L71: 309.74 | M71: 295.77 | N71: 295.77 | O71: 284353500 | U71: 2006-06-16 | V71: 0.555 | W71: 124.650002 | X71: 200606 | Y71: 200506 | Z71: 2005-06-17 | AA71: 5 | AB71: 1 | AC71: 2.268 | AD71: 0.01819494556
A72: 57 | B72: 2020-02-26 | C72: 314.179993 | D72: 318.109985 | E72: 310.700012 | F72: 311.5 | G72: 194773800 | H72: 309.678986 | I72: 0.9941540482 | J72: 1 | K72: 312.34 | L72: 316.25 | M72: 308.88 | N72: 309.68 | O72: 194773800 | U72: 2006-03-17 | V72: 0.519 | W72: 130.619995 | X72: 200603 | Y72: 200503 | Z72: 2005-03-18 | AA72: 5 | AB72: 1 | AC72: 2.201 | AD72: 0.0168504064
A73: 58 | B73: 2020-02-25 | C73: 323.940002 | D73: 324.609985 | E73: 311.690002 | F73: 312.649994 | G73: 218913200 | H73: 310.822266 | I73: 0.9941540763 | J73: 1 | K73: 322.05 | L73: 322.71 | M73: 309.87 | N73: 310.82 | O73: 218913200 | U73: 2005-12-16 | V73: 0.672 | W73: 126.360001 | X73: 200512 | Y73: 200412 | Z73: 2004-12-17 | AA73: 5 | AB73: 1 | AC73: 2.149 | AD73: 0.01700696409
A74: 59 | B74: 2020-02-24 | C74: 323.140015 | D74: 333.559998 | E74: 321.23999 | F74: 322.420013 | G74: 161088400 | H74: 320.535187 | I74: 0.9941541284 | J74: 1 | K74: 321.25 | L74: 331.61 | M74: 319.36 | N74: 320.54 | O74: 161088400 | U74: 2005-09-16 | V74: 0.522 | W74: 123.5 | X74: 200509 | Y74: 200409 | Z74: 2004-09-17 | AA74: 6 | AB74: 1 | AC74: 2.396 | AD74: 0.01940080972
A75: 60 | B75: 2020-02-21 | C75: 335.470001 | D75: 335.809998 | E75: 332.579987 | F75: 333.480011 | G75: 113788200 | H75: 331.530518 | I75: 0.9941540934 | J75: 1 | K75: 333.51 | L75: 333.85 | M75: 330.64 | N75: 331.53 | O75: 113788200 | U75: 2005-06-17 | V75: 0.488 | W75: 121.360001 | X75: 200506 | Y75: 200406 | Z75: 2004-06-18 | AA75: 6 | AB75: 1 | AC75: 2.343 | AD75: 0.01930619628
A76: 61 | B76: 2020-02-20 | C76: 337.73999 | D76: 338.640015 | E76: 333.679993 | F76: 336.950012 | G76: 74163400 | H76: 334.980225 | I76: 0.9941540676 | J76: 1 | K76: 335.77 | L76: 336.66 | M76: 331.73 | N76: 334.98 | O76: 74163400 | U76: 2005-03-18 | V76: 0.467 | W76: 118.540001 | X76: 200503 | Y76: 200403 | Z76: 2004-03-19 | AA76: 6 | AB76: 1 | AC76: 2.269 | AD76: 0.01914121799
A77: 62 | B77: 2020-02-19 | C77: 337.790009 | D77: 339.079987 | E77: 337.480011 | F77: 338.339996 | G77: 48814700 | H77: 336.362091 | I77: 0.9941540905 | J77: 1 | K77: 335.82 | L77: 337.1 | M77: 335.51 | N77: 336.36 | O77: 48814700 | U77: 2004-12-17 | V77: 0.568 | W77: 119.440002 | X77: 200412 | Y77: 200312 | Z77: 2003-12-19 | AA77: 6 | AB77: 1 | AC77: 2.197 | AD77: 0.0183941725
A78: 63 | B78: 2020-02-18 | C78: 336.51001 | D78: 337.670013 | E78: 335.209991 | F78: 336.730011 | G78: 57226200 | H78: 334.761505 | I78: 0.9941540524 | J78: 1 | K78: 334.54 | L78: 335.7 | M78: 333.25 | N78: 334.76 | O78: 57226200 | U78: 2004-11-15 | V78: 0.351 | W78: 118.730003 | X78: 200411 | Y78: 200311 | Z78: 2003-12-19 | AA78: 5 | AB78: 0 | AC78: 2.145 | AD78: 0.01806620017
A79: 64 | B79: 2020-02-14 | C79: 337.51001 | D79: 337.730011 | E79: 336.200012 | F79: 337.600006 | G79: 64582200 | H79: 335.626434 | I79: 0.9941541115 | J79: 1 | K79: 335.54 | L79: 335.76 | M79: 334.23 | N79: 335.63 | O79: 64582200 | U79: 2004-09-17 | V79: 0.469 | W79: 113.150002 | X79: 200409 | Y79: 200309 | Z79: 2003-09-19 | AA79: 5 | AB79: 1 | AC79: 1.794 | AD79: 0.01585505938
A80: 65 | B80: 2020-02-13 | C80: 335.859985 | D80: 338.119995 | E80: 335.559998 | F80: 337.059998 | G80: 54501900 | H80: 335.089569 | I80: 0.9941540705 | J80: 1 | K80: 333.9 | L80: 336.14 | M80: 333.6 | N80: 335.09 | O80: 54501900 | U80: 2004-06-18 | V80: 0.414 | W80: 113.629997 | X80: 200406 | Y80: 200306 | Z80: 2003-06-20 | AA80: 5 | AB80: 1 | AC80: 1.725 | AD80: 0.01518085053
A81: 66 | B81: 2020-02-12 | C81: 336.829987 | D81: 337.649994 | E81: 336.429993 | F81: 337.420013 | G81: 43992700 | H81: 335.447479 | I81: =IF(F81=0,1,H81/F81) -> 0.9941540693 | J81: =INDEX(OFFSET($T$15,0,0,$S$13+1,1),MATCH(B81,OFFSET($Q$15,0,0,$S$13+1,1),-1)) -> 1 | K81: =ROUND($I81*C81,2) -> 334.86 | L81: =ROUND($I81*D81,2) -> 335.68 | M81: =ROUND($I81*E81,2) -> 334.46 | N81: =ROUND($I81*F81,2) -> 335.45 | O81: =G81*J81 -> 43992700 | U81: 2004-03-19 | V81: 0.395 | W81: =(INDEX(OFFSET($F$15,1,0,$B$10,1),MATCH(U81,OFFSET($B$15,1,0,$B$10,1),-1))) -> 111.059998 | X81: =YEAR(U81)&RIGHT("0"&MONTH(U81),2) -> 200403 | Y81: =YEAR(U81)-1&RIGHT("0"&MONTH(U81),2) -> 200303 | Z81: =OFFSET(U80,AA81,0,1,1) -> 2003-03-21 | AA81: =MATCH(Y81,OFFSET($X$15,A81,0,$V$14+1-A81,1),-1) -> 5 | AB81: =IF(OR(AND(YEAR(U81)=YEAR(Z81),MONTH(U81)=MONTH(Z81)),MONTH(U81)=MONTH(Z81)),1,0) -> 1 | AC81: =(V81+IF(AA81-AB81=0,0,IFERROR(SUM(OFFSET(V81,1,0,AA81-AB81-1,1)),0))) -> 1.671 | AD81: =AC81/(INDEX(OFFSET($F$15,1,0,$B$10,1),MATCH(U81,OFFSET($B$15,1,0,$B$10,1),-1))) -> 0.01504592139
A82: 67 | B82: 2020-02-11 | C82: 336.160004 | D82: 337.019989 | E82: 334.679993 | F82: 335.26001 | G82: 54864500 | H82: 333.30011 | I82: 0.9941540895 | J82: 1 | K82: 334.19 | L82: 335.05 | M82: 332.72 | N82: 333.3 | O82: 54864500 | U82: 2003-12-19 | V82: 0.516 | W82: 108.900002 | X82: 200312 | Y82: 200212 | Z82: 2002-12-20 | AA82: 5 | AB82: 1 | AC82: 1.63 | AD82: 0.01496786015
A83: 68 | B83: 2020-02-10 | C83: 331.230011 | D83: 334.75 | E83: 331.190002 | F83: 334.679993 | G83: 42070000 | H83: 332.72348 | I83: 0.9941540784 | J83: 1 | K83: 329.29 | L83: 332.79 | M83: 329.25 | N83: 332.72 | O83: 42070000 | U83: 2003-09-19 | V83: 0.4 | W83: 103.669998 | X83: 200309 | Y83: 200209 | Z83: 2002-09-20 | AA83: 5 | AB83: 1 | AC83: 1.55 | AD83: 0.01495128803
A84: 69 | B84: 2020-02-07 | C84: 332.820007 | D84: 333.98999 | E84: 331.600006 | F84: 332.200012 | G84: 64139400 | H84: 330.257996 | I84: 0.9941540761 | J84: 1 | K84: 330.87 | L84: 332.04 | M84: 329.66 | N84: 330.26 | O84: 64139400 | U84: 2003-06-20 | V84: 0.36 | W84: 99.440002 | X84: 200306 | Y84: 200206 | Z84: 2002-06-21 | AA84: 5 | AB84: 1 | AC84: 1.528 | AD84: 0.01536604957
A85: 70 | B85: 2020-02-06 | C85: 333.910004 | D85: 334.190002 | E85: 332.799988 | F85: 333.980011 | G85: 50359700 | H85: 332.027588 | I85: 0.9941540723 | J85: 1 | K85: 331.96 | L85: 332.24 | M85: 330.85 | N85: 332.03 | O85: 50359700 | U85: 2003-03-21 | V85: 0.354 | W85: 89.669998 | X85: 200303 | Y85: 200203 | Z85: 2002-03-15 | AA85: 5 | AB85: 1 | AC85: 1.521 | AD85: 0.01696219509
A86: 71 | B86: 2020-02-05 | C86: 332.269989 | D86: 333.089996 | E86: 330.670013 | F86: 332.859985 | G86: 65951100 | H86: 330.914124 | I86: 0.9941541156 | J86: 1 | K86: 330.33 | L86: 331.14 | M86: 328.74 | N86: 330.91 | O86: 65951100 | U86: 2002-12-20 | V86: 0.436 | W86: 89.989998 | X86: 200212 | Y86: 200112 | Z86: 2001-12-21 | AA86: 5 | AB86: 1 | AC86: 1.498 | AD86: 0.0166462944
A87: 72 | B87: 2020-02-04 | C87: 328.070007 | D87: 330.01001 | E87: 327.720001 | F87: 329.059998 | G87: 62573200 | H87: 327.136353 | I87: 0.9941541208 | J87: 1 | K87: 326.15 | L87: 328.08 | M87: 325.8 | N87: 327.14 | O87: 62573200 | U87: 2002-09-20 | V87: 0.378 | W87: 84.349998 | X87: 200209 | Y87: 200109 | Z87: 2001-09-21 | AA87: 5 | AB87: 1 | AC87: 1.455 | AD87: 0.01724955583
A88: 73 | B88: 2020-02-03 | C88: 323.350006 | D88: 326.160004 | E88: 323.220001 | F88: 324.119995 | G88: 69242300 | H88: 322.22522 | I88: 0.9941540941 | J88: 1 | K88: 321.46 | L88: 324.25 | M88: 321.33 | N88: 322.23 | O88: 69242300 | U88: 2002-06-21 | V88: 0.353 | W88: 99.279999 | X88: 200206 | Y88: 200106 | Z88: 2001-06-15 | AA88: 5 | AB88: 1 | AC88: 1.446 | AD88: 0.01456486719
A89: 74 | B89: 2020-01-31 | C89: 327 | D89: 327.170013 | E89: 320.730011 | F89: 321.730011 | G89: 113845600 | H89: 319.849213 | I89: 0.9941541108 | J89: 1 | K89: 325.09 | L89: 325.26 | M89: 318.86 | N89: 319.85 | O89: 113845600 | U89: 2002-03-15 | V89: 0.331 | W89: 116.650002 | X89: 200203 | Y89: 200103 | Z89: 2001-03-16 | AA89: 5 | AB89: 1 | AC89: 1.439 | AD89: 0.0123360478
A90: 75 | B90: 2020-01-30 | C90: 324.359985 | D90: 327.910004 | E90: 323.540009 | F90: 327.679993 | G90: 75491800 | H90: 325.764404 | I90: 0.9941540862 | J90: 1 | K90: 322.46 | L90: 325.99 | M90: 321.65 | N90: 325.76 | O90: 75491800 | U90: 2001-12-21 | V90: 0.393 | W90: 114.949997 | X90: 200112 | Y90: 200012 | Z90: 2000-12-27 | AA90: 5 | AB90: 1 | AC90: 1.424 | AD90: 0.0123879951
A91: 76 | B91: 2020-01-29 | C91: 328.380005 | D91: 328.630005 | E91: 326.399994 | F91: 326.619995 | G91: 53888900 | H91: 324.710602 | I91: 0.9941540842 | J91: 1 | K91: 326.46 | L91: 326.71 | M91: 324.49 | N91: 324.71 | O91: 53888900 | U91: 2001-09-21 | V91: 0.369 | W91: 97.279999 | X91: 200109 | Y91: 200009 | Z91: 2000-09-15 | AA91: 6 | AB91: 1 | AC91: 1.442 | AD91: 0.01482319094
A92: 77 | B92: 2020-01-28 | C92: 325.059998 | D92: 327.850006 | E92: 323.600006 | F92: 326.890015 | G92: 63834000 | H92: 324.979034 | I92: 0.9941540551 | J92: 1 | K92: 323.16 | L92: 325.93 | M92: 321.71 | N92: 324.98 | O92: 63834000 | U92: 2001-06-15 | V92: 0.346 | W92: 121.849998 | X92: 200106 | Y92: 200006 | Z92: 2000-06-16 | AA92: 7 | AB92: 1 | AC92: 1.448 | AD92: 0.01188346347
A93: 78 | B93: 2020-01-27 | C93: 323.029999 | D93: 325.119995 | E93: 322.660004 | F93: 323.5 | G93: 84062500 | H93: 321.608856 | I93: 0.9941541144 | J93: 1 | K93: 321.14 | L93: 323.22 | M93: 320.77 | N93: 321.61 | O93: 84062500 | U93: 2001-03-16 | V93: 0.316 | W93: 115.010002 | X93: 200103 | Y93: 200003 | Z93: 2000-03-17 | AA93: 7 | AB93: 1 | AC93: 1.45 | AD93: 0.01260759912
A94: 79 | B94: 2020-01-24 | C94: 332.440002 | D94: 332.529999 | E94: 327.359985 | F94: 328.769989 | G94: 87578400 | H94: 326.848022 | I94: 0.994154068 | J94: 1 | K94: 330.5 | L94: 330.59 | M94: 325.45 | N94: 326.85 | O94: 87578400 | U94: 2000-12-27 | V94: 0 | W94: 133.3125 | X94: 200012 | Y94: 199912 | Z94: 1999-12-17 | AA94: 7 | AB94: 1 | AC94: 1.505 | AD94: 0.01128926395
A95: 80 | B95: 2020-01-23 | C95: 330.630005 | D95: 332.170013 | E95: 329.410004 | F95: 331.720001 | G95: 51963000 | H95: 329.780792 | I95: 0.9941540788 | J95: 1 | K95: 328.7 | L95: 330.23 | M95: 327.48 | N95: 329.78 | O95: 51963000 | U95: 2000-12-15 | V95: 0.411 | W95: 130.96875 | X95: 200012 | Y95: 199912 | Z95: 1999-12-17 | AA95: 6 | AB95: 1 | AC95: 1.505 | AD95: 0.01149129086
A96: 81 | B96: 2020-01-22 | C96: 332.23999 | D96: 332.950012 | E96: 331.170013 | F96: 331.339996 | G96: 48914900 | H96: 329.403015 | I96: 0.9941540984 | J96: 1 | K96: 330.3 | L96: 331 | M96: 329.23 | N96: 329.4 | O96: 48914900 | U96: 2000-09-15 | V96: 0.375 | W96: 146 | X96: 200009 | Y96: 199909 | Z96: 1999-09-17 | AA96: 6 | AB96: 1 | AC96: 1.442 | AD96: 0.009876712329
A97: 82 | B97: 2020-01-21 | C97: 330.899994 | D97: 332.179993 | E97: 330.820007 | F97: 331.299988 | G97: 77742400 | H97: 329.363251 | I97: 0.994154129 | J97: 1 | K97: 328.97 | L97: 330.24 | M97: 328.89 | N97: 329.36 | O97: 77742400 | U97: 2000-09-14 | V97: 0 | W97: 149.640625 | X97: 200009 | Y97: 199909 | Z97: 1999-09-17 | AA97: 5 | AB97: 1 | AC97: 1.067 | AD97: 0.007130416623
A98: 83 | B98: 2020-01-17 | C98: 331.700012 | D98: 332.179993 | E98: 330.850006 | F98: 331.950012 | G98: 95846000 | H98: 330.00946 | I98: 0.9941540837 | J98: 1 | K98: 329.76 | L98: 330.24 | M98: 328.92 | N98: 330.01 | O98: 95846000 | U98: 2000-06-16 | V98: 0.348 | W98: 146.59375 | X98: 200006 | Y98: 199906 | Z98: 1999-06-18 | AA98: 5 | AB98: 1 | AC98: 1.439 | AD98: 0.009816243871
A99: 84 | B99: 2020-01-16 | C99: 329.700012 | D99: 330.920013 | E99: 329.450012 | F99: 330.920013 | G99: 54050300 | H99: 328.985474 | I99: 0.9941540586 | J99: 1 | K99: 327.77 | L99: 328.99 | M99: 327.52 | N99: 328.99 | O99: 54050300 | U99: 2000-03-17 | V99: 0.371 | W99: 146.9375 | X99: 200003 | Y99: 199903 | Z99: 1999-03-19 | AA99: 5 | AB99: 1 | AC99: 1.496 | AD99: 0.01018119949
A100: 85 | B100: 2020-01-15 | C100: 327.350006 | D100: 329.019989 | E100: 327.26001 | F100: 328.190002 | G100: 72056600 | H100: 326.271423 | I100: 0.9941540602 | J100: 1 | K100: 325.44 | L100: 327.1 | M100: 325.35 | N100: 326.27 | O100: 72056600 | U100: 1999-12-17 | V100: 0.348 | W100: 142.6875 | X100: 199912 | Y100: 199812 | Z100: 1998-12-18 | AA100: 5 | AB100: 1 | AC100: 1.445 | AD100: 0.01012702584
A101: 86 | B101: 2020-01-14 | C101: 327.470001 | D101: 328.619995 | E101: 326.839996 | F101: 327.450012 | G101: 62832800 | H101: 325.535767 | I101: 0.9941540848 | J101: 1 | K101: 325.56 | L101: 326.7 | M101: 324.93 | N101: 325.54 | O101: 62832800 | U101: 1999-09-17 | V101: 0.372 | W101: 133.75 | X101: 199909 | Y101: 199809 | Z101: 1998-09-18 | AA101: 5 | AB101: 1 | AC101: 1.489 | AD101: 0.01113271028
A102: 87 | B102: 2020-01-13 | C102: 326.390015 | D102: 327.959991 | E102: 325.920013 | F102: 327.950012 | G102: 47086800 | H102: 326.032837 | I102: 0.9941540633 | J102: 1 | K102: 324.48 | L102: 326.04 | M102: 324.01 | N102: 326.03 | O102: 47086800 | U102: 1999-06-18 | V102: 0.405 | W102: 134.3125 | X102: 199906 | Y102: 199806 | Z102: 1998-06-19 | AA102: 5 | AB102: 1 | AC102: 1.476 | AD102: 0.01098929735
A103: 88 | B103: 2020-01-10 | C103: 327.290009 | D103: 327.459991 | E103: 325.200012 | F103: 325.709991 | G103: 53029300 | H103: 323.805908 | I103: 0.9941540541 | J103: 1 | K103: 325.38 | L103: 325.55 | M103: 323.3 | N103: 323.81 | O103: 53029300 | U103: 1999-03-19 | V103: 0.32 | W103: 129.6875 | X103: 199903 | Y103: 199803 | Z103: 1998-03-20 | AA103: 5 | AB103: 1 | AC103: 1.423 | AD103: 0.01097253012
A104: 89 | B104: 2020-01-09 | C104: 326.160004 | D104: 326.730011 | E104: 325.519989 | F104: 326.649994 | G104: 48473300 | H104: 324.740417 | I104: 0.9941540578 | J104: 1 | K104: 324.25 | L104: 324.82 | M104: 323.62 | N104: 324.74 | O104: 48473300 | U104: 1998-12-18 | V104: 0.392 | W104: 118.5 | X104: 199812 | Y104: 199712 | Z104: 1997-12-19 | AA104: 5 | AB104: 1 | AC104: 1.416 | AD104: 0.01194936709
A105: 90 | B105: 2020-01-08 | C105: 322.940002 | D105: 325.779999 | E105: 322.670013 | F105: 324.450012 | G105: 68296000 | H105: 322.553314 | I105: 0.9941541133 | J105: 1 | K105: 321.05 | L105: 323.88 | M105: 320.78 | N105: 322.55 | O105: 68296000 | U105: 1998-09-18 | V105: 0.359 | W105: 102.09375 | X105: 199809 | Y105: 199709 | Z105: 1997-09-19 | AA105: 5 | AB105: 1 | AC105: 1.404 | AD105: 0.01375206612
A106: 91 | B106: 2020-01-07 | C106: 323.019989 | D106: 323.540009 | E106: 322.23999 | F106: 322.730011 | G106: 40496400 | H106: 320.843353 | I106: 0.9941540671 | J106: 1 | K106: 321.13 | L106: 321.65 | M106: 320.36 | N106: 320.84 | O106: 40496400 | U106: 1998-06-19 | V106: 0.352 | W106: 110.0625 | X106: 199806 | Y106: 199706 | Z106: 1997-06-20 | AA106: 5 | AB106: 1 | AC106: 1.393 | AD106: 0.0126564452
A107: 92 | B107: 2020-01-06 | C107: 320.48999 | D107: 323.730011 | E107: 320.359985 | F107: 323.640015 | G107: 55653900 | H107: 321.748047 | I107: 0.9941540974 | J107: 1 | K107: 318.62 | L107: 321.84 | M107: 318.49 | N107: 321.75 | O107: 55653900 | U107: 1998-03-20 | V107: 0.313 | W107: 109.875 | X107: 199803 | Y107: 199703 | Z107: 1997-03-21 | AA107: 5 | AB107: 1 | AC107: 1.391 | AD107: 0.01265984073
A108: 93 | B108: 2020-01-03 | C108: 321.160004 | D108: 323.640015 | E108: 321.100006 | F108: 322.410004 | G108: 77709700 | H108: 320.525238 | I108: 0.994154133 | J108: 1 | K108: 319.28 | L108: 321.75 | M108: 319.22 | N108: 320.53 | O108: 77709700 | U108: 1997-12-19 | V108: 0.38 | W108: 94.78125 | X108: 199712 | Y108: 199612 | Z108: 1996-12-20 | AA108: 5 | AB108: 1 | AC108: 1.377 | AD108: 0.01452818991
A109: 94 | B109: 2020-01-02 | C109: 323.540009 | D109: 324.890015 | E109: 322.529999 | F109: 324.869995 | G109: 59151200 | H109: 322.970825 | I109: 0.9941540615 | J109: 1 | K109: 321.65 | L109: 322.99 | M109: 320.64 | N109: 322.97 | O109: 59151200 | U109: 1997-09-19 | V109: 0.348 | W109: 95.03125 | X109: 199709 | Y109: 199609 | Z109: 1996-09-20 | AA109: 5 | AB109: 1 | AC109: 1.364 | AD109: 0.0143531733
A110: 95 | B110: 2019-12-31 | C110: 320.529999 | D110: 322.130005 | E110: 320.149994 | F110: 321.859985 | G110: 57077300 | H110: 319.978424 | I110: 0.9941541009 | J110: 1 | K110: 318.66 | L110: 320.25 | M110: 318.28 | N110: 319.98 | O110: 57077300 | U110: 1997-06-20 | V110: 0.35 | W110: 89.578125 | X110: 199706 | Y110: 199606 | Z110: 1996-06-21 | AA110: 5 | AB110: 1 | AC110: 1.368 | AD110: 0.01527158556
A111: 96 | B111: 2019-12-30 | C111: 322.950012 | D111: 323.100006 | E111: 320.549988 | F111: 321.079987 | G111: 49729100 | H111: 319.202972 | I111: 0.9941540579 | J111: 1 | K111: 321.06 | L111: 321.21 | M111: 318.68 | N111: 319.2 | O111: 49729100 | U111: 1997-03-21 | V111: 0.299 | W111: 78.4375 | X111: 199703 | Y111: 199603 | Z111: 1996-03-15 | AA111: 5 | AB111: 1 | AC111: 1.369 | AD111: 0.01745338645
A112: 97 | B112: 2019-12-27 | C112: 323.73999 | D112: 323.799988 | E112: 322.279999 | F112: 322.859985 | G112: 42528800 | H112: 320.972565 | I112: 0.9941540603 | J112: 1 | K112: 321.85 | L112: 321.91 | M112: 320.4 | N112: 320.97 | O112: 42528800 | U112: 1996-12-20 | V112: 0.367 | W112: 74.84375 | X112: 199612 | Y112: 199512 | Z112: 1995-12-15 | AA112: 5 | AB112: 1 | AC112: 1.355 | AD112: 0.01810438413
A113: 98 | B113: 2019-12-26 | C113: 321.649994 | D113: 322.950012 | E113: 321.640015 | F113: 322.940002 | G113: 30911200 | H113: 321.052124 | I113: 0.9941540906 | J113: 1 | K113: 319.77 | L113: 321.06 | M113: 319.76 | N113: 321.05 | O113: 30911200 | U113: 1996-09-20 | V113: 0.352 | W113: 68.640625 | X113: 199609 | Y113: 199509 | Z113: 1995-09-15 | AA113: 5 | AB113: 1 | AC113: 1.37 | AD113: 0.01995902572
A114: 99 | B114: 2019-12-24 | C114: 321.470001 | D114: 321.519989 | E114: 320.899994 | F114: 321.230011 | G114: 20270000 | H114: 319.352142 | I114: 0.9941541296 | J114: 1 | K114: 319.59 | L114: 319.64 | M114: 319.02 | N114: 319.35 | O114: 20270000 | U114: 1996-06-21 | V114: 0.351 | W114: 66.8125 | X114: 199606 | Y114: 199506 | Z114: 1995-06-16 | AA114: 5 | AB114: 1 | AC114: 1.33 | AD114: 0.01990645463
A115: 100 | B115: 2019-12-23 | C115: 321.589996 | D115: 321.649994 | E115: 321.059998 | F115: 321.220001 | G115: 52990000 | H115: 319.342194 | I115: 0.9941541405 | J115: 1 | K115: 319.71 | L115: 319.77 | M115: 319.18 | N115: 319.34 | O115: 52990000 | U115: 1996-03-15 | V115: 0.285 | W115: 64.125 | X115: 199603 | Y115: 199503 | Z115: 1995-03-17 | AA115: 5 | AB115: 1 | AC115: 1.295 | AD115: 0.02019493177
A116: 101 | B116: 2019-12-20 | C116: 320.459991 | D116: 321.970001 | E116: 319.390015 | F116: 320.730011 | G116: 147142100 | H116: 318.855042 | I116: 0.9941540581 | J116: 1 | K116: 318.59 | L116: 320.09 | M116: 317.52 | N116: 318.86 | O116: 147142100 | U116: 1995-12-15 | V116: 0.382 | W116: 61.8125 | X116: 199512 | Y116: 199412 | Z116: 1994-12-16 | AA116: 5 | AB116: 1 | AC116: 1.278 | AD116: 0.02067542973
A117: 102 | B117: 2019-12-19 | C117: 319.799988 | D117: 320.980011 | E117: 319.519989 | F117: 320.899994 | G117: 85310500 | H117: 317.463226 | I117: 0.9892902211 | J117: 1 | K117: 316.38 | L117: 317.54 | M117: 316.1 | N117: 317.46 | O117: 85310500 | U117: 1995-09-15 | V117: 0.312 | W117: 58.4375 | X117: 199509 | Y117: 199409 | Z117: 1994-09-19 | AA117: 5 | AB117: 1 | AC117: 1.259 | AD117: 0.02154438503
A118: 103 | B118: 2019-12-18 | C118: 320 | D118: 320.25 | E118: 319.529999 | F118: 319.589996 | G118: 48133000 | H118: 316.167267 | I118: 0.9892902499 | J118: 1 | K118: 316.57 | L118: 316.82 | M118: 316.11 | N118: 316.17 | O118: 48133000 | U118: 1995-06-16 | V118: 0.316 | W118: 53.96875 | X118: 199506 | Y118: 199406 | Z118: 1994-06-17 | AA118: 6 | AB118: 1 | AC118: 1.235 | AD118: 0.0228836132
A119: 104 | B119: 2019-12-17 | C119: 319.920013 | D119: 320.25 | E119: 319.480011 | F119: 319.570007 | G119: 61097700 | H119: 316.147491 | I119: 0.9892902465 | J119: 1 | K119: 316.49 | L119: 316.82 | M119: 316.06 | N119: 316.15 | O119: 61097700 | U119: 1995-03-17 | V119: 0.268 | W119: 49.5625 | X119: 199503 | Y119: 199403 | Z119: 1994-03-18 | AA119: 6 | AB119: 1 | AC119: 1.224 | AD119: 0.02469609079
A120: 105 | B120: 2019-12-16 | C120: 319.220001 | D120: 320.149994 | E120: 317.25 | F120: 319.5 | G120: 82749700 | H120: 316.078217 | I120: 0.9892901941 | J120: 1 | K120: 315.8 | L120: 316.72 | M120: 313.85 | N120: 316.08 | O120: 82749700 | U120: 1994-12-16 | V120: 0.363 | W120: 45.75 | X120: 199412 | Y120: 199312 | Z120: 1993-12-17 | AA120: 6 | AB120: 1 | AC120: 1.227 | AD120: 0.02681967213
A121: 106 | B121: 2019-12-13 | C121: 316.869995 | D121: 318.670013 | E121: 316.019989 | F121: 317.320007 | G121: 81503900 | H121: 313.9216 | I121: 0.9892902845 | J121: 1 | K121: 313.48 | L121: 315.26 | M121: 312.64 | N121: 313.92 | O121: 81503900 | U121: 1994-09-19 | V121: 0 | W121: 47.0625 | X121: 199409 | Y121: 199309 | Z121: 1993-09-17 | AA121: 6 | AB121: 1 | AC121: 1.181 | AD121: 0.02509428951
A122: 107 | B122: 2019-12-12 | C122: 314.429993 | D122: 317.98999 | E122: 314.170013 | F122: 317.130005 | G122: 96389600 | H122: 313.733612 | I122: 0.9892902187 | J122: 1 | K122: 311.06 | L122: 314.58 | M122: 310.81 | N122: 313.73 | O122: 96389600 | U122: 1994-09-16 | V122: 0.288 | W122: 47.015625 | X122: 199409 | Y122: 199309 | Z122: 1993-09-17 | AA122: 5 | AB122: 1 | AC122: 1.181 | AD122: 0.02511930874
A123: 108 | B123: 2019-12-11 | C123: 314.029999 | D123: 314.700012 | E123: 313.440002 | F123: 314.420013 | G123: 53429100 | H123: 311.052643 | I123: 0.9892902174 | J123: 1 | K123: 310.67 | L123: 311.33 | M123: 310.08 | N123: 311.05 | O123: 53429100 | U123: 1994-06-17 | V123: 0.305 | W123: 45.875 | X123: 199406 | Y123: 199306 | Z123: 1993-06-18 | AA123: 5 | AB123: 1 | AC123: 1.179 | AD123: 0.02570027248
A124: 109 | B124: 2019-12-10 | C124: 313.820007 | D124: 314.549988 | E124: 312.809998 | F124: 313.529999 | G124: 52649800 | H124: 310.17218 | I124: 0.9892902784 | J124: 1 | K124: 310.46 | L124: 311.18 | M124: 309.46 | N124: 310.17 | O124: 52649800 | U124: 1994-03-18 | V124: 0.271 | W124: 46.96875 | X124: 199403 | Y124: 199303 | Z124: 1993-03-19 | AA124: 5 | AB124: 1 | AC124: 1.192 | AD124: 0.02537857618
A125: 110 | B125: 2019-12-09 | C125: 314.440002 | D125: 315.179993 | E125: 313.799988 | F125: 313.880005 | G125: 34838500 | H125: 310.518433 | I125: 0.989290264 | J125: 1 | K125: 311.07 | L125: 311.8 | M125: 310.44 | N125: 310.52 | O125: 34838500 | U125: 1993-12-17 | V125: 0.317 | W125: 46.5625 | X125: 199312 | Y125: 199212 | Z125: 1993-03-19 | AA125: 4 | AB125: 0 | AC125: 1.134 | AD125: 0.02435436242
A126: 111 | B126: 2019-12-06 | C126: 314.119995 | D126: 315.309998 | E126: 314.109985 | F126: 314.869995 | G126: 48927000 | H126: 311.497803 | I126: 0.9892902085 | J126: 1 | K126: 310.76 | L126: 311.93 | M126: 310.75 | N126: 311.5 | O126: 48927000 | U126: 1993-09-17 | V126: 0.286 | W126: 45.8125 | X126: 199309 | Y126: 199209 | Z126: 1993-03-19 | AA126: 3 | AB126: 0 | AC126: 0.817 | AD126: 0.01783356071
A127: 112 | B127: 2019-12-05 | C127: 312.230011 | D127: 312.25 | E127: 310.579987 | F127: 312.019989 | G127: 40709000 | H127: 308.678314 | I127: 0.9892901894 | J127: 1 | K127: 308.89 | L127: 308.91 | M127: 307.25 | N127: 308.68 | O127: 40709000 | U127: 1993-06-18 | V127: 0.318 | W127: 44.5 | X127: 199306 | Y127: 199206 | Z127: 1993-03-19 | AA127: 2 | AB127: 0 | AC127: 0.531 | AD127: 0.01193258427
A128: 113 | B128: 2019-12-04 | C128: 310.700012 | D128: 312.119995 | E128: 310.320007 | F128: 311.459991 | G128: 49080000 | H128: 308.124329 | I128: 0.9892902392 | J128: 1 | K128: 307.37 | L128: 308.78 | M128: 307 | N128: 308.12 | O128: 49080000 | U128: 1993-03-19 | V128: 0.213 | W128: 45.03125 | X128: 199303 | Y128: 199203 | Z128: 1993-03-19 | AA128: 1 | AB128: 1 | AC128: 0.213 | AD128: 0.004730048577
A129: 114 | B129: 2019-12-03 | C129: 308.649994 | D129: 309.640015 | E129: 307.130005 | F129: 309.549988 | G129: 73941700 | H129: 306.234772 | I129: 0.989290208 | J129: 1 | K129: 305.34 | L129: 306.32 | M129: 303.84 | N129: 306.23 | O129: 73941700
A130: 115 | B130: 2019-12-02 | C130: 314.589996 | D130: 314.660004 | E130: 311.170013 | F130: 311.640015 | G130: 75767800 | H130: 308.302429 | I130: 0.9892902521 | J130: 1 | K130: 311.22 | L130: 311.29 | M130: 307.84 | N130: 308.3 | O130: 75767800
A131: 116 | B131: 2019-11-29 | C131: 314.859985 | D131: 315.130005 | E131: 314.059998 | F131: 314.309998 | G131: 36592700 | H131: 310.943817 | I131: 0.9892902516 | J131: 1 | K131: 311.49 | L131: 311.76 | M131: 310.7 | N131: 310.94 | O131: 36592700
A132: 117 | B132: 2019-11-27 | C132: 314.609985 | D132: 315.480011 | E132: 314.369995 | F132: 315.480011 | G132: 44444600 | H132: 312.101288 | I132: 0.9892902153 | J132: 1 | K132: 311.24 | L132: 312.1 | M132: 311 | N132: 312.1 | O132: 44444600
A133: 118 | B133: 2019-11-26 | C133: 313.410004 | D133: 314.279999 | E133: 313.059998 | F133: 314.079987 | G133: 37569000 | H133: 310.716248 | I133: 0.9892901836 | J133: 1 | K133: 310.05 | L133: 310.91 | M133: 309.71 | N133: 310.72 | O133: 37569000
A134: 119 | B134: 2019-11-25 | C134: 311.980011 | D134: 313.369995 | E134: 311.980011 | F134: 313.369995 | G134: 48647200 | H134: 310.013855 | I134: 0.989290168 | J134: 1 | K134: 308.64 | L134: 310.01 | M134: 308.64 | N134: 310.01 | O134: 48647200
A135: 120 | B135: 2019-11-22 | C135: 311.089996 | D135: 311.23999 | E135: 309.850006 | F135: 310.959991 | G135: 44850200 | H135: 307.629669 | I135: 0.9892901914 | J135: 1 | K135: 307.76 | L135: 307.91 | M135: 306.53 | N135: 307.63 | O135: 44850200
A136: 121 | B136: 2019-11-21 | C136: 310.890015 | D136: 311.01001 | E136: 309.390015 | F136: 310.269989 | G136: 54664700 | H136: 306.947052 | I136: 0.9892901759 | J136: 1 | K136: 307.56 | L136: 307.68 | M136: 306.08 | N136: 306.95 | O136: 54664700
A137: 122 | B137: 2019-11-20 | C137: 311.279999 | D137: 311.850006 | E137: 309.059998 | F137: 310.769989 | G137: 79406200 | H137: 307.441711 | I137: 0.9892902207 | J137: 1 | K137: 307.95 | L137: 308.51 | M137: 305.75 | N137: 307.44 | O137: 79406200
A138: 123 | B138: 2019-11-19 | C138: 312.679993 | D138: 312.690002 | E138: 311.220001 | F138: 311.929993 | G138: 67804700 | H138: 308.589294 | I138: 0.9892902283 | J138: 1 | K138: 309.33 | L138: 309.34 | M138: 307.89 | N138: 308.59 | O138: 67804700
A139: 124 | B139: 2019-11-18 | C139: 311.529999 | D139: 312.279999 | E139: 311.029999 | F139: 312.019989 | G139: 49228000 | H139: 308.678314 | I139: 0.9892901894 | J139: 1 | K139: 308.19 | L139: 308.94 | M139: 307.7 | N139: 308.68 | O139: 49228000
A140: 125 | B140: 2019-11-15 | C140: 311.019989 | D140: 311.839996 | E140: 310.26001 | F140: 311.790009 | G140: 62023600 | H140: 308.450806 | I140: 0.9892902181 | J140: 1 | K140: 307.69 | L140: 308.5 | M140: 306.94 | N140: 308.45 | O140: 62023600
A141: 126 | B141: 2019-11-14 | C141: 308.790009 | D141: 309.640015 | E141: 308.089996 | F141: 309.549988 | G141: 51219900 | H141: 306.234772 | I141: 0.989290208 | J141: 1 | K141: 305.48 | L141: 306.32 | M141: 304.79 | N141: 306.23 | O141: 51219900
A142: 127 | B142: 2019-11-13 | C142: 307.910004 | D142: 309.540009 | E142: 307.660004 | F142: 309.100006 | G142: 53917700 | H142: 305.789612 | I142: 0.989290217 | J142: 1 | K142: 304.61 | L142: 306.22 | M142: 304.37 | N142: 305.79 | O142: 53917700
A143: 128 | B143: 2019-11-12 | C143: 308.75 | D143: 309.98999 | E143: 308.149994 | F143: 309 | G143: 46484600 | H143: 305.690674 | I143: 0.9892902071 | J143: 1 | K143: 305.44 | L143: 306.67 | M143: 304.85 | N143: 305.69 | O143: 46484600
A144: 129 | B144: 2019-11-11 | C144: 307.420013 | D144: 308.540009 | E144: 307.269989 | F144: 308.350006 | G144: 35797300 | H144: 305.047638 | I144: 0.9892901964 | J144: 1 | K144: 304.13 | L144: 305.24 | M144: 303.98 | N144: 305.05 | O144: 35797300
A145: 130 | B145: 2019-11-08 | C145: 307.799988 | D145: 309 | E145: 307.029999 | F145: 308.940002 | G145: 49032100 | H145: 305.631317 | I145: =IF(F145=0,1,H145/F145) -> 0.9892902021 | J145: =INDEX(OFFSET($T$15,0,0,$S$13+1,1),MATCH(B145,OFFSET($Q$15,0,0,$S$13+1,1),-1)) -> 1 | K145: =ROUND($I145*C145,2) -> 304.5 | L145: =ROUND($I145*D145,2) -> 305.69 | M145: =ROUND($I145*E145,2) -> 303.74 | N145: =ROUND($I145*F145,2) -> 305.63 | O145: =G145*J145 -> 49032100
A146: 131 | B146: 2019-11-07 | C146: 308.570007 | D146: 309.649994 | E146: 307.660004 | F146: 308.179993 | G146: 54272300 | H146: 304.879456 | I146: 0.9892902295 | J146: 1 | K146: 305.27 | L146: 306.33 | M146: 304.37 | N146: 304.88 | O146: 54272300
A147: 132 | B147: 2019-11-06 | C147: 307.029999 | D147: 307.399994 | E147: 306.059998 | F147: 307.100006 | G147: 46487100 | H147: 303.811035 | I147: 0.9892902281 | J147: 1 | K147: 303.74 | L147: 304.11 | M147: 302.78 | N147: 303.81 | O147: 46487100
A148: 133 | B148: 2019-11-05 | C148: 307.589996 | D148: 307.920013 | E148: 306.709991 | F148: 307.029999 | G148: 42933200 | H148: 303.741791 | I148: 0.9892902713 | J148: 1 | K148: 304.3 | L148: 304.62 | M148: 303.43 | N148: 303.74 | O148: 42933200
A149: 134 | B149: 2019-11-04 | C149: 307.850006 | D149: 308 | E149: 306.959991 | F149: 307.369995 | G149: 60606900 | H149: 304.078156 | I149: 0.9892903047 | J149: 1 | K149: 304.55 | L149: 304.7 | M149: 303.67 | N149: 304.08 | O149: 60606900
A150: 135 | B150: 2019-11-01 | C150: 304.920013 | D150: 306.190002 | E150: 304.73999 | F150: 306.140015 | G150: 71141500 | H150: 302.861328 | I150: 0.989290237 | J150: 1 | K150: 301.65 | L150: 302.91 | M150: 301.48 | N150: 302.86 | O150: 71141500
A151: 136 | B151: 2019-10-31 | C151: 304.130005 | D151: 304.130005 | E151: 301.730011 | F151: 303.329987 | G151: 69053800 | H151: 300.081421 | I151: 0.9892903236 | J151: 1 | K151: 300.87 | L151: 300.87 | M151: 298.5 | N151: 300.08 | O151: 69053800
A152: 137 | B152: 2019-10-30 | C152: 303.429993 | D152: 304.549988 | E152: 301.98999 | F152: 304.140015 | G152: 49643900 | H152: 300.882721 | I152: 0.9892901498 | J152: 1 | K152: 300.18 | L152: 301.29 | M152: 298.76 | N152: 300.88 | O152: 49643900
A153: 138 | B153: 2019-10-29 | C153: 303 | D153: 304.230011 | E153: 302.859985 | F153: 303.209991 | G153: 44284900 | H153: 299.962708 | I153: 0.9892903166 | J153: 1 | K153: 299.75 | L153: 300.97 | M153: 299.62 | N153: 299.96 | O153: 44284900
A154: 139 | B154: 2019-10-28 | C154: 302.940002 | D154: 303.850006 | E154: 302.910004 | F154: 303.299988 | G154: 42147000 | H154: 300.051697 | I154: 0.989290171 | J154: 1 | K154: 299.7 | L154: 300.6 | M154: 299.67 | N154: 300.05 | O154: 42147000
A155: 140 | B155: 2019-10-25 | C155: 299.73999 | D155: 302.200012 | E155: 299.679993 | F155: 301.600006 | G155: 45205400 | H155: 298.369934 | I155: 0.9892902124 | J155: 1 | K155: 296.53 | L155: 298.96 | M155: 296.47 | N155: 298.37 | O155: 45205400
A156: 141 | B156: 2019-10-24 | C156: 300.910004 | D156: 301.070007 | E156: 299.459991 | F156: 300.369995 | G156: 35453100 | H156: 297.153107 | I156: 0.9892902485 | J156: 1 | K156: 297.69 | L156: 297.85 | M156: 296.25 | N156: 297.15 | O156: 35453100
A157: 142 | B157: 2019-10-23 | C157: 298.730011 | D157: 299.940002 | E157: 298.5 | F157: 299.880005 | G157: 34352200 | H157: 296.668335 | I157: 0.9892901496 | J157: 1 | K157: 295.53 | L157: 296.73 | M157: 295.3 | N157: 296.67 | O157: 34352200
A158: 143 | B158: 2019-10-22 | C158: 300.579987 | D158: 300.899994 | E158: 298.910004 | F158: 299.01001 | G158: 48594700 | H158: 295.807678 | I158: 0.9892902181 | J158: 1 | K158: 297.36 | L158: 297.68 | M158: 295.71 | N158: 295.81 | O158: 48594700
A159: 144 | B159: 2019-10-21 | C159: 299.420013 | D159: 300.209991 | E159: 298.940002 | F159: 299.98999 | G159: 39048600 | H159: 296.777161 | I159: 0.9892902127 | J159: 1 | K159: 296.21 | L159: 296.99 | M159: 295.74 | N159: 296.78 | O159: 39048600
A160: 145 | B160: 2019-10-18 | C160: 298.690002 | D160: 299.399994 | E160: 297.029999 | F160: 297.970001 | G160: 64304000 | H160: 294.778809 | I160: 0.9892902239 | J160: 1 | K160: 295.49 | L160: 296.19 | M160: 293.85 | N160: 294.78 | O160: 64304000
A161: 146 | B161: 2019-10-17 | C161: 299.679993 | D161: 300.23999 | E161: 298.519989 | F161: 299.279999 | G161: 45736600 | H161: 296.074768 | I161: 0.9892901931 | J161: 1 | K161: 296.47 | L161: 297.02 | M161: 295.32 | N161: 296.07 | O161: 45736600
A162: 147 | B162: 2019-10-16 | C162: 298.369995 | D162: 299.160004 | E162: 297.920013 | F162: 298.399994 | G162: 48928200 | H162: 295.204193 | I162: 0.9892902109 | J162: 1 | K162: 295.17 | L162: 295.96 | M162: 294.73 | N162: 295.2 | O162: 48928200
A163: 148 | B163: 2019-10-15 | C163: 297.100006 | D163: 299.700012 | E163: 296.970001 | F163: 298.880005 | G163: 46754500 | H163: 295.679077 | I163: 0.9892902571 | J163: 1 | K163: 293.92 | L163: 296.49 | M163: 293.79 | N163: 295.68 | O163: 46754500
A164: 149 | B164: 2019-10-14 | C164: 295.929993 | D164: 296.670013 | E164: 295.570007 | F164: 295.950012 | G164: 40394800 | H164: 292.780457 | I164: 0.9892902353 | J164: 1 | K164: 292.76 | L164: 293.49 | M164: 292.4 | N164: 292.78 | O164: 40394800
A165: 150 | B165: 2019-10-11 | C165: 296.269989 | D165: 298.73999 | E165: 296.140015 | F165: 296.279999 | G165: 98720400 | H165: 293.106903 | I165: 0.9892902119 | J165: 1 | K165: 293.1 | L165: 295.54 | M165: 292.97 | N165: 293.11 | O165: 98720400
A166: 151 | B166: 2019-10-10 | C166: 291.179993 | D166: 294.209991 | E166: 291 | F166: 293.23999 | G166: 55296300 | H166: 290.099457 | I166: 0.9892902295 | J166: 1 | K166: 288.06 | L166: 291.06 | M166: 287.88 | N166: 290.1 | O166: 55296300
A167: 152 | B167: 2019-10-09 | C167: 290.75 | D167: 292.299988 | E167: 290.059998 | F167: 291.269989 | G167: 62359400 | H167: 288.150574 | I167: 0.9892902973 | J167: 1 | K167: 287.64 | L167: 289.17 | M167: 286.95 | N167: 288.15 | O167: 62359400
A168: 153 | B168: 2019-10-08 | C168: 291.040009 | D168: 291.850006 | E168: 288.48999 | F168: 288.529999 | G168: 95708100 | H168: 285.439911 | I168: 0.9892902367 | J168: 1 | K168: 287.92 | L168: 288.72 | M168: 285.4 | N168: 285.44 | O168: 95708100
A169: 154 | B169: 2019-10-07 | C169: 293.470001 | D169: 295.26001 | E169: 292.769989 | F169: 293.079987 | G169: 59610500 | H169: 289.941162 | I169: 0.9892902104 | J169: 1 | K169: 290.33 | L169: 292.1 | M169: 289.63 | N169: 289.94 | O169: 59610500
A170: 155 | B170: 2019-10-04 | C170: 291.140015 | D170: 294.630005 | E170: 291.079987 | F170: 294.350006 | G170: 65091200 | H170: 291.197601 | I170: 0.9892902839 | J170: 1 | K170: 288.02 | L170: 291.47 | M170: 287.96 | N170: 291.2 | O170: 65091200
A171: 156 | B171: 2019-10-03 | C171: 287.809998 | D171: 290.450012 | E171: 284.820007 | F171: 290.420013 | G171: 85278800 | H171: 287.309692 | I171: 0.9892902663 | J171: 1 | K171: 284.73 | L171: 287.34 | M171: 281.77 | N171: 287.31 | O171: 85278800
A172: 157 | B172: 2019-10-02 | C172: 291.5 | D172: 291.51001 | E172: 286.640015 | F172: 288.059998 | G172: 122539500 | H172: 284.974945 | I172: 0.9892902415 | J172: 1 | K172: 288.38 | L172: 288.39 | M172: 283.57 | N172: 284.97 | O172: 122539500
A173: 158 | B173: 2019-10-01 | C173: 297.73999 | D173: 298.459991 | E173: 293 | F173: 293.23999 | G173: 88242400 | H173: 290.099457 | I173: 0.9892902295 | J173: 1 | K173: 294.55 | L173: 295.26 | M173: 289.86 | N173: 290.1 | O173: 88242400
A174: 159 | B174: 2019-09-30 | C174: 295.970001 | D174: 297.549988 | E174: 295.920013 | F174: 296.769989 | G174: 51662400 | H174: 293.591644 | I174: 0.9892902075 | J174: 1 | K174: 292.8 | L174: 294.36 | M174: 292.75 | N174: 293.59 | O174: 51662400
A175: 160 | B175: 2019-09-27 | C175: 297.829987 | D175: 297.950012 | E175: 293.690002 | F175: 295.399994 | G175: 84746600 | H175: 292.236328 | I175: 0.98929023 | J175: 1 | K175: 294.64 | L175: 294.76 | M175: 290.54 | N175: 292.24 | O175: 84746600
A176: 161 | B176: 2019-09-26 | C176: 297.630005 | D176: 297.859985 | E176: 295.450012 | F176: 297 | G176: 56179700 | H176: 293.819183 | I176: 0.9892901785 | J176: 1 | K176: 294.44 | L176: 294.67 | M176: 292.29 | N176: 293.82 | O176: 56179700
A177: 162 | B177: 2019-09-25 | C177: 295.959991 | D177: 298.109985 | E177: 294.329987 | F177: 297.619995 | G177: 71854000 | H177: 294.432556 | I177: 0.9892902391 | J177: 1 | K177: 292.79 | L177: 294.92 | M177: 291.18 | N177: 294.43 | O177: 71854000
A178: 163 | B178: 2019-09-24 | C178: 299.410004 | D178: 299.839996 | E178: 294.809998 | F178: 295.869995 | G178: 94869400 | H178: 292.701294 | I178: 0.9892902253 | J178: 1 | K178: 296.2 | L178: 296.63 | M178: 291.65 | N178: 292.7 | O178: 94869400
A179: 164 | B179: 2019-09-23 | C179: 297.549988 | D179: 299 | E179: 297.269989 | F179: 298.209991 | G179: 43476800 | H179: 295.016235 | I179: 0.9892902448 | J179: 1 | K179: 294.36 | L179: 295.8 | M179: 294.09 | N179: 295.02 | O179: 43476800
A180: 165 | B180: 2019-09-20 | C180: 300.359985 | D180: 300.670013 | E180: 297.410004 | F180: 298.279999 | G180: 89565000 | H180: 295.08548 | I180: 0.9892902004 | J180: 1 | K180: 297.14 | L180: 297.45 | M180: 294.22 | N180: 295.09 | O180: 89565000
A181: 166 | B181: 2019-09-19 | C181: 301.529999 | D181: 302.630005 | E181: 300.709991 | F181: 301.079987 | G181: 76560500 | H181: 296.486328 | I181: 0.9847427288 | J181: 1 | K181: 296.93 | L181: 298.01 | M181: 296.12 | N181: 296.49 | O181: 76560500
A182: 167 | B182: 2019-09-18 | C182: 300.48999 | D182: 301.220001 | E182: 298.23999 | F182: 301.100006 | G182: 73375800 | H182: 296.506042 | I182: 0.9847427303 | J182: 1 | K182: 295.91 | L182: 296.62 | M182: 293.69 | N182: 296.51 | O182: 73375800
A183: 168 | B183: 2019-09-17 | C183: 299.940002 | D183: 301.019989 | E183: 299.75 | F183: 300.920013 | G183: 41475500 | H183: 296.328766 | I183: 0.9847426333 | J183: 1 | K183: 295.36 | L183: 296.43 | M183: 295.18 | N183: 296.33 | O183: 41475500
A184: 169 | B184: 2019-09-16 | C184: 299.839996 | D184: 301.140015 | E184: 299.450012 | F184: 300.160004 | G184: 58191200 | H184: 295.580383 | I184: 0.9847427341 | J184: 1 | K184: 295.27 | L184: 296.55 | M184: 294.88 | N184: 295.58 | O184: 58191200
A185: 170 | B185: 2019-09-13 | C185: 301.779999 | D185: 302.170013 | E185: 300.679993 | F185: 301.089996 | G185: 62104800 | H185: 296.496185 | I185: 0.9847427312 | J185: 1 | K185: 297.18 | L185: 297.56 | M185: 296.09 | N185: 296.5 | O185: 62104800
A186: 171 | B186: 2019-09-12 | C186: 301.25 | D186: 302.459991 | E186: 300.410004 | F186: 301.290009 | G186: 72908700 | H186: 296.693115 | I186: 0.9847426272 | J186: 1 | K186: 296.65 | L186: 297.85 | M186: 295.83 | N186: 296.69 | O186: 72908700
A187: 172 | B187: 2019-09-11 | C187: 298.470001 | D187: 300.339996 | E187: 297.75 | F187: 300.25 | G187: 68821100 | H187: 295.669006 | I187: 0.9847427344 | J187: 1 | K187: 293.92 | L187: 295.76 | M187: 293.21 | N187: 295.67 | O187: 68821100
A188: 173 | B188: 2019-09-10 | C188: 297.359985 | D188: 298.200012 | E188: 295.970001 | F188: 298.130005 | G188: 57947100 | H188: 293.58136 | I188: 0.9847427467 | J188: 1 | K188: 292.82 | L188: 293.65 | M188: 291.45 | N188: 293.58 | O188: 57947100
A189: 174 | B189: 2019-09-09 | C189: 299.140015 | D189: 299.23999 | E189: 297.160004 | F189: 298.200012 | G189: 51260300 | H189: 293.650299 | I189: 0.9847427471 | J189: 1 | K189: 294.58 | L189: 294.67 | M189: 292.63 | N189: 293.65 | O189: 51260300
A190: 175 | B190: 2019-09-06 | C190: 298.170013 | D190: 298.76001 | E190: 297.420013 | F190: 298.049988 | G190: 49584300 | H190: 293.502533 | I190: 0.9847426432 | J190: 1 | K190: 293.62 | L190: 294.2 | M190: 292.88 | N190: 293.5 | O190: 49584300
A191: 176 | B191: 2019-09-05 | C191: 296.790009 | D191: 298.829987 | E191: 294 | F191: 297.820007 | G191: 83258100 | H191: 293.276093 | I191: 0.984742751 | J191: 1 | K191: 292.26 | L191: 294.27 | M191: 289.51 | N191: 293.28 | O191: 83258100
A192: 177 | B192: 2019-09-04 | C192: 293.140015 | D192: 294.059998 | E192: 292.309998 | F192: 294.040009 | G192: 46887300 | H192: 289.553772 | I192: 0.9847427668 | J192: 1 | K192: 288.67 | L192: 289.57 | M192: 287.85 | N192: 289.55 | O192: 46887300
A193: 178 | B193: 2019-09-03 | C193: 290.570007 | D193: 291.579987 | E193: 289.269989 | F193: 290.73999 | G193: 69101400 | H193: 286.304077 | I193: 0.9847426802 | J193: 1 | K193: 286.14 | L193: 287.13 | M193: 284.86 | N193: 286.3 | O193: 69101400
A194: 179 | B194: 2019-08-30 | C194: 294.220001 | D194: 294.23999 | E194: 291.420013 | F194: 292.450012 | G194: 62901200 | H194: 287.988037 | I194: 0.9847427772 | J194: 1 | K194: 289.73 | L194: 289.75 | M194: 286.97 | N194: 287.99 | O194: 62901200
A195: 180 | B195: 2019-08-29 | C195: 291.720001 | D195: 293.160004 | E195: 290.609985 | F195: 292.579987 | G195: 57899400 | H195: 288.115997 | I195: 0.984742668 | J195: 1 | K195: 287.27 | L195: 288.69 | M195: 286.18 | N195: 288.12 | O195: 57899400
A196: 181 | B196: 2019-08-28 | C196: 286.140015 | D196: 289.070007 | E196: 285.25 | F196: 288.890015 | G196: 59696700 | H196: 284.482361 | I196: 0.9847427956 | J196: 1 | K196: 281.77 | L196: 284.66 | M196: 280.9 | N196: 284.48 | O196: 59696700
A197: 182 | B197: 2019-08-27 | C197: 289.540009 | D197: 289.950012 | E197: 286.029999 | F197: 286.869995 | G197: 66668900 | H197: 282.493134 | I197: 0.984742702 | J197: 1 | K197: 285.12 | L197: 285.53 | M197: 281.67 | N197: 282.49 | O197: 66668900
A198: 183 | B198: 2019-08-26 | C198: 287.269989 | D198: 288 | E198: 285.579987 | F198: 288 | G198: 72423800 | H198: 283.605896 | I198: 0.9847426944 | J198: 1 | K198: 282.89 | L198: 283.61 | M198: 281.22 | N198: 283.61 | O198: 72423800
A199: 184 | B199: 2019-08-23 | C199: 290.920013 | D199: 292.76001 | E199: 283.470001 | F199: 284.850006 | G199: 149161500 | H199: 280.503998 | I199: 0.9847428193 | J199: 1 | K199: 286.48 | L199: 288.29 | M199: 279.15 | N199: 280.5 | O199: 149161500
A200: 185 | B200: 2019-08-22 | C200: 293.230011 | D200: 293.929993 | E200: 290.399994 | F200: 292.359985 | G200: 51666400 | H200: 287.899353 | I200: 0.9847426726 | J200: 1 | K200: 288.76 | L200: 289.45 | M200: 285.97 | N200: 287.9 | O200: 51666400
... 4300 more rows

Sheet CalculationsAndCharts
A1: TruncatedBandPass.xlsm
A2: =InputPriceData!A1 -> SPDR S&P 500 ETF Trust (SPY) -NYSEArca (Daily)
A4: User Charting Controls | E4: Click to Shift Chart One Bar:
A5: Data Control | C5: FALSE
A6: =InputPriceData!$B$10 -> 6874 | B6: Available Input Data Rows | E6: Earliest: | F6: =OFFSET(InputPriceData!B15,CalculationsAndCharts!A6,0,1,1) -> 1993-01-29
A7: =MAX(A33:A56896) -> 1250 | B7: Available Calculation Rows | E7: Latest: | F7: =OFFSET(InputPriceData!B15,1,0,1,1) -> 2020-05-15
A8: =MIN(AvailableInputRows-DataPanRows,A7) -> 1250 | B8: Logically Available for Calc / Plot | E8: $ Change: | F8: =G33-G34 -> -0.5
A10: Historical Price Windowing Specifications | F10: Click to Shift
A11: 85 | B11: Input Data Offset (Pan) | F11: Points to Plot
A12: 298 | B12: Data Points to Plot (Zoom)
B13: First: | C13: =OFFSET(B32,A12,0,1,1) -> 2018-11-06
B14: ="Last: " & IF(OFFSET(InputPriceData!P15,1+A11,0,1,1)="","",TEXT(OFFSET(InputPriceData!P15,1+A11,0,1,1),"H:MM AM/PM")) -> Last: | C14: =B33 -> 2020-01-14
A15: User Controls | C15: Coefficients Calculated From User Controls
A16: Bandpass & Trunc
A17: 20 | B17: Period | C17: L1 | D17: =COS(RADIANS(360/A17)) -> 0.9510565163
A18: 0.1 | B18: Bandwidth | C18: G1 | D18: =COS(RADIANS(A18*360/A17)) -> 0.9995065604 | R18: 1
A19: 10 | B19: Trunc Length | C19: S1 | D19: =1/D18-SQRT(1/(D18*D18)-1) -> 0.9690674172
C20: ="=0.5*(1-S1)" -> =0.5*(1-S1) | D20: =0.5*(1-D19) -> 0.0154662914
C21: ="=L1*(1+S1)" -> =L1*(1+S1) | D21: =D17*(1+D19) -> 1.872694398
A22: Voss Predictor
A23: 3 | B23: Predict | C23: Order | D23: =3*A23 -> 9
C24: (3 + Order)/2 | D24: =(3+D23)/2 -> 6
A25: Help! I would like to plot data
A26: From | B26: 2018-11-06 | C26: =OFFSET(InputPriceData!$A$15,MATCH(B26,OFFSET(InputPriceData!B15,1,0,InputPriceData!$B$10,1),0),0,1,1)-C27 -> 298 | E26: 249
A27: To | B27: 2020-01-14 | C27: =OFFSET(InputPriceData!$A$15,MATCH(B27,OFFSET(InputPriceData!$B$15,1,0,InputPriceData!$B$10,1),0),0,1,1)-1 -> 85 | E27: =$A$12-$E$26+1 -> 50
H28: Value @ Cursor => | I28: =OFFSET(A32,$E$27,0,1,1)&"(RR)" -> 50(RR) | J28: =OFFSET($B$32,E27,0,1,1) -> 2019-11-01 | K28: =TEXT(OFFSET(D32,$E$27,0,1,1),"#,##0.00")&"(o)" -> 304.92(o) | L28: =TEXT(OFFSET(E32,$E$27,0,1,1),"#,##0.00")&"(h)" -> 306.19(h) | M28: =TEXT(OFFSET(F32,$E$27,0,1,1),"#,##0.00")&"(l)" -> 304.74(l) | N28: =TEXT(OFFSET(G32,$E$27,0,1,1),"#,##0.00")&"(c)" -> 306.14(c) | O28: =TEXT(OFFSET(C32,$E$27,0,1,1),"#,##0.00,,""M""")&"(v)" -> 71.14M(v)
E29: Cursor ==> | T29: Bandpass Chart Content | AU29: Work Area For Chart Cursors
K30: Voss Predictor Calcs | T30: Work Area
A31: Rel Row | C31: ="Price Bars: " & InputPriceData!A1 -> Price Bars: SPDR S&P 500 ETF Trust (SPY) -NYSEArca (Daily) | H31: ="Bandpass (" & $A$17 & ", " & $A$18 & ")" -> Bandpass (20, 0.1) | I31: ="Trunc Bandpass (" & $A$17 & ", " & $A$18 & ", " & $A$19 & ")" -> Trunc Bandpass (20, 0.1, 10) | K31: ="Voss (" & $A$17 &", " &$A$18& ", " & $A$23& ")" -> Voss (20, 0.1, 3) | L31: ="SumC (" & $A$17 &", " &$A$18& ", " & $A$23& ")" -> SumC (20, 0.1, 3) | M31: Inverse Weights | N31: ="Trunc Voss (" & $A$17 &", " &$A$18 & ", " & $A$23& ", " & $A$19& ")" -> Trunc Voss (20, 0.1, 3, 10) | O31: ="SumC_TR (" & $A$17 &", " &$A$18& ", " & $A$23 & ", " & $A$19& ")" -> SumC_TR (20, 0.1, 3, 10) | T31: =IF(OR($R$18=1,$R$18=2),$H31,IF($R$18=3,$I31,$K31)) -> Bandpass (20, 0.1) | U31: =IF($R$18=1,$I31,IF($R$18=2,$K31,$N31)) -> Trunc Bandpass (20, 0.1, 10) | AP31: Used To Color Vol Bars
B32: Date | C32: Volume | D32: Open | E32: High | F32: Low | G32: Close | AP32: Up Vol | AQ32: Dn Vol | AU32: Volume Cursor | AV32: =MAX(OFFSET(C33,0,0,A12,1)) -> 255345600 | AW32: OBVM Cursor | AY32: Price Chart Cursor | BA32: Correl Cursor | BC32: Price Phasor Cursor | BE32: Trend State Cursor | BG32: Band Pass Cursor
A33: 1 | B33: =IF(A33>$A$8,"",OFFSET(InputPriceData!B$15,$A33+$A$11,0,1,1)) -> 2020-01-14 | C33: =IF($A33>$A$8,"",OFFSET(InputPriceData!G$15,CalculationsAndCharts!$A33+$A$11,IF($C$5,8,0),1,1)) -> 62832800 | D33: =IF(A33>$A$8,"",OFFSET(InputPriceData!C$15,CalculationsAndCharts!$A33+$A$11,IF($C$5,8,0),1,1)) -> 327.470001 | E33: =IF(A33>$A$8,"",OFFSET(InputPriceData!D$15,CalculationsAndCharts!$A33+$A$11,IF($C$5,8,0),1,1)) -> 328.619995 | F33: =IF(A33>$A$8,"",OFFSET(InputPriceData!E$15,CalculationsAndCharts!$A33+$A$11,IF($C$5,8,0),1,1)) -> 326.839996 | G33: =IF(A33>$A$8,"",OFFSET(InputPriceData!F$15,CalculationsAndCharts!$A33+$A$11,IF($C$5,8,0),1,1)) -> 327.450012 | H33: =IF($A33<($A$8-$A$19-2),$D$20*(G33-G35)+$D$21*H34-$D$19*H35,IF($A33<($A$8-$A$19),0,"")) -> 0.6970581643 | I33: =IF($A33>$A$8-$A$19-2,"",BPTrunc(G33,$A$17,$A$18,$A$19)) -> 0.3656118218 | K33: =IF($A33>$A$8-$A$19-2-$D$23,"",$D$24*H33-L33) -> 1.079815879 | L33: =IF($A33>$A$8-$A$19-2-$D$23,"",SUMPRODUCT(OFFSET($M$32,1,0,$D$23,1),OFFSET(K33,1,0,$D$23,1))) -> 3.102533107 | M33: =IF(A33>$D$23,"",($D$23-A33+1)/$D$23) -> 1 | N33: =IF($A33>$A$8-$A$19-2-$D$23,"",$D$24*I33-O33) -> 0.4985287651 | O33: =IF($A33>$A$8-$A$19-2-$D$23,"",SUMPRODUCT(OFFSET($M$32,1,0,$D$23,1),OFFSET(N33,1,0,$D$23,1))) -> 1.695142166 | T33: =IF(OR($R$18=1,$R$18=2),$H33,IF($R$18=3,$I33,$K33)) -> 0.6970581643 | U33: =IF($R$18=1,$I33,IF($R$18=2,$K33,$N33)) -> 0.3656118218 | AP33: =IF(G33>=D33,C33,NA()) ->  | AQ33: =IF(G33<D33,C33,NA()) -> 62832800 | AU33: =$E$27 -> 50 | AV33: 0 | AW33: =$E$27 -> 50 | AX33: 62500000 | AY33: =$E$27 -> 50 | AZ33: 227.9159951 | BA33: =$E$27 -> 50 | BB33: -3.5 | BC33: =$E$27 -> 50 | BD33: =IF(#REF!=1,-180,NA()) ->  | BE33: =$E$27 -> 50 | BF33: =IF(#REF!=1,-1,NA()) ->  | BG33: =$E$27 -> 50 | BH33: -3.5
A34: 2 | B34: =IF(A34>$A$8,"",OFFSET(InputPriceData!B$15,$A34+$A$11,0,1,1)) -> 2020-01-13 | C34: =IF(A34>$A$8,"",OFFSET(InputPriceData!G$15,CalculationsAndCharts!$A34+$A$11,IF($C$5,8,0),1,1)) -> 47086800 | D34: =IF(A34>$A$8,"",OFFSET(InputPriceData!C$15,CalculationsAndCharts!$A34+$A$11,IF($C$5,8,0),1,1)) -> 326.390015 | E34: =IF(A34>$A$8,"",OFFSET(InputPriceData!D$15,CalculationsAndCharts!$A34+$A$11,IF($C$5,8,0),1,1)) -> 327.959991 | F34: =IF(A34>$A$8,"",OFFSET(InputPriceData!E$15,CalculationsAndCharts!$A34+$A$11,IF($C$5,8,0),1,1)) -> 325.920013 | G34: =IF(A34>$A$8,"",OFFSET(InputPriceData!F$15,CalculationsAndCharts!$A34+$A$11,IF($C$5,8,0),1,1)) -> 327.950012 | H34: 0.5392467863 | I34: =IF($A34>$A$8-$A$19-2,"",BPTrunc(G34,$A$17,$A$18,$A$19)) -> 0.3147483249 | K34: =IF($A34>$A$8-$A$19-2-$D$23,"",$D$24*H34-L34) -> 1.092454004 | L34: 2.143026714 | M34: =IF(A34>$D$23,"",($D$23-A34+1)/$D$23) -> 0.8888888889 | N34: =IF($A34>$A$8-$A$19-2-$D$23,"",$D$24*I34-O34) -> 0.6538826486 | O34: 1.234607301 | T34: =IF(OR($R$18=1,$R$18=2),$H34,IF($R$18=3,$I34,$K34)) -> 0.5392467863 | U34: =IF($R$18=1,$I34,IF($R$18=2,$K34,$N34)) -> 0.3147483249 | AP34: =IF(G34>=D34,C34,NA()) -> 47086800 | AQ34: =IF(G34<D34,C34,NA()) ->  | AU34: =$E$27 -> 50 | AV34: =CEILING(AV32,10^INT(LOG10(AV32))/8) -> 262500000 | AW34: =$E$27 -> 50 | AX34: 125000000 | AY34: =$E$27 -> 50 | AZ34: 336.8354949 | BA34: =$E$27 -> 50 | BB34: 3.5 | BC34: =$E$27 -> 50 | BD34: =IF(#REF!=1,180,NA()) ->  | BE34: =$E$27 -> 50 | BF34: =IF(#REF!=1,1,NA()) ->  | BG34: =$E$27 -> 50 | BH34: 3.5
A35: 3 | B35: =IF(A35>$A$8,"",OFFSET(InputPriceData!B$15,$A35+$A$11,0,1,1)) -> 2020-01-10 | C35: =IF(A35>$A$8,"",OFFSET(InputPriceData!G$15,CalculationsAndCharts!$A35+$A$11,IF($C$5,8,0),1,1)) -> 53029300 | D35: =IF(A35>$A$8,"",OFFSET(InputPriceData!C$15,CalculationsAndCharts!$A35+$A$11,IF($C$5,8,0),1,1)) -> 327.290009 | E35: =IF(A35>$A$8,"",OFFSET(InputPriceData!D$15,CalculationsAndCharts!$A35+$A$11,IF($C$5,8,0),1,1)) -> 327.459991 | F35: =IF(A35>$A$8,"",OFFSET(InputPriceData!E$15,CalculationsAndCharts!$A35+$A$11,IF($C$5,8,0),1,1)) -> 325.200012 | G35: =IF(A35>$A$8,"",OFFSET(InputPriceData!F$15,CalculationsAndCharts!$A35+$A$11,IF($C$5,8,0),1,1)) -> 325.709991 | H35: 0.3505410846 | I35: =IF($A35>$A$8-$A$19-2,"",BPTrunc(G35,$A$17,$A$18,$A$19)) -> 0.2339273752 | K35: 1.04277824 | L35: 1.060468268 | M35: 0.7777777778 | N35: 0.5200808103 | O35: 0.8834834409 | T35: 0.3505410846 | U35: 0.2339273752 | AP35: =IF(G35>=D35,C35,NA()) ->  | AQ35: =IF(G35<D35,C35,NA()) -> 53029300
A36: 4 | B36: =IF(A36>$A$8,"",OFFSET(InputPriceData!B$15,$A36+$A$11,0,1,1)) -> 2020-01-09 | C36: =IF(A36>$A$8,"",OFFSET(InputPriceData!G$15,CalculationsAndCharts!$A36+$A$11,IF($C$5,8,0),1,1)) -> 48473300 | D36: =IF(A36>$A$8,"",OFFSET(InputPriceData!C$15,CalculationsAndCharts!$A36+$A$11,IF($C$5,8,0),1,1)) -> 326.160004 | E36: =IF(A36>$A$8,"",OFFSET(InputPriceData!D$15,CalculationsAndCharts!$A36+$A$11,IF($C$5,8,0),1,1)) -> 326.730011 | F36: =IF(A36>$A$8,"",OFFSET(InputPriceData!E$15,CalculationsAndCharts!$A36+$A$11,IF($C$5,8,0),1,1)) -> 325.519989 | G36: =IF(A36>$A$8,"",OFFSET(InputPriceData!F$15,CalculationsAndCharts!$A36+$A$11,IF($C$5,8,0),1,1)) -> 326.649994 | H36: 0.141699116 | I36: =IF($A36>$A$8-$A$19-2,"",BPTrunc(G36,$A$17,$A$18,$A$19)) -> 0.1702670216 | K36: 0.9234342676 | L36: -0.07323957148 | M36: 0.6666666667 | N36: 0.3771175695 | O36: 0.6444845599 | T36: 0.141699116 | U36: 0.1702670216 | AP36: =IF(G36>=D36,C36,NA()) -> 48473300 | AQ36: =IF(G36<D36,C36,NA()) -> 
A37: 5 | B37: =IF(A37>$A$8,"",OFFSET(InputPriceData!B$15,$A37+$A$11,0,1,1)) -> 2020-01-08 | C37: =IF(A37>$A$8,"",OFFSET(InputPriceData!G$15,CalculationsAndCharts!$A37+$A$11,IF($C$5,8,0),1,1)) -> 68296000 | D37: =IF(A37>$A$8,"",OFFSET(InputPriceData!C$15,CalculationsAndCharts!$A37+$A$11,IF($C$5,8,0),1,1)) -> 322.940002 | E37: =IF(A37>$A$8,"",OFFSET(InputPriceData!D$15,CalculationsAndCharts!$A37+$A$11,IF($C$5,8,0),1,1)) -> 325.779999 | F37: =IF(A37>$A$8,"",OFFSET(InputPriceData!E$15,CalculationsAndCharts!$A37+$A$11,IF($C$5,8,0),1,1)) -> 322.670013 | G37: =IF(A37>$A$8,"",OFFSET(InputPriceData!F$15,CalculationsAndCharts!$A37+$A$11,IF($C$5,8,0),1,1)) -> 324.450012 | H37: -0.06779171428 | I37: =IF($A37>$A$8-$A$19-2,"",BPTrunc(G37,$A$17,$A$18,$A$19)) -> 0.1310188262 | K37: 0.4678887019 | L37: -0.8746389876 | M37: 0.5555555556 | N37: 0.08097869012 | O37: 0.705134267 | T37: -0.06779171428 | U37: 0.1310188262 | AP37: 68296000
A38: 6 | B38: =IF(A38>$A$8,"",OFFSET(InputPriceData!B$15,$A38+$A$11,0,1,1)) -> 2020-01-07 | C38: =IF(A38>$A$8,"",OFFSET(InputPriceData!G$15,CalculationsAndCharts!$A38+$A$11,IF($C$5,8,0),1,1)) -> 40496400 | D38: =IF(A38>$A$8,"",OFFSET(InputPriceData!C$15,CalculationsAndCharts!$A38+$A$11,IF($C$5,8,0),1,1)) -> 323.019989 | E38: =IF(A38>$A$8,"",OFFSET(InputPriceData!D$15,CalculationsAndCharts!$A38+$A$11,IF($C$5,8,0),1,1)) -> 323.540009 | F38: =IF(A38>$A$8,"",OFFSET(InputPriceData!E$15,CalculationsAndCharts!$A38+$A$11,IF($C$5,8,0),1,1)) -> 322.23999 | G38: =IF(A38>$A$8,"",OFFSET(InputPriceData!F$15,CalculationsAndCharts!$A38+$A$11,IF($C$5,8,0),1,1)) -> 322.730011 | H38: -0.2146648175 | I38: =IF($A38>$A$8-$A$19-2,"",BPTrunc(G38,$A$17,$A$18,$A$19)) -> 0.1468437292 | K38: 0.2627548328 | L38: -1.550743738 | M38: 0.4444444444 | N38: 0.1046327729 | O38: 0.7764296023 | T38: -0.2146648175 | U38: 0.1468437292 | AQ38: 40496400
A39: 7 | B39: =IF(A39>$A$8,"",OFFSET(InputPriceData!B$15,$A39+$A$11,0,1,1)) -> 2020-01-06 | C39: =IF(A39>$A$8,"",OFFSET(InputPriceData!G$15,CalculationsAndCharts!$A39+$A$11,IF($C$5,8,0),1,1)) -> 55653900 | D39: =IF(A39>$A$8,"",OFFSET(InputPriceData!C$15,CalculationsAndCharts!$A39+$A$11,IF($C$5,8,0),1,1)) -> 320.48999 | E39: =IF(A39>$A$8,"",OFFSET(InputPriceData!D$15,CalculationsAndCharts!$A39+$A$11,IF($C$5,8,0),1,1)) -> 323.730011 | F39: =IF(A39>$A$8,"",OFFSET(InputPriceData!E$15,CalculationsAndCharts!$A39+$A$11,IF($C$5,8,0),1,1)) -> 320.359985 | G39: =IF(A39>$A$8,"",OFFSET(InputPriceData!F$15,CalculationsAndCharts!$A39+$A$11,IF($C$5,8,0),1,1)) -> 323.640015 | H39: -0.3319503179 | I39: =IF($A39>$A$8-$A$19-2,"",BPTrunc(G39,$A$17,$A$18,$A$19)) -> 0.1659998934 | K39: 0.06084338907 | L39: -2.052545297 | M39: 0.3333333333 | N39: 0.09192551923 | O39: 0.9040738414 | T39: -0.3319503179 | U39: 0.1659998934 | AP39: 55653900
A40: 8 | B40: =IF(A40>$A$8,"",OFFSET(InputPriceData!B$15,$A40+$A$11,0,1,1)) -> 2020-01-03 | C40: =IF(A40>$A$8,"",OFFSET(InputPriceData!G$15,CalculationsAndCharts!$A40+$A$11,IF($C$5,8,0),1,1)) -> 77709700 | D40: =IF(A40>$A$8,"",OFFSET(InputPriceData!C$15,CalculationsAndCharts!$A40+$A$11,IF($C$5,8,0),1,1)) -> 321.160004 | E40: =IF(A40>$A$8,"",OFFSET(InputPriceData!D$15,CalculationsAndCharts!$A40+$A$11,IF($C$5,8,0),1,1)) -> 323.640015 | F40: =IF(A40>$A$8,"",OFFSET(InputPriceData!E$15,CalculationsAndCharts!$A40+$A$11,IF($C$5,8,0),1,1)) -> 321.100006 | G40: =IF(A40>$A$8,"",OFFSET(InputPriceData!F$15,CalculationsAndCharts!$A40+$A$11,IF($C$5,8,0),1,1)) -> 322.410004 | H40: -0.4148600549 | I40: =IF($A40>$A$8-$A$19-2,"",BPTrunc(G40,$A$17,$A$18,$A$19)) -> 0.1899532879 | K40: -0.005229821366 | L40: -2.483930508 | M40: 0.2222222222 | N40: 0.2034735327 | O40: 0.9362461948 | T40: -0.4148600549 | U40: 0.1899532879 | AP40: 77709700
A41: 9 | B41: =IF(A41>$A$8,"",OFFSET(InputPriceData!B$15,$A41+$A$11,0,1,1)) -> 2020-01-02 | C41: =IF(A41>$A$8,"",OFFSET(InputPriceData!G$15,CalculationsAndCharts!$A41+$A$11,IF($C$5,8,0),1,1)) -> 59151200 | D41: =IF(A41>$A$8,"",OFFSET(InputPriceData!C$15,CalculationsAndCharts!$A41+$A$11,IF($C$5,8,0),1,1)) -> 323.540009 | E41: =IF(A41>$A$8,"",OFFSET(InputPriceData!D$15,CalculationsAndCharts!$A41+$A$11,IF($C$5,8,0),1,1)) -> 324.890015 | F41: =IF(A41>$A$8,"",OFFSET(InputPriceData!E$15,CalculationsAndCharts!$A41+$A$11,IF($C$5,8,0),1,1)) -> 322.529999 | G41: =IF(A41>$A$8,"",OFFSET(InputPriceData!F$15,CalculationsAndCharts!$A41+$A$11,IF($C$5,8,0),1,1)) -> 324.869995 | H41: -0.4787891984 | I41: =IF($A41>$A$8-$A$19-2,"",BPTrunc(G41,$A$17,$A$18,$A$19)) -> 0.1940929154 | K41: -0.190367069 | L41: -2.682368122 | M41: 0.1111111111 | N41: 0.3116846306 | O41: 0.8528728617 | T41: -0.4787891984 | U41: 0.1940929154 | AP41: 59151200
A42: 10 | B42: =IF(A42>$A$8,"",OFFSET(InputPriceData!B$15,$A42+$A$11,0,1,1)) -> 2019-12-31 | C42: =IF(A42>$A$8,"",OFFSET(InputPriceData!G$15,CalculationsAndCharts!$A42+$A$11,IF($C$5,8,0),1,1)) -> 57077300 | D42: =IF(A42>$A$8,"",OFFSET(InputPriceData!C$15,CalculationsAndCharts!$A42+$A$11,IF($C$5,8,0),1,1)) -> 320.529999 | E42: =IF(A42>$A$8,"",OFFSET(InputPriceData!D$15,CalculationsAndCharts!$A42+$A$11,IF($C$5,8,0),1,1)) -> 322.130005 | F42: =IF(A42>$A$8,"",OFFSET(InputPriceData!E$15,CalculationsAndCharts!$A42+$A$11,IF($C$5,8,0),1,1)) -> 320.149994 | G42: =IF(A42>$A$8,"",OFFSET(InputPriceData!F$15,CalculationsAndCharts!$A42+$A$11,IF($C$5,8,0),1,1)) -> 321.859985 | H42: -0.4883654454 | I42: =IF($A42>$A$8-$A$19-2,"",BPTrunc(G42,$A$17,$A$18,$A$19)) -> 0.1894256871 | K42: -0.6836101992 | L42: -2.246582473 | N42: -0.03966175621 | O42: 1.176215879 | T42: -0.4883654454 | U42: 0.1894256871 | AP42: 57077300
A43: 11 | B43: =IF(A43>$A$8,"",OFFSET(InputPriceData!B$15,$A43+$A$11,0,1,1)) -> 2019-12-30 | C43: =IF(A43>$A$8,"",OFFSET(InputPriceData!G$15,CalculationsAndCharts!$A43+$A$11,IF($C$5,8,0),1,1)) -> 49729100 | D43: =IF(A43>$A$8,"",OFFSET(InputPriceData!C$15,CalculationsAndCharts!$A43+$A$11,IF($C$5,8,0),1,1)) -> 322.950012 | E43: =IF(A43>$A$8,"",OFFSET(InputPriceData!D$15,CalculationsAndCharts!$A43+$A$11,IF($C$5,8,0),1,1)) -> 323.100006 | F43: =IF(A43>$A$8,"",OFFSET(InputPriceData!E$15,CalculationsAndCharts!$A43+$A$11,IF($C$5,8,0),1,1)) -> 320.549988 | G43: =IF(A43>$A$8,"",OFFSET(InputPriceData!F$15,CalculationsAndCharts!$A43+$A$11,IF($C$5,8,0),1,1)) -> 321.079987 | H43: -0.3891913613 | I43: =IF($A43>$A$8-$A$19-2,"",BPTrunc(G43,$A$17,$A$18,$A$19)) -> 0.2569809853 | K43: -0.6819638433 | L43: -1.653184325 | N43: 0.08989828192 | O43: 1.45198763 | T43: -0.3891913613 | U43: 0.2569809853 | AQ43: 49729100
A44: 12 | B44: =IF(A44>$A$8,"",OFFSET(InputPriceData!B$15,$A44+$A$11,0,1,1)) -> 2019-12-27 | C44: =IF(A44>$A$8,"",OFFSET(InputPriceData!G$15,CalculationsAndCharts!$A44+$A$11,IF($C$5,8,0),1,1)) -> 42528800 | D44: =IF(A44>$A$8,"",OFFSET(InputPriceData!C$15,CalculationsAndCharts!$A44+$A$11,IF($C$5,8,0),1,1)) -> 323.73999 | E44: =IF(A44>$A$8,"",OFFSET(InputPriceData!D$15,CalculationsAndCharts!$A44+$A$11,IF($C$5,8,0),1,1)) -> 323.799988 | F44: =IF(A44>$A$8,"",OFFSET(InputPriceData!E$15,CalculationsAndCharts!$A44+$A$11,IF($C$5,8,0),1,1)) -> 322.279999 | G44: =IF(A44>$A$8,"",OFFSET(InputPriceData!F$15,CalculationsAndCharts!$A44+$A$11,IF($C$5,8,0),1,1)) -> 322.859985 | H44: -0.2641068346 | I44: =IF($A44>$A$8-$A$19-2,"",BPTrunc(G44,$A$17,$A$18,$A$19)) -> 0.3176025488 | K44: -0.5117721121 | L44: -1.072868896 | N44: 0.3005633152 | O44: 1.605051978 | T44: -0.2641068346 | U44: 0.3176025488 | AQ44: 42528800
A45: 13 | B45: =IF(A45>$A$8,"",OFFSET(InputPriceData!B$15,$A45+$A$11,0,1,1)) -> 2019-12-26 | C45: =IF(A45>$A$8,"",OFFSET(InputPriceData!G$15,CalculationsAndCharts!$A45+$A$11,IF($C$5,8,0),1,1)) -> 30911200 | D45: =IF(A45>$A$8,"",OFFSET(InputPriceData!C$15,CalculationsAndCharts!$A45+$A$11,IF($C$5,8,0),1,1)) -> 321.649994 | E45: =IF(A45>$A$8,"",OFFSET(InputPriceData!D$15,CalculationsAndCharts!$A45+$A$11,IF($C$5,8,0),1,1)) -> 322.950012 | F45: =IF(A45>$A$8,"",OFFSET(InputPriceData!E$15,CalculationsAndCharts!$A45+$A$11,IF($C$5,8,0),1,1)) -> 321.640015 | G45: =IF(A45>$A$8,"",OFFSET(InputPriceData!F$15,CalculationsAndCharts!$A45+$A$11,IF($C$5,8,0),1,1)) -> 322.940002 | H45: -0.1384501842 | I45: =IF($A45>$A$8-$A$19-2,"",BPTrunc(G45,$A$17,$A$18,$A$19)) -> 0.358574464 | K45: -0.6110060224 | L45: -0.2196950829 | N45: 0.0995732094 | O45: 2.051873575 | T45: -0.1384501842 | U45: 0.358574464 | AP45: 30911200
A46: 14 | B46: =IF(A46>$A$8,"",OFFSET(InputPriceData!B$15,$A46+$A$11,0,1,1)) -> 2019-12-24 | C46: =IF(A46>$A$8,"",OFFSET(InputPriceData!G$15,CalculationsAndCharts!$A46+$A$11,IF($C$5,8,0),1,1)) -> 20270000 | D46: =IF(A46>$A$8,"",OFFSET(InputPriceData!C$15,CalculationsAndCharts!$A46+$A$11,IF($C$5,8,0),1,1)) -> 321.470001 | E46: =IF(A46>$A$8,"",OFFSET(InputPriceData!D$15,CalculationsAndCharts!$A46+$A$11,IF($C$5,8,0),1,1)) -> 321.519989 | F46: =IF(A46>$A$8,"",OFFSET(InputPriceData!E$15,CalculationsAndCharts!$A46+$A$11,IF($C$5,8,0),1,1)) -> 320.899994 | G46: =IF(A46>$A$8,"",OFFSET(InputPriceData!F$15,CalculationsAndCharts!$A46+$A$11,IF($C$5,8,0),1,1)) -> 321.230011 | H46: 0.03100052953 | I46: =IF($A46>$A$8-$A$19-2,"",BPTrunc(G46,$A$17,$A$18,$A$19)) -> 0.439825128 | K46: -0.6412455824 | L46: 0.8272487596 | N46: 0.1125660693 | O46: 2.526384699 | T46: 0.03100052953 | U46: 0.439825128 | AQ46: 20270000
A47: 15 | B47: =IF(A47>$A$8,"",OFFSET(InputPriceData!B$15,$A47+$A$11,0,1,1)) -> 2019-12-23 | C47: =IF(A47>$A$8,"",OFFSET(InputPriceData!G$15,CalculationsAndCharts!$A47+$A$11,IF($C$5,8,0),1,1)) -> 52990000 | D47: =IF(A47>$A$8,"",OFFSET(InputPriceData!C$15,CalculationsAndCharts!$A47+$A$11,IF($C$5,8,0),1,1)) -> 321.589996 | E47: =IF(A47>$A$8,"",OFFSET(InputPriceData!D$15,CalculationsAndCharts!$A47+$A$11,IF($C$5,8,0),1,1)) -> 321.649994 | F47: =IF(A47>$A$8,"",OFFSET(InputPriceData!E$15,CalculationsAndCharts!$A47+$A$11,IF($C$5,8,0),1,1)) -> 321.059998 | G47: =IF(A47>$A$8,"",OFFSET(InputPriceData!F$15,CalculationsAndCharts!$A47+$A$11,IF($C$5,8,0),1,1)) -> 321.220001 | H47: 0.2302282947 | I47: =IF($A47>$A$8-$A$19-2,"",BPTrunc(G47,$A$17,$A$18,$A$19)) -> 0.5144378542 | K47: -0.4557979937 | L47: 1.837167762 | N47: 0.4133301713 | O47: 2.673296954 | T47: 0.2302282947 | U47: 0.5144378542 | AQ47: 52990000
A48: 16 | B48: =IF(A48>$A$8,"",OFFSET(InputPriceData!B$15,$A48+$A$11,0,1,1)) -> 2019-12-20 | C48: =IF(A48>$A$8,"",OFFSET(InputPriceData!G$15,CalculationsAndCharts!$A48+$A$11,IF($C$5,8,0),1,1)) -> 147142100 | D48: =IF(A48>$A$8,"",OFFSET(InputPriceData!C$15,CalculationsAndCharts!$A48+$A$11,IF($C$5,8,0),1,1)) -> 320.459991 | E48: =IF(A48>$A$8,"",OFFSET(InputPriceData!D$15,CalculationsAndCharts!$A48+$A$11,IF($C$5,8,0),1,1)) -> 321.970001 | F48: =IF(A48>$A$8,"",OFFSET(InputPriceData!E$15,CalculationsAndCharts!$A48+$A$11,IF($C$5,8,0),1,1)) -> 319.390015 | G48: =IF(A48>$A$8,"",OFFSET(InputPriceData!F$15,CalculationsAndCharts!$A48+$A$11,IF($C$5,8,0),1,1)) -> 320.730011 | H48: 0.4208993582 | I48: =IF($A48>$A$8-$A$19-2,"",BPTrunc(G48,$A$17,$A$18,$A$19)) -> 0.5304964167 | K48: -0.1876308864 | L48: 2.713027035 | N48: 0.4847003711 | O48: 2.698278129 | T48: 0.4208993582 | U48: 0.5304964167 | AP48: 147142100
A49: 17 | B49: =IF(A49>$A$8,"",OFFSET(InputPriceData!B$15,$A49+$A$11,0,1,1)) -> 2019-12-19 | C49: =IF(A49>$A$8,"",OFFSET(InputPriceData!G$15,CalculationsAndCharts!$A49+$A$11,IF($C$5,8,0),1,1)) -> 85310500 | D49: =IF(A49>$A$8,"",OFFSET(InputPriceData!C$15,CalculationsAndCharts!$A49+$A$11,IF($C$5,8,0),1,1)) -> 319.799988 | E49: =IF(A49>$A$8,"",OFFSET(InputPriceData!D$15,CalculationsAndCharts!$A49+$A$11,IF($C$5,8,0),1,1)) -> 320.980011 | F49: =IF(A49>$A$8,"",OFFSET(InputPriceData!E$15,CalculationsAndCharts!$A49+$A$11,IF($C$5,8,0),1,1)) -> 319.519989 | G49: =IF(A49>$A$8,"",OFFSET(InputPriceData!F$15,CalculationsAndCharts!$A49+$A$11,IF($C$5,8,0),1,1)) -> 320.899994 | H49: 0.5809058143 | I49: =IF($A49>$A$8-$A$19-2,"",BPTrunc(G49,$A$17,$A$18,$A$19)) -> 0.5250537647 | K49: 0.03385841563 | L49: 3.45157647 | N49: 0.3481586824 | O49: 2.802163906 | T49: 0.5809058143 | U49: 0.5250537647 | AP49: 85310500
A50: 18 | B50: =IF(A50>$A$8,"",OFFSET(InputPriceData!B$15,$A50+$A$11,0,1,1)) -> 2019-12-18 | C50: =IF(A50>$A$8,"",OFFSET(InputPriceData!G$15,CalculationsAndCharts!$A50+$A$11,IF($C$5,8,0),1,1)) -> 48133000 | D50: =IF(A50>$A$8,"",OFFSET(InputPriceData!C$15,CalculationsAndCharts!$A50+$A$11,IF($C$5,8,0),1,1)) -> 320 | E50: =IF(A50>$A$8,"",OFFSET(InputPriceData!D$15,CalculationsAndCharts!$A50+$A$11,IF($C$5,8,0),1,1)) -> 320.25 | F50: =IF(A50>$A$8,"",OFFSET(InputPriceData!E$15,CalculationsAndCharts!$A50+$A$11,IF($C$5,8,0),1,1)) -> 319.529999 | G50: =IF(A50>$A$8,"",OFFSET(InputPriceData!F$15,CalculationsAndCharts!$A50+$A$11,IF($C$5,8,0),1,1)) -> 319.589996 | H50: 0.7064436365 | I50: =IF($A50>$A$8-$A$19-2,"",BPTrunc(G50,$A$17,$A$18,$A$19)) -> 0.5317902335 | K50: 0.2399260775 | L50: 3.998735742 | N50: 0.2456733331 | O50: 2.945068068 | T50: 0.7064436365 | U50: 0.5317902335 | AQ50: 48133000
A51: 19 | B51: =IF(A51>$A$8,"",OFFSET(InputPriceData!B$15,$A51+$A$11,0,1,1)) -> 2019-12-17 | C51: =IF(A51>$A$8,"",OFFSET(InputPriceData!G$15,CalculationsAndCharts!$A51+$A$11,IF($C$5,8,0),1,1)) -> 61097700 | D51: =IF(A51>$A$8,"",OFFSET(InputPriceData!C$15,CalculationsAndCharts!$A51+$A$11,IF($C$5,8,0),1,1)) -> 319.920013 | E51: =IF(A51>$A$8,"",OFFSET(InputPriceData!D$15,CalculationsAndCharts!$A51+$A$11,IF($C$5,8,0),1,1)) -> 320.25 | F51: =IF(A51>$A$8,"",OFFSET(InputPriceData!E$15,CalculationsAndCharts!$A51+$A$11,IF($C$5,8,0),1,1)) -> 319.480011 | G51: =IF(A51>$A$8,"",OFFSET(InputPriceData!F$15,CalculationsAndCharts!$A51+$A$11,IF($C$5,8,0),1,1)) -> 319.570007 | H51: 0.7869598951 | I51: =IF($A51>$A$8-$A$19-2,"",BPTrunc(G51,$A$17,$A$18,$A$19)) -> 0.5403474441 | K51: 0.58521099 | L51: 4.13654838 | N51: 0.4586679117 | O51: 2.783416753 | T51: 0.7869598951 | U51: 0.5403474441 | AQ51: 61097700
A52: 20 | B52: =IF(A52>$A$8,"",OFFSET(InputPriceData!B$15,$A52+$A$11,0,1,1)) -> 2019-12-16 | C52: =IF(A52>$A$8,"",OFFSET(InputPriceData!G$15,CalculationsAndCharts!$A52+$A$11,IF($C$5,8,0),1,1)) -> 82749700 | D52: =IF(A52>$A$8,"",OFFSET(InputPriceData!C$15,CalculationsAndCharts!$A52+$A$11,IF($C$5,8,0),1,1)) -> 319.220001 | E52: =IF(A52>$A$8,"",OFFSET(InputPriceData!D$15,CalculationsAndCharts!$A52+$A$11,IF($C$5,8,0),1,1)) -> 320.149994 | F52: =IF(A52>$A$8,"",OFFSET(InputPriceData!E$15,CalculationsAndCharts!$A52+$A$11,IF($C$5,8,0),1,1)) -> 317.25 | G52: =IF(A52>$A$8,"",OFFSET(InputPriceData!F$15,CalculationsAndCharts!$A52+$A$11,IF($C$5,8,0),1,1)) -> 319.5 | H52: 0.7932199982 | I52: =IF($A52>$A$8-$A$19-2,"",BPTrunc(G52,$A$17,$A$18,$A$19)) -> 0.4936633504 | K52: 0.7513658634 | L52: 4.007954126 | N52: 0.8277972381 | O52: 2.134182864 | T52: 0.7932199982 | U52: 0.4936633504 | AP52: 82749700
A53: 21 | B53: =IF(A53>$A$8,"",OFFSET(InputPriceData!B$15,$A53+$A$11,0,1,1)) -> 2019-12-13 | C53: =IF(A53>$A$8,"",OFFSET(InputPriceData!G$15,CalculationsAndCharts!$A53+$A$11,IF($C$5,8,0),1,1)) -> 81503900 | D53: =IF(A53>$A$8,"",OFFSET(InputPriceData!C$15,CalculationsAndCharts!$A53+$A$11,IF($C$5,8,0),1,1)) -> 316.869995 | E53: =IF(A53>$A$8,"",OFFSET(InputPriceData!D$15,CalculationsAndCharts!$A53+$A$11,IF($C$5,8,0),1,1)) -> 318.670013 | F53: =IF(A53>$A$8,"",OFFSET(InputPriceData!E$15,CalculationsAndCharts!$A53+$A$11,IF($C$5,8,0),1,1)) -> 316.019989 | G53: =IF(A53>$A$8,"",OFFSET(InputPriceData!F$15,CalculationsAndCharts!$A53+$A$11,IF($C$5,8,0),1,1)) -> 317.320007 | H53: 0.7567047397 | I53: =IF($A53>$A$8-$A$19-2,"",BPTrunc(G53,$A$17,$A$18,$A$19)) -> 0.3675058907 | K53: 0.9022089888 | L53: 3.63801945 | N53: 1.092181977 | O53: 1.112853367 | T53: 0.7567047397 | U53: 0.3675058907 | AP53: 81503900
A54: 22 | B54: =IF(A54>$A$8,"",OFFSET(InputPriceData!B$15,$A54+$A$11,0,1,1)) -> 2019-12-12 | C54: =IF(A54>$A$8,"",OFFSET(InputPriceData!G$15,CalculationsAndCharts!$A54+$A$11,IF($C$5,8,0),1,1)) -> 96389600 | D54: =IF(A54>$A$8,"",OFFSET(InputPriceData!C$15,CalculationsAndCharts!$A54+$A$11,IF($C$5,8,0),1,1)) -> 314.429993 | E54: =IF(A54>$A$8,"",OFFSET(InputPriceData!D$15,CalculationsAndCharts!$A54+$A$11,IF($C$5,8,0),1,1)) -> 317.98999 | F54: =IF(A54>$A$8,"",OFFSET(InputPriceData!E$15,CalculationsAndCharts!$A54+$A$11,IF($C$5,8,0),1,1)) -> 314.170013 | G54: =IF(A54>$A$8,"",OFFSET(InputPriceData!F$15,CalculationsAndCharts!$A54+$A$11,IF($C$5,8,0),1,1)) -> 317.130005 | H54: 0.6815952642 | I54: =IF($A54>$A$8-$A$19-2,"",BPTrunc(G54,$A$17,$A$18,$A$19)) -> 0.1868741218 | K54: 0.9516142409 | L54: 3.137957344 | N54: 0.9344775041 | O54: 0.1867672265 | T54: 0.6815952642 | U54: 0.1868741218 | AP54: 96389600
A55: 23 | B55: =IF(A55>$A$8,"",OFFSET(InputPriceData!B$15,$A55+$A$11,0,1,1)) -> 2019-12-11 | C55: =IF(A55>$A$8,"",OFFSET(InputPriceData!G$15,CalculationsAndCharts!$A55+$A$11,IF($C$5,8,0),1,1)) -> 53429100 | D55: =IF(A55>$A$8,"",OFFSET(InputPriceData!C$15,CalculationsAndCharts!$A55+$A$11,IF($C$5,8,0),1,1)) -> 314.029999 | E55: =IF(A55>$A$8,"",OFFSET(InputPriceData!D$15,CalculationsAndCharts!$A55+$A$11,IF($C$5,8,0),1,1)) -> 314.700012 | F55: =IF(A55>$A$8,"",OFFSET(InputPriceData!E$15,CalculationsAndCharts!$A55+$A$11,IF($C$5,8,0),1,1)) -> 313.440002 | G55: =IF(A55>$A$8,"",OFFSET(InputPriceData!F$15,CalculationsAndCharts!$A55+$A$11,IF($C$5,8,0),1,1)) -> 314.420013 | H55: 0.5825879971 | I55: =IF($A55>$A$8-$A$19-2,"",BPTrunc(G55,$A$17,$A$18,$A$19)) -> 0.0316252757 | K55: 0.8305286447 | L55: 2.664999338 | N55: 0.4787075522 | O55: -0.2889558981 | T55: 0.5825879971 | U55: 0.0316252757 | AP55: 53429100
A56: 24 | B56: =IF(A56>$A$8,"",OFFSET(InputPriceData!B$15,$A56+$A$11,0,1,1)) -> 2019-12-10 | C56: =IF(A56>$A$8,"",OFFSET(InputPriceData!G$15,CalculationsAndCharts!$A56+$A$11,IF($C$5,8,0),1,1)) -> 52649800 | D56: =IF(A56>$A$8,"",OFFSET(InputPriceData!C$15,CalculationsAndCharts!$A56+$A$11,IF($C$5,8,0),1,1)) -> 313.820007 | E56: =IF(A56>$A$8,"",OFFSET(InputPriceData!D$15,CalculationsAndCharts!$A56+$A$11,IF($C$5,8,0),1,1)) -> 314.549988 | F56: =IF(A56>$A$8,"",OFFSET(InputPriceData!E$15,CalculationsAndCharts!$A56+$A$11,IF($C$5,8,0),1,1)) -> 312.809998 | G56: =IF(A56>$A$8,"",OFFSET(InputPriceData!F$15,CalculationsAndCharts!$A56+$A$11,IF($C$5,8,0),1,1)) -> 313.529999 | H56: 0.4799384934 | I56: =IF($A56>$A$8-$A$19-2,"",BPTrunc(G56,$A$17,$A$18,$A$19)) -> -0.04530985451 | K56: 0.8800067417 | L56: 1.999624218 | N56: 0.1718172656 | O56: -0.4436763927 | T56: 0.4799384934 | U56: -0.04530985451 | AQ56: 52649800
A57: 25 | B57: =IF(A57>$A$8,"",OFFSET(InputPriceData!B$15,$A57+$A$11,0,1,1)) -> 2019-12-09 | C57: =IF(A57>$A$8,"",OFFSET(InputPriceData!G$15,CalculationsAndCharts!$A57+$A$11,IF($C$5,8,0),1,1)) -> 34838500 | D57: =IF(A57>$A$8,"",OFFSET(InputPriceData!C$15,CalculationsAndCharts!$A57+$A$11,IF($C$5,8,0),1,1)) -> 314.440002 | E57: =IF(A57>$A$8,"",OFFSET(InputPriceData!D$15,CalculationsAndCharts!$A57+$A$11,IF($C$5,8,0),1,1)) -> 315.179993 | F57: =IF(A57>$A$8,"",OFFSET(InputPriceData!E$15,CalculationsAndCharts!$A57+$A$11,IF($C$5,8,0),1,1)) -> 313.799988 | G57: =IF(A57>$A$8,"",OFFSET(InputPriceData!F$15,CalculationsAndCharts!$A57+$A$11,IF($C$5,8,0),1,1)) -> 313.880005 | H57: 0.3349014178 | I57: =IF($A57>$A$8-$A$19-2,"",BPTrunc(G57,$A$17,$A$18,$A$19)) -> -0.06900685283 | K57: 1.019335522 | L57: 0.9900729845 | N57: 0.02965245618 | O57: -0.4436935731 | T57: 0.3349014178 | U57: -0.06900685283 | AQ57: 34838500
A58: 26 | B58: =IF(A58>$A$8,"",OFFSET(InputPriceData!B$15,$A58+$A$11,0,1,1)) -> 2019-12-06 | C58: =IF(A58>$A$8,"",OFFSET(InputPriceData!G$15,CalculationsAndCharts!$A58+$A$11,IF($C$5,8,0),1,1)) -> 48927000 | D58: =IF(A58>$A$8,"",OFFSET(InputPriceData!C$15,CalculationsAndCharts!$A58+$A$11,IF($C$5,8,0),1,1)) -> 314.119995 | E58: =IF(A58>$A$8,"",OFFSET(InputPriceData!D$15,CalculationsAndCharts!$A58+$A$11,IF($C$5,8,0),1,1)) -> 315.309998 | F58: =IF(A58>$A$8,"",OFFSET(InputPriceData!E$15,CalculationsAndCharts!$A58+$A$11,IF($C$5,8,0),1,1)) -> 314.109985 | G58: =IF(A58>$A$8,"",OFFSET(InputPriceData!F$15,CalculationsAndCharts!$A58+$A$11,IF($C$5,8,0),1,1)) -> 314.869995 | H58: 0.1305427722 | I58: =IF($A58>$A$8-$A$19-2,"",BPTrunc(G58,$A$17,$A$18,$A$19)) -> -0.06616509125 | K58: 0.7914735818 | L58: -0.008216948301 | N58: -0.170575109 | O58: -0.2264154385 | T58: 0.1305427722 | U58: -0.06616509125 | AP58: 48927000
A59: 27 | B59: =IF(A59>$A$8,"",OFFSET(InputPriceData!B$15,$A59+$A$11,0,1,1)) -> 2019-12-05 | C59: =IF(A59>$A$8,"",OFFSET(InputPriceData!G$15,CalculationsAndCharts!$A59+$A$11,IF($C$5,8,0),1,1)) -> 40709000 | D59: =IF(A59>$A$8,"",OFFSET(InputPriceData!C$15,CalculationsAndCharts!$A59+$A$11,IF($C$5,8,0),1,1)) -> 312.230011 | E59: =IF(A59>$A$8,"",OFFSET(InputPriceData!D$15,CalculationsAndCharts!$A59+$A$11,IF($C$5,8,0),1,1)) -> 312.25 | F59: =IF(A59>$A$8,"",OFFSET(InputPriceData!E$15,CalculationsAndCharts!$A59+$A$11,IF($C$5,8,0),1,1)) -> 310.579987 | G59: =IF(A59>$A$8,"",OFFSET(InputPriceData!F$15,CalculationsAndCharts!$A59+$A$11,IF($C$5,8,0),1,1)) -> 312.019989 | H59: -0.06363556236 | I59: =IF($A59>$A$8-$A$19-2,"",BPTrunc(G59,$A$17,$A$18,$A$19)) -> -0.02468000406 | K59: 0.3720235691 | L59: -0.7538369433 | N59: -0.3255293364 | O59: 0.177449312 | T59: -0.06363556236 | U59: -0.02468000406 | AQ59: 40709000
A60: 28 | B60: =IF(A60>$A$8,"",OFFSET(InputPriceData!B$15,$A60+$A$11,0,1,1)) -> 2019-12-04 | C60: =IF(A60>$A$8,"",OFFSET(InputPriceData!G$15,CalculationsAndCharts!$A60+$A$11,IF($C$5,8,0),1,1)) -> 49080000 | D60: =IF(A60>$A$8,"",OFFSET(InputPriceData!C$15,CalculationsAndCharts!$A60+$A$11,IF($C$5,8,0),1,1)) -> 310.700012 | E60: =IF(A60>$A$8,"",OFFSET(InputPriceData!D$15,CalculationsAndCharts!$A60+$A$11,IF($C$5,8,0),1,1)) -> 312.119995 | F60: =IF(A60>$A$8,"",OFFSET(InputPriceData!E$15,CalculationsAndCharts!$A60+$A$11,IF($C$5,8,0),1,1)) -> 310.320007 | G60: =IF(A60>$A$8,"",OFFSET(InputPriceData!F$15,CalculationsAndCharts!$A60+$A$11,IF($C$5,8,0),1,1)) -> 311.459991 | H60: -0.2032599738 | I60: =IF($A60>$A$8-$A$19-2,"",BPTrunc(G60,$A$17,$A$18,$A$19)) -> 0.05242413408 | K60: 0.008655507291 | L60: -1.22821535 | N60: -0.3653801813 | O60: 0.6799249858 | T60: -0.2032599738 | U60: 0.05242413408 | AP60: 49080000
A61: 29 | B61: =IF(A61>$A$8,"",OFFSET(InputPriceData!B$15,$A61+$A$11,0,1,1)) -> 2019-12-03 | C61: =IF(A61>$A$8,"",OFFSET(InputPriceData!G$15,CalculationsAndCharts!$A61+$A$11,IF($C$5,8,0),1,1)) -> 73941700 | D61: =IF(A61>$A$8,"",OFFSET(InputPriceData!C$15,CalculationsAndCharts!$A61+$A$11,IF($C$5,8,0),1,1)) -> 308.649994 | E61: =IF(A61>$A$8,"",OFFSET(InputPriceData!D$15,CalculationsAndCharts!$A61+$A$11,IF($C$5,8,0),1,1)) -> 309.640015 | F61: =IF(A61>$A$8,"",OFFSET(InputPriceData!E$15,CalculationsAndCharts!$A61+$A$11,IF($C$5,8,0),1,1)) -> 307.130005 | G61: =IF(A61>$A$8,"",OFFSET(InputPriceData!F$15,CalculationsAndCharts!$A61+$A$11,IF($C$5,8,0),1,1)) -> 309.549988 | H61: -0.287705986 | I61: =IF($A61>$A$8-$A$19-2,"",BPTrunc(G61,$A$17,$A$18,$A$19)) -> 0.1493704721 | K61: -0.1509023178 | L61: -1.575333598 | N61: -0.2382819808 | O61: 1.134504814 | T61: -0.287705986 | U61: 0.1493704721 | AP61: 73941700
A62: 30 | B62: =IF(A62>$A$8,"",OFFSET(InputPriceData!B$15,$A62+$A$11,0,1,1)) -> 2019-12-02 | C62: =IF(A62>$A$8,"",OFFSET(InputPriceData!G$15,CalculationsAndCharts!$A62+$A$11,IF($C$5,8,0),1,1)) -> 75767800 | D62: =IF(A62>$A$8,"",OFFSET(InputPriceData!C$15,CalculationsAndCharts!$A62+$A$11,IF($C$5,8,0),1,1)) -> 314.589996 | E62: =IF(A62>$A$8,"",OFFSET(InputPriceData!D$15,CalculationsAndCharts!$A62+$A$11,IF($C$5,8,0),1,1)) -> 314.660004 | F62: =IF(A62>$A$8,"",OFFSET(InputPriceData!E$15,CalculationsAndCharts!$A62+$A$11,IF($C$5,8,0),1,1)) -> 311.170013 | G62: =IF(A62>$A$8,"",OFFSET(InputPriceData!F$15,CalculationsAndCharts!$A62+$A$11,IF($C$5,8,0),1,1)) -> 311.640015 | H62: -0.3491085471 | I62: =IF($A62>$A$8-$A$19-2,"",BPTrunc(G62,$A$17,$A$18,$A$19)) -> 0.2339786842 | K62: 0.08773332267 | L62: -2.182384605 | N62: 0.122784149 | O62: 1.281087956 | T62: -0.3491085471 | U62: 0.2339786842 | AQ62: 75767800
A63: 31 | B63: =IF(A63>$A$8,"",OFFSET(InputPriceData!B$15,$A63+$A$11,0,1,1)) -> 2019-11-29 | C63: =IF(A63>$A$8,"",OFFSET(InputPriceData!G$15,CalculationsAndCharts!$A63+$A$11,IF($C$5,8,0),1,1)) -> 36592700 | D63: =IF(A63>$A$8,"",OFFSET(InputPriceData!C$15,CalculationsAndCharts!$A63+$A$11,IF($C$5,8,0),1,1)) -> 314.859985 | E63: =IF(A63>$A$8,"",OFFSET(InputPriceData!D$15,CalculationsAndCharts!$A63+$A$11,IF($C$5,8,0),1,1)) -> 315.130005 | F63: =IF(A63>$A$8,"",OFFSET(InputPriceData!E$15,CalculationsAndCharts!$A63+$A$11,IF($C$5,8,0),1,1)) -> 314.059998 | G63: =IF(A63>$A$8,"",OFFSET(InputPriceData!F$15,CalculationsAndCharts!$A63+$A$11,IF($C$5,8,0),1,1)) -> 314.309998 | H63: -0.4537221338 | I63: =IF($A63>$A$8-$A$19-2,"",BPTrunc(G63,$A$17,$A$18,$A$19)) -> 0.2557887276 | K63: 0.2251146481 | L63: -2.947447451 | N63: 0.3723274562 | O63: 1.16240491 | T63: -0.4537221338 | U63: 0.2557887276 | AQ63: 36592700
A64: 32 | B64: =IF(A64>$A$8,"",OFFSET(InputPriceData!B$15,$A64+$A$11,0,1,1)) -> 2019-11-27 | C64: =IF(A64>$A$8,"",OFFSET(InputPriceData!G$15,CalculationsAndCharts!$A64+$A$11,IF($C$5,8,0),1,1)) -> 44444600 | D64: =IF(A64>$A$8,"",OFFSET(InputPriceData!C$15,CalculationsAndCharts!$A64+$A$11,IF($C$5,8,0),1,1)) -> 314.609985 | E64: =IF(A64>$A$8,"",OFFSET(InputPriceData!D$15,CalculationsAndCharts!$A64+$A$11,IF($C$5,8,0),1,1)) -> 315.480011 | F64: =IF(A64>$A$8,"",OFFSET(InputPriceData!E$15,CalculationsAndCharts!$A64+$A$11,IF($C$5,8,0),1,1)) -> 314.369995 | G64: =IF(A64>$A$8,"",OFFSET(InputPriceData!F$15,CalculationsAndCharts!$A64+$A$11,IF($C$5,8,0),1,1)) -> 315.480011 | H64: -0.5778388978 | I64: =IF($A64>$A$8-$A$19-2,"",BPTrunc(G64,$A$17,$A$18,$A$19)) -> 0.2279222709 | K64: -0.01530483246 | L64: -3.451728554 | N64: 0.4300451292 | O64: 0.9374884965 | T64: -0.5778388978 | U64: 0.2279222709 | AP64: 44444600
A65: 33 | B65: =IF(A65>$A$8,"",OFFSET(InputPriceData!B$15,$A65+$A$11,0,1,1)) -> 2019-11-26 | C65: =IF(A65>$A$8,"",OFFSET(InputPriceData!G$15,CalculationsAndCharts!$A65+$A$11,IF($C$5,8,0),1,1)) -> 37569000 | D65: =IF(A65>$A$8,"",OFFSET(InputPriceData!C$15,CalculationsAndCharts!$A65+$A$11,IF($C$5,8,0),1,1)) -> 313.410004 | E65: =IF(A65>$A$8,"",OFFSET(InputPriceData!D$15,CalculationsAndCharts!$A65+$A$11,IF($C$5,8,0),1,1)) -> 314.279999 | F65: =IF(A65>$A$8,"",OFFSET(InputPriceData!E$15,CalculationsAndCharts!$A65+$A$11,IF($C$5,8,0),1,1)) -> 313.059998 | G65: =IF(A65>$A$8,"",OFFSET(InputPriceData!F$15,CalculationsAndCharts!$A65+$A$11,IF($C$5,8,0),1,1)) -> 314.079987 | H65: -0.6447808532 | I65: =IF($A65>$A$8-$A$19-2,"",BPTrunc(G65,$A$17,$A$18,$A$19)) -> 0.1877082999 | K65: -0.4064443989 | L65: -3.46224072 | N65: 0.2988283564 | O65: 0.8274214431 | T65: -0.6447808532 | U65: 0.1877082999 | AP65: 37569000
A66: 34 | B66: =IF(A66>$A$8,"",OFFSET(InputPriceData!B$15,$A66+$A$11,0,1,1)) -> 2019-11-25 | C66: =IF(A66>$A$8,"",OFFSET(InputPriceData!G$15,CalculationsAndCharts!$A66+$A$11,IF($C$5,8,0),1,1)) -> 48647200 | D66: =IF(A66>$A$8,"",OFFSET(InputPriceData!C$15,CalculationsAndCharts!$A66+$A$11,IF($C$5,8,0),1,1)) -> 311.980011 | E66: =IF(A66>$A$8,"",OFFSET(InputPriceData!D$15,CalculationsAndCharts!$A66+$A$11,IF($C$5,8,0),1,1)) -> 313.369995 | F66: =IF(A66>$A$8,"",OFFSET(InputPriceData!E$15,CalculationsAndCharts!$A66+$A$11,IF($C$5,8,0),1,1)) -> 311.980011 | G66: =IF(A66>$A$8,"",OFFSET(InputPriceData!F$15,CalculationsAndCharts!$A66+$A$11,IF($C$5,8,0),1,1)) -> 313.369995 | H66: -0.6160608241 | I66: =IF($A66>$A$8-$A$19-2,"",BPTrunc(G66,$A$17,$A$18,$A$19)) -> 0.171338804 | K66: -0.8242904827 | L66: -2.872074462 | N66: 0.142498998 | O66: 0.8855338259 | T66: -0.6160608241 | U66: 0.171338804 | AP66: 48647200
A67: 35 | B67: =IF(A67>$A$8,"",OFFSET(InputPriceData!B$15,$A67+$A$11,0,1,1)) -> 2019-11-22 | C67: =IF(A67>$A$8,"",OFFSET(InputPriceData!G$15,CalculationsAndCharts!$A67+$A$11,IF($C$5,8,0),1,1)) -> 44850200 | D67: =IF(A67>$A$8,"",OFFSET(InputPriceData!C$15,CalculationsAndCharts!$A67+$A$11,IF($C$5,8,0),1,1)) -> 311.089996 | E67: =IF(A67>$A$8,"",OFFSET(InputPriceData!D$15,CalculationsAndCharts!$A67+$A$11,IF($C$5,8,0),1,1)) -> 311.23999 | F67: =IF(A67>$A$8,"",OFFSET(InputPriceData!E$15,CalculationsAndCharts!$A67+$A$11,IF($C$5,8,0),1,1)) -> 309.850006 | G67: =IF(A67>$A$8,"",OFFSET(InputPriceData!F$15,CalculationsAndCharts!$A67+$A$11,IF($C$5,8,0),1,1)) -> 310.959991 | H67: -0.4753622147 | I67: =IF($A67>$A$8-$A$19-2,"",BPTrunc(G67,$A$17,$A$18,$A$19)) -> 0.1880392048 | K67: -1.157932175 | L67: -1.694241113 | N67: -0.01696535937 | O67: 1.145200588 | T67: -0.4753622147 | U67: 0.1880392048 | AQ67: 44850200
A68: 36 | B68: =IF(A68>$A$8,"",OFFSET(InputPriceData!B$15,$A68+$A$11,0,1,1)) -> 2019-11-21 | C68: =IF(A68>$A$8,"",OFFSET(InputPriceData!G$15,CalculationsAndCharts!$A68+$A$11,IF($C$5,8,0),1,1)) -> 54664700 | D68: =IF(A68>$A$8,"",OFFSET(InputPriceData!C$15,CalculationsAndCharts!$A68+$A$11,IF($C$5,8,0),1,1)) -> 310.890015 | E68: =IF(A68>$A$8,"",OFFSET(InputPriceData!D$15,CalculationsAndCharts!$A68+$A$11,IF($C$5,8,0),1,1)) -> 311.01001 | F68: =IF(A68>$A$8,"",OFFSET(InputPriceData!E$15,CalculationsAndCharts!$A68+$A$11,IF($C$5,8,0),1,1)) -> 309.390015 | G68: =IF(A68>$A$8,"",OFFSET(InputPriceData!F$15,CalculationsAndCharts!$A68+$A$11,IF($C$5,8,0),1,1)) -> 310.269989 | H68: -0.2334220844 | I68: =IF($A68>$A$8-$A$19-2,"",BPTrunc(G68,$A$17,$A$18,$A$19)) -> 0.2386442801 | K68: -1.128997104 | L68: -0.2715354022 | N68: -0.04083784007 | O68: 1.472703521 | T68: -0.2334220844 | U68: 0.2386442801 | AQ68: 54664700
A69: 37 | B69: =IF(A69>$A$8,"",OFFSET(InputPriceData!B$15,$A69+$A$11,0,1,1)) -> 2019-11-20 | C69: =IF(A69>$A$8,"",OFFSET(InputPriceData!G$15,CalculationsAndCharts!$A69+$A$11,IF($C$5,8,0),1,1)) -> 79406200 | D69: =IF(A69>$A$8,"",OFFSET(InputPriceData!C$15,CalculationsAndCharts!$A69+$A$11,IF($C$5,8,0),1,1)) -> 311.279999 | E69: =IF(A69>$A$8,"",OFFSET(InputPriceData!D$15,CalculationsAndCharts!$A69+$A$11,IF($C$5,8,0),1,1)) -> 311.850006 | F69: =IF(A69>$A$8,"",OFFSET(InputPriceData!E$15,CalculationsAndCharts!$A69+$A$11,IF($C$5,8,0),1,1)) -> 309.059998 | G69: =IF(A69>$A$8,"",OFFSET(InputPriceData!F$15,CalculationsAndCharts!$A69+$A$11,IF($C$5,8,0),1,1)) -> 310.769989 | H69: 0.04248683891 | I69: =IF($A69>$A$8-$A$19-2,"",BPTrunc(G69,$A$17,$A$18,$A$19)) -> 0.295156955 | K69: -0.8204827565 | L69: 1.07540379 | N69: 0.1634605234 | O69: 1.607481207 | T69: 0.04248683891 | U69: 0.295156955 | AQ69: 79406200
A70: 38 | B70: =IF(A70>$A$8,"",OFFSET(InputPriceData!B$15,$A70+$A$11,0,1,1)) -> 2019-11-19 | C70: =IF(A70>$A$8,"",OFFSET(InputPriceData!G$15,CalculationsAndCharts!$A70+$A$11,IF($C$5,8,0),1,1)) -> 67804700 | D70: =IF(A70>$A$8,"",OFFSET(InputPriceData!C$15,CalculationsAndCharts!$A70+$A$11,IF($C$5,8,0),1,1)) -> 312.679993 | E70: =IF(A70>$A$8,"",OFFSET(InputPriceData!D$15,CalculationsAndCharts!$A70+$A$11,IF($C$5,8,0),1,1)) -> 312.690002 | F70: =IF(A70>$A$8,"",OFFSET(InputPriceData!E$15,CalculationsAndCharts!$A70+$A$11,IF($C$5,8,0),1,1)) -> 311.220001 | G70: =IF(A70>$A$8,"",OFFSET(InputPriceData!F$15,CalculationsAndCharts!$A70+$A$11,IF($C$5,8,0),1,1)) -> 311.929993 | H70: 0.2964838554 | I70: =IF($A70>$A$8-$A$19-2,"",BPTrunc(G70,$A$17,$A$18,$A$19)) -> 0.3130837765 | K70: -0.4415813125 | L70: 2.220484445 | N70: 0.4745392108 | O70: 1.403963448 | T70: 0.2964838554 | U70: 0.3130837765 | AQ70: 67804700
A71: 39 | B71: =IF(A71>$A$8,"",OFFSET(InputPriceData!B$15,$A71+$A$11,0,1,1)) -> 2019-11-18 | C71: =IF(A71>$A$8,"",OFFSET(InputPriceData!G$15,CalculationsAndCharts!$A71+$A$11,IF($C$5,8,0),1,1)) -> 49228000 | D71: =IF(A71>$A$8,"",OFFSET(InputPriceData!C$15,CalculationsAndCharts!$A71+$A$11,IF($C$5,8,0),1,1)) -> 311.529999 | E71: =IF(A71>$A$8,"",OFFSET(InputPriceData!D$15,CalculationsAndCharts!$A71+$A$11,IF($C$5,8,0),1,1)) -> 312.279999 | F71: =IF(A71>$A$8,"",OFFSET(InputPriceData!E$15,CalculationsAndCharts!$A71+$A$11,IF($C$5,8,0),1,1)) -> 311.029999 | G71: =IF(A71>$A$8,"",OFFSET(InputPriceData!F$15,CalculationsAndCharts!$A71+$A$11,IF($C$5,8,0),1,1)) -> 312.019989 | H71: 0.5091533811 | I71: =IF($A71>$A$8-$A$19-2,"",BPTrunc(G71,$A$17,$A$18,$A$19)) -> 0.2770046569 | K71: -0.1039407486 | L71: 3.158861035 | N71: 0.6004091475 | O71: 1.061618794 | T71: 0.5091533811 | U71: 0.2770046569 | AP71: 49228000
A72: 40 | B72: =IF(A72>$A$8,"",OFFSET(InputPriceData!B$15,$A72+$A$11,0,1,1)) -> 2019-11-15 | C72: =IF(A72>$A$8,"",OFFSET(InputPriceData!G$15,CalculationsAndCharts!$A72+$A$11,IF($C$5,8,0),1,1)) -> 62023600 | D72: =IF(A72>$A$8,"",OFFSET(InputPriceData!C$15,CalculationsAndCharts!$A72+$A$11,IF($C$5,8,0),1,1)) -> 311.019989 | E72: =IF(A72>$A$8,"",OFFSET(InputPriceData!D$15,CalculationsAndCharts!$A72+$A$11,IF($C$5,8,0),1,1)) -> 311.839996 | F72: =IF(A72>$A$8,"",OFFSET(InputPriceData!E$15,CalculationsAndCharts!$A72+$A$11,IF($C$5,8,0),1,1)) -> 310.26001 | G72: =IF(A72>$A$8,"",OFFSET(InputPriceData!F$15,CalculationsAndCharts!$A72+$A$11,IF($C$5,8,0),1,1)) -> 311.790009 | H72: 0.6802105311 | I72: =IF($A72>$A$8-$A$19-2,"",BPTrunc(G72,$A$17,$A$18,$A$19)) -> 0.2271248365 | K72: 0.03944003506 | L72: 4.041823151 | N72: 0.230821523 | O72: 1.131927496 | T72: 0.6802105311 | U72: 0.2271248365 | AP72: 62023600
A73: 41 | B73: =IF(A73>$A$8,"",OFFSET(InputPriceData!B$15,$A73+$A$11,0,1,1)) -> 2019-11-14 | C73: =IF(A73>$A$8,"",OFFSET(InputPriceData!G$15,CalculationsAndCharts!$A73+$A$11,IF($C$5,8,0),1,1)) -> 51219900 | D73: =IF(A73>$A$8,"",OFFSET(InputPriceData!C$15,CalculationsAndCharts!$A73+$A$11,IF($C$5,8,0),1,1)) -> 308.790009 | E73: =IF(A73>$A$8,"",OFFSET(InputPriceData!D$15,CalculationsAndCharts!$A73+$A$11,IF($C$5,8,0),1,1)) -> 309.640015 | F73: =IF(A73>$A$8,"",OFFSET(InputPriceData!E$15,CalculationsAndCharts!$A73+$A$11,IF($C$5,8,0),1,1)) -> 308.089996 | G73: =IF(A73>$A$8,"",OFFSET(InputPriceData!F$15,CalculationsAndCharts!$A73+$A$11,IF($C$5,8,0),1,1)) -> 309.549988 | H73: 0.828502549 | I73: =IF($A73>$A$8-$A$19-2,"",BPTrunc(G73,$A$17,$A$18,$A$19)) -> 0.2472756605 | K73: 0.1679555187 | L73: 4.803059775 | N73: -0.006596116122 | O73: 1.490250079 | T73: 0.828502549 | U73: 0.2472756605 | AP73: 51219900
A74: 42 | B74: =IF(A74>$A$8,"",OFFSET(InputPriceData!B$15,$A74+$A$11,0,1,1)) -> 2019-11-13 | C74: =IF(A74>$A$8,"",OFFSET(InputPriceData!G$15,CalculationsAndCharts!$A74+$A$11,IF($C$5,8,0),1,1)) -> 53917700 | D74: =IF(A74>$A$8,"",OFFSET(InputPriceData!C$15,CalculationsAndCharts!$A74+$A$11,IF($C$5,8,0),1,1)) -> 307.910004 | E74: =IF(A74>$A$8,"",OFFSET(InputPriceData!D$15,CalculationsAndCharts!$A74+$A$11,IF($C$5,8,0),1,1)) -> 309.540009 | F74: =IF(A74>$A$8,"",OFFSET(InputPriceData!E$15,CalculationsAndCharts!$A74+$A$11,IF($C$5,8,0),1,1)) -> 307.660004 | G74: =IF(A74>$A$8,"",OFFSET(InputPriceData!F$15,CalculationsAndCharts!$A74+$A$11,IF($C$5,8,0),1,1)) -> 309.100006 | H74: 0.9420664706 | I74: =IF($A74>$A$8-$A$19-2,"",BPTrunc(G74,$A$17,$A$18,$A$19)) -> 0.3133900856 | K74: 0.5172199449 | L74: 5.135178879 | N74: 0.1515216399 | O74: 1.728818873 | T74: 0.9420664706 | U74: 0.3133900856 | AP74: 53917700
A75: 43 | B75: =IF(A75>$A$8,"",OFFSET(InputPriceData!B$15,$A75+$A$11,0,1,1)) -> 2019-11-12 | C75: =IF(A75>$A$8,"",OFFSET(InputPriceData!G$15,CalculationsAndCharts!$A75+$A$11,IF($C$5,8,0),1,1)) -> 46484600 | D75: =IF(A75>$A$8,"",OFFSET(InputPriceData!C$15,CalculationsAndCharts!$A75+$A$11,IF($C$5,8,0),1,1)) -> 308.75 | E75: =IF(A75>$A$8,"",OFFSET(InputPriceData!D$15,CalculationsAndCharts!$A75+$A$11,IF($C$5,8,0),1,1)) -> 309.98999 | F75: =IF(A75>$A$8,"",OFFSET(InputPriceData!E$15,CalculationsAndCharts!$A75+$A$11,IF($C$5,8,0),1,1)) -> 308.149994 | G75: =IF(A75>$A$8,"",OFFSET(InputPriceData!F$15,CalculationsAndCharts!$A75+$A$11,IF($C$5,8,0),1,1)) -> 309 | H75: 0.974345346 | I75: =IF($A75>$A$8-$A$19-2,"",BPTrunc(G75,$A$17,$A$18,$A$19)) -> 0.360982666 | K75: 0.8212005792 | L75: 5.024871497 | N75: 0.2491496983 | O75: 1.916746298 | T75: 0.974345346 | U75: 0.360982666 | AP75: 46484600
A76: 44 | B76: =IF(A76>$A$8,"",OFFSET(InputPriceData!B$15,$A76+$A$11,0,1,1)) -> 2019-11-11 | C76: =IF(A76>$A$8,"",OFFSET(InputPriceData!G$15,CalculationsAndCharts!$A76+$A$11,IF($C$5,8,0),1,1)) -> 35797300 | D76: =IF(A76>$A$8,"",OFFSET(InputPriceData!C$15,CalculationsAndCharts!$A76+$A$11,IF($C$5,8,0),1,1)) -> 307.420013 | E76: =IF(A76>$A$8,"",OFFSET(InputPriceData!D$15,CalculationsAndCharts!$A76+$A$11,IF($C$5,8,0),1,1)) -> 308.540009 | F76: =IF(A76>$A$8,"",OFFSET(InputPriceData!E$15,CalculationsAndCharts!$A76+$A$11,IF($C$5,8,0),1,1)) -> 307.269989 | G76: =IF(A76>$A$8,"",OFFSET(InputPriceData!F$15,CalculationsAndCharts!$A76+$A$11,IF($C$5,8,0),1,1)) -> 308.350006 | H76: 0.9227266373 | I76: =IF($A76>$A$8-$A$19-2,"",BPTrunc(G76,$A$17,$A$18,$A$19)) -> 0.3977544754 | K76: 1.128296403 | L76: 4.408063421 | N76: 0.3618448378 | O76: 2.024682015 | T76: 0.9227266373 | U76: 0.3977544754 | AP76: 35797300
A77: 45 | B77: =IF(A77>$A$8,"",OFFSET(InputPriceData!B$15,$A77+$A$11,0,1,1)) -> 2019-11-08 | C77: =IF(A77>$A$8,"",OFFSET(InputPriceData!G$15,CalculationsAndCharts!$A77+$A$11,IF($C$5,8,0),1,1)) -> 49032100 | D77: =IF(A77>$A$8,"",OFFSET(InputPriceData!C$15,CalculationsAndCharts!$A77+$A$11,IF($C$5,8,0),1,1)) -> 307.799988 | E77: =IF(A77>$A$8,"",OFFSET(InputPriceData!D$15,CalculationsAndCharts!$A77+$A$11,IF($C$5,8,0),1,1)) -> 309 | F77: =IF(A77>$A$8,"",OFFSET(InputPriceData!E$15,CalculationsAndCharts!$A77+$A$11,IF($C$5,8,0),1,1)) -> 307.029999 | G77: =IF(A77>$A$8,"",OFFSET(InputPriceData!F$15,CalculationsAndCharts!$A77+$A$11,IF($C$5,8,0),1,1)) -> 308.940002 | H77: 0.778653365 | I77: =IF($A77>$A$8-$A$19-2,"",BPTrunc(G77,$A$17,$A$18,$A$19)) -> 0.4192878643 | K77: 1.335269801 | L77: 3.336650389 | N77: 0.3548353678 | O77: 2.160891818 | T77: 0.778653365 | U77: 0.4192878643 | AP77: 49032100
A78: 46 | B78: =IF(A78>$A$8,"",OFFSET(InputPriceData!B$15,$A78+$A$11,0,1,1)) -> 2019-11-07 | C78: =IF(A78>$A$8,"",OFFSET(InputPriceData!G$15,CalculationsAndCharts!$A78+$A$11,IF($C$5,8,0),1,1)) -> 54272300 | D78: =IF(A78>$A$8,"",OFFSET(InputPriceData!C$15,CalculationsAndCharts!$A78+$A$11,IF($C$5,8,0),1,1)) -> 308.570007 | E78: =IF(A78>$A$8,"",OFFSET(InputPriceData!D$15,CalculationsAndCharts!$A78+$A$11,IF($C$5,8,0),1,1)) -> 309.649994 | F78: =IF(A78>$A$8,"",OFFSET(InputPriceData!E$15,CalculationsAndCharts!$A78+$A$11,IF($C$5,8,0),1,1)) -> 307.660004 | G78: =IF(A78>$A$8,"",OFFSET(InputPriceData!F$15,CalculationsAndCharts!$A78+$A$11,IF($C$5,8,0),1,1)) -> 308.179993 | H78: 0.5552581983 | I78: =IF($A78>$A$8-$A$19-2,"",BPTrunc(G78,$A$17,$A$18,$A$19)) -> 0.4423041446 | K78: 1.2742477 | L78: 2.05730149 | N78: 0.2676185768 | O78: 2.386206291 | T78: 0.5552581983 | U78: 0.4423041446 | AQ78: 54272300
A79: 47 | B79: =IF(A79>$A$8,"",OFFSET(InputPriceData!B$15,$A79+$A$11,0,1,1)) -> 2019-11-06 | C79: =IF(A79>$A$8,"",OFFSET(InputPriceData!G$15,CalculationsAndCharts!$A79+$A$11,IF($C$5,8,0),1,1)) -> 46487100 | D79: =IF(A79>$A$8,"",OFFSET(InputPriceData!C$15,CalculationsAndCharts!$A79+$A$11,IF($C$5,8,0),1,1)) -> 307.029999 | E79: =IF(A79>$A$8,"",OFFSET(InputPriceData!D$15,CalculationsAndCharts!$A79+$A$11,IF($C$5,8,0),1,1)) -> 307.399994 | F79: =IF(A79>$A$8,"",OFFSET(InputPriceData!E$15,CalculationsAndCharts!$A79+$A$11,IF($C$5,8,0),1,1)) -> 306.059998 | G79: =IF(A79>$A$8,"",OFFSET(InputPriceData!F$15,CalculationsAndCharts!$A79+$A$11,IF($C$5,8,0),1,1)) -> 307.100006 | H79: 0.2988785523 | I79: =IF($A79>$A$8-$A$19-2,"",BPTrunc(G79,$A$17,$A$18,$A$19)) -> 0.4748446468 | K79: 1.151804848 | L79: 0.6414664656 | N79: 0.2295883965 | O79: 2.619479484 | T79: 0.2988785523 | U79: 0.4748446468 | AP79: 46487100
A80: 48 | B80: =IF(A80>$A$8,"",OFFSET(InputPriceData!B$15,$A80+$A$11,0,1,1)) -> 2019-11-05 | C80: =IF(A80>$A$8,"",OFFSET(InputPriceData!G$15,CalculationsAndCharts!$A80+$A$11,IF($C$5,8,0),1,1)) -> 42933200 | D80: =IF(A80>$A$8,"",OFFSET(InputPriceData!C$15,CalculationsAndCharts!$A80+$A$11,IF($C$5,8,0),1,1)) -> 307.589996 | E80: =IF(A80>$A$8,"",OFFSET(InputPriceData!D$15,CalculationsAndCharts!$A80+$A$11,IF($C$5,8,0),1,1)) -> 307.920013 | F80: =IF(A80>$A$8,"",OFFSET(InputPriceData!E$15,CalculationsAndCharts!$A80+$A$11,IF($C$5,8,0),1,1)) -> 306.709991 | G80: =IF(A80>$A$8,"",OFFSET(InputPriceData!F$15,CalculationsAndCharts!$A80+$A$11,IF($C$5,8,0),1,1)) -> 307.029999 | H80: 0.02294591088 | I80: =IF($A80>$A$8-$A$19-2,"",BPTrunc(G80,$A$17,$A$18,$A$19)) -> 0.4978688813 | K80: 1.074487745 | L80: -0.9368122796 | N80: 0.4837965148 | O80: 2.503416773 | T80: 0.02294591088 | U80: 0.4978688813 | AQ80: 42933200
A81: 49 | B81: =IF(A81>$A$8,"",OFFSET(InputPriceData!B$15,$A81+$A$11,0,1,1)) -> 2019-11-04 | C81: =IF(A81>$A$8,"",OFFSET(InputPriceData!G$15,CalculationsAndCharts!$A81+$A$11,IF($C$5,8,0),1,1)) -> 60606900 | D81: =IF(A81>$A$8,"",OFFSET(InputPriceData!C$15,CalculationsAndCharts!$A81+$A$11,IF($C$5,8,0),1,1)) -> 307.850006 | E81: =IF(A81>$A$8,"",OFFSET(InputPriceData!D$15,CalculationsAndCharts!$A81+$A$11,IF($C$5,8,0),1,1)) -> 308 | F81: =IF(A81>$A$8,"",OFFSET(InputPriceData!E$15,CalculationsAndCharts!$A81+$A$11,IF($C$5,8,0),1,1)) -> 306.959991 | G81: =IF(A81>$A$8,"",OFFSET(InputPriceData!F$15,CalculationsAndCharts!$A81+$A$11,IF($C$5,8,0),1,1)) -> 307.369995 | H81: -0.2683854574 | I81: =IF($A81>$A$8-$A$19-2,"",BPTrunc(G81,$A$17,$A$18,$A$19)) -> 0.4664957169 | K81: 0.8311368231 | L81: -2.441449568 | N81: 0.6184131092 | O81: 2.180561192 | T81: -0.2683854574 | U81: 0.4664957169 | AQ81: 60606900
A82: 50 | B82: =IF(A82>$A$8,"",OFFSET(InputPriceData!B$15,$A82+$A$11,0,1,1)) -> 2019-11-01 | C82: =IF(A82>$A$8,"",OFFSET(InputPriceData!G$15,CalculationsAndCharts!$A82+$A$11,IF($C$5,8,0),1,1)) -> 71141500 | D82: =IF(A82>$A$8,"",OFFSET(InputPriceData!C$15,CalculationsAndCharts!$A82+$A$11,IF($C$5,8,0),1,1)) -> 304.920013 | E82: =IF(A82>$A$8,"",OFFSET(InputPriceData!D$15,CalculationsAndCharts!$A82+$A$11,IF($C$5,8,0),1,1)) -> 306.190002 | F82: =IF(A82>$A$8,"",OFFSET(InputPriceData!E$15,CalculationsAndCharts!$A82+$A$11,IF($C$5,8,0),1,1)) -> 304.73999 | G82: =IF(A82>$A$8,"",OFFSET(InputPriceData!F$15,CalculationsAndCharts!$A82+$A$11,IF($C$5,8,0),1,1)) -> 306.140015 | H82: -0.5281212562 | I82: =IF($A82>$A$8-$A$19-2,"",BPTrunc(G82,$A$17,$A$18,$A$19)) -> 0.4160690659 | K82: 0.2290654371 | L82: -3.397792974 | N82: 0.4487700646 | O82: 2.047644331 | T82: -0.5281212562 | U82: 0.4160690659 | AP82: =IF(G82>=D82,C82,NA()) -> 71141500 | AQ82: =IF(G82<D82,C82,NA()) -> 
A83: 51 | B83: =IF(A83>$A$8,"",OFFSET(InputPriceData!B$15,$A83+$A$11,0,1,1)) -> 2019-10-31 | C83: =IF(A83>$A$8,"",OFFSET(InputPriceData!G$15,CalculationsAndCharts!$A83+$A$11,IF($C$5,8,0),1,1)) -> 69053800 | D83: =IF(A83>$A$8,"",OFFSET(InputPriceData!C$15,CalculationsAndCharts!$A83+$A$11,IF($C$5,8,0),1,1)) -> 304.130005 | E83: =IF(A83>$A$8,"",OFFSET(InputPriceData!D$15,CalculationsAndCharts!$A83+$A$11,IF($C$5,8,0),1,1)) -> 304.130005 | F83: =IF(A83>$A$8,"",OFFSET(InputPriceData!E$15,CalculationsAndCharts!$A83+$A$11,IF($C$5,8,0),1,1)) -> 301.730011 | G83: =IF(A83>$A$8,"",OFFSET(InputPriceData!F$15,CalculationsAndCharts!$A83+$A$11,IF($C$5,8,0),1,1)) -> 303.329987 | H83: -0.6791481251 | I83: =IF($A83>$A$8-$A$19-2,"",BPTrunc(G83,$A$17,$A$18,$A$19)) -> 0.3966328994 | K83: -0.2014578996 | L83: -3.873430851 | N83: 0.4967973399 | O83: 1.883000056 | T83: -0.6791481251 | U83: 0.3966328994 | AQ83: 69053800
A84: 52 | B84: =IF(A84>$A$8,"",OFFSET(InputPriceData!B$15,$A84+$A$11,0,1,1)) -> 2019-10-30 | C84: =IF(A84>$A$8,"",OFFSET(InputPriceData!G$15,CalculationsAndCharts!$A84+$A$11,IF($C$5,8,0),1,1)) -> 49643900 | D84: =IF(A84>$A$8,"",OFFSET(InputPriceData!C$15,CalculationsAndCharts!$A84+$A$11,IF($C$5,8,0),1,1)) -> 303.429993 | E84: =IF(A84>$A$8,"",OFFSET(InputPriceData!D$15,CalculationsAndCharts!$A84+$A$11,IF($C$5,8,0),1,1)) -> 304.549988 | F84: =IF(A84>$A$8,"",OFFSET(InputPriceData!E$15,CalculationsAndCharts!$A84+$A$11,IF($C$5,8,0),1,1)) -> 301.98999 | G84: =IF(A84>$A$8,"",OFFSET(InputPriceData!F$15,CalculationsAndCharts!$A84+$A$11,IF($C$5,8,0),1,1)) -> 304.140015 | H84: -0.7355350493 | I84: =IF($A84>$A$8-$A$19-2,"",BPTrunc(G84,$A$17,$A$18,$A$19)) -> 0.3633213616 | K84: -0.4248120824 | L84: -3.988398213 | N84: 0.672029898 | O84: 1.507898271 | T84: -0.7355350493 | U84: 0.3633213616 | AP84: 49643900
A85: 53 | B85: =IF(A85>$A$8,"",OFFSET(InputPriceData!B$15,$A85+$A$11,0,1,1)) -> 2019-10-29 | C85: =IF(A85>$A$8,"",OFFSET(InputPriceData!G$15,CalculationsAndCharts!$A85+$A$11,IF($C$5,8,0),1,1)) -> 44284900 | D85: =IF(A85>$A$8,"",OFFSET(InputPriceData!C$15,CalculationsAndCharts!$A85+$A$11,IF($C$5,8,0),1,1)) -> 303 | E85: =IF(A85>$A$8,"",OFFSET(InputPriceData!D$15,CalculationsAndCharts!$A85+$A$11,IF($C$5,8,0),1,1)) -> 304.230011 | F85: =IF(A85>$A$8,"",OFFSET(InputPriceData!E$15,CalculationsAndCharts!$A85+$A$11,IF($C$5,8,0),1,1)) -> 302.859985 | G85: =IF(A85>$A$8,"",OFFSET(InputPriceData!F$15,CalculationsAndCharts!$A85+$A$11,IF($C$5,8,0),1,1)) -> 303.209991 | H85: -0.7186583058 | I85: =IF($A85>$A$8-$A$19-2,"",BPTrunc(G85,$A$17,$A$18,$A$19)) -> 0.3005264971 | K85: -0.6663474252 | L85: -3.64560241 | N85: 0.6561757233 | O85: 1.146983259 | T85: -0.7186583058 | U85: 0.3005264971 | AP85: 44284900
A86: 54 | B86: =IF(A86>$A$8,"",OFFSET(InputPriceData!B$15,$A86+$A$11,0,1,1)) -> 2019-10-28 | C86: =IF(A86>$A$8,"",OFFSET(InputPriceData!G$15,CalculationsAndCharts!$A86+$A$11,IF($C$5,8,0),1,1)) -> 42147000 | D86: =IF(A86>$A$8,"",OFFSET(InputPriceData!C$15,CalculationsAndCharts!$A86+$A$11,IF($C$5,8,0),1,1)) -> 302.940002 | E86: =IF(A86>$A$8,"",OFFSET(InputPriceData!D$15,CalculationsAndCharts!$A86+$A$11,IF($C$5,8,0),1,1)) -> 303.850006 | F86: =IF(A86>$A$8,"",OFFSET(InputPriceData!E$15,CalculationsAndCharts!$A86+$A$11,IF($C$5,8,0),1,1)) -> 302.910004 | G86: =IF(A86>$A$8,"",OFFSET(InputPriceData!F$15,CalculationsAndCharts!$A86+$A$11,IF($C$5,8,0),1,1)) -> 303.299988 | H86: -0.6163660249 | I86: =IF($A86>$A$8-$A$19-2,"",BPTrunc(G86,$A$17,$A$18,$A$19)) -> 0.2527019539 | K86: -0.8934142233 | L86: -2.804781926 | N86: 0.5462169169 | O86: 0.9699948064 | T86: -0.6163660249 | U86: 0.2527019539 | AP86: 42147000
A87: 55 | B87: =IF(A87>$A$8,"",OFFSET(InputPriceData!B$15,$A87+$A$11,0,1,1)) -> 2019-10-25 | C87: =IF(A87>$A$8,"",OFFSET(InputPriceData!G$15,CalculationsAndCharts!$A87+$A$11,IF($C$5,8,0),1,1)) -> 45205400 | D87: =IF(A87>$A$8,"",OFFSET(InputPriceData!C$15,CalculationsAndCharts!$A87+$A$11,IF($C$5,8,0),1,1)) -> 299.73999 | E87: =IF(A87>$A$8,"",OFFSET(InputPriceData!D$15,CalculationsAndCharts!$A87+$A$11,IF($C$5,8,0),1,1)) -> 302.200012 | F87: =IF(A87>$A$8,"",OFFSET(InputPriceData!E$15,CalculationsAndCharts!$A87+$A$11,IF($C$5,8,0),1,1)) -> 299.679993 | G87: =IF(A87>$A$8,"",OFFSET(InputPriceData!F$15,CalculationsAndCharts!$A87+$A$11,IF($C$5,8,0),1,1)) -> 301.600006 | H87: -0.4238161264 | I87: =IF($A87>$A$8-$A$19-2,"",BPTrunc(G87,$A$17,$A$18,$A$19)) -> 0.2394106866 | K87: -1.146374016 | L87: -1.396522742 | N87: 0.2846094806 | O87: 1.151854639 | T87: -0.4238161264 | U87: 0.2394106866 | AP87: 45205400
A88: 56 | B88: =IF(A88>$A$8,"",OFFSET(InputPriceData!B$15,$A88+$A$11,0,1,1)) -> 2019-10-24 | C88: =IF(A88>$A$8,"",OFFSET(InputPriceData!G$15,CalculationsAndCharts!$A88+$A$11,IF($C$5,8,0),1,1)) -> 35453100 | D88: =IF(A88>$A$8,"",OFFSET(InputPriceData!C$15,CalculationsAndCharts!$A88+$A$11,IF($C$5,8,0),1,1)) -> 300.910004 | E88: =IF(A88>$A$8,"",OFFSET(InputPriceData!D$15,CalculationsAndCharts!$A88+$A$11,IF($C$5,8,0),1,1)) -> 301.070007 | F88: =IF(A88>$A$8,"",OFFSET(InputPriceData!E$15,CalculationsAndCharts!$A88+$A$11,IF($C$5,8,0),1,1)) -> 299.459991 | G88: =IF(A88>$A$8,"",OFFSET(InputPriceData!F$15,CalculationsAndCharts!$A88+$A$11,IF($C$5,8,0),1,1)) -> 300.369995 | H88: -0.136209239 | I88: =IF($A88>$A$8-$A$19-2,"",BPTrunc(G88,$A$17,$A$18,$A$19)) -> 0.286007337 | K88: -1.178555945 | L88: 0.3613005106 | N88: -0.04105473713 | O88: 1.757098759 | T88: -0.136209239 | U88: 0.286007337 | AQ88: 35453100
A89: 57 | B89: =IF(A89>$A$8,"",OFFSET(InputPriceData!B$15,$A89+$A$11,0,1,1)) -> 2019-10-23 | C89: =IF(A89>$A$8,"",OFFSET(InputPriceData!G$15,CalculationsAndCharts!$A89+$A$11,IF($C$5,8,0),1,1)) -> 34352200 | D89: =IF(A89>$A$8,"",OFFSET(InputPriceData!C$15,CalculationsAndCharts!$A89+$A$11,IF($C$5,8,0),1,1)) -> 298.730011 | E89: =IF(A89>$A$8,"",OFFSET(InputPriceData!D$15,CalculationsAndCharts!$A89+$A$11,IF($C$5,8,0),1,1)) -> 299.940002 | F89: =IF(A89>$A$8,"",OFFSET(InputPriceData!E$15,CalculationsAndCharts!$A89+$A$11,IF($C$5,8,0),1,1)) -> 298.5 | G89: =IF(A89>$A$8,"",OFFSET(InputPriceData!F$15,CalculationsAndCharts!$A89+$A$11,IF($C$5,8,0),1,1)) -> 299.880005 | H89: 0.2015751235 | I89: =IF($A89>$A$8-$A$19-2,"",BPTrunc(G89,$A$17,$A$18,$A$19)) -> 0.4014117964 | K89: -1.083359672 | L89: 2.292810413 | N89: -0.3723535636 | O89: 2.780824342 | T89: 0.2015751235 | U89: 0.4014117964 | AP89: 34352200
A90: 58 | B90: =IF(A90>$A$8,"",OFFSET(InputPriceData!B$15,$A90+$A$11,0,1,1)) -> 2019-10-22 | C90: =IF(A90>$A$8,"",OFFSET(InputPriceData!G$15,CalculationsAndCharts!$A90+$A$11,IF($C$5,8,0),1,1)) -> 48594700 | D90: =IF(A90>$A$8,"",OFFSET(InputPriceData!C$15,CalculationsAndCharts!$A90+$A$11,IF($C$5,8,0),1,1)) -> 300.579987 | E90: =IF(A90>$A$8,"",OFFSET(InputPriceData!D$15,CalculationsAndCharts!$A90+$A$11,IF($C$5,8,0),1,1)) -> 300.899994 | F90: =IF(A90>$A$8,"",OFFSET(InputPriceData!E$15,CalculationsAndCharts!$A90+$A$11,IF($C$5,8,0),1,1)) -> 298.910004 | G90: =IF(A90>$A$8,"",OFFSET(InputPriceData!F$15,CalculationsAndCharts!$A90+$A$11,IF($C$5,8,0),1,1)) -> 299.01001 | H90: 0.5518003788 | I90: =IF($A90>$A$8-$A$19-2,"",BPTrunc(G90,$A$17,$A$18,$A$19)) -> 0.5654755565 | K90: -0.6962483593 | L90: 4.007050632 | N90: -0.03117336277 | O90: 3.424026702 | T90: 0.5518003788 | U90: 0.5654755565 | AQ90: 48594700
A91: 59 | B91: =IF(A91>$A$8,"",OFFSET(InputPriceData!B$15,$A91+$A$11,0,1,1)) -> 2019-10-21 | C91: =IF(A91>$A$8,"",OFFSET(InputPriceData!G$15,CalculationsAndCharts!$A91+$A$11,IF($C$5,8,0),1,1)) -> 39048600 | D91: =IF(A91>$A$8,"",OFFSET(InputPriceData!C$15,CalculationsAndCharts!$A91+$A$11,IF($C$5,8,0),1,1)) -> 299.420013 | E91: =IF(A91>$A$8,"",OFFSET(InputPriceData!D$15,CalculationsAndCharts!$A91+$A$11,IF($C$5,8,0),1,1)) -> 300.209991 | F91: =IF(A91>$A$8,"",OFFSET(InputPriceData!E$15,CalculationsAndCharts!$A91+$A$11,IF($C$5,8,0),1,1)) -> 298.940002 | G91: =IF(A91>$A$8,"",OFFSET(InputPriceData!F$15,CalculationsAndCharts!$A91+$A$11,IF($C$5,8,0),1,1)) -> 299.98999 | H91: 0.8565733198 | I91: =IF($A91>$A$8-$A$19-2,"",BPTrunc(G91,$A$17,$A$18,$A$19)) -> 0.6514241844 | K91: -0.2549321013 | L91: 5.39437202 | N91: 0.6314311321 | O91: 3.277113974 | T91: 0.8565733198 | U91: 0.6514241844 | AP91: 39048600
A92: 60 | B92: =IF(A92>$A$8,"",OFFSET(InputPriceData!B$15,$A92+$A$11,0,1,1)) -> 2019-10-18 | C92: =IF(A92>$A$8,"",OFFSET(InputPriceData!G$15,CalculationsAndCharts!$A92+$A$11,IF($C$5,8,0),1,1)) -> 64304000 | D92: =IF(A92>$A$8,"",OFFSET(InputPriceData!C$15,CalculationsAndCharts!$A92+$A$11,IF($C$5,8,0),1,1)) -> 298.690002 | E92: =IF(A92>$A$8,"",OFFSET(InputPriceData!D$15,CalculationsAndCharts!$A92+$A$11,IF($C$5,8,0),1,1)) -> 299.399994 | F92: =IF(A92>$A$8,"",OFFSET(InputPriceData!E$15,CalculationsAndCharts!$A92+$A$11,IF($C$5,8,0),1,1)) -> 297.029999 | G92: =IF(A92>$A$8,"",OFFSET(InputPriceData!F$15,CalculationsAndCharts!$A92+$A$11,IF($C$5,8,0),1,1)) -> 297.970001 | H92: 1.102487549 | I92: =IF($A92>$A$8-$A$19-2,"",BPTrunc(G92,$A$17,$A$18,$A$19)) -> 0.6139185564 | K92: 0.2501818334 | L92: 6.364743458 | N92: 0.6434960988 | O92: 3.040015239 | T92: 1.102487549 | U92: 0.6139185564 | AQ92: 64304000
A93: 61 | B93: =IF(A93>$A$8,"",OFFSET(InputPriceData!B$15,$A93+$A$11,0,1,1)) -> 2019-10-17 | C93: =IF(A93>$A$8,"",OFFSET(InputPriceData!G$15,CalculationsAndCharts!$A93+$A$11,IF($C$5,8,0),1,1)) -> 45736600 | D93: =IF(A93>$A$8,"",OFFSET(InputPriceData!C$15,CalculationsAndCharts!$A93+$A$11,IF($C$5,8,0),1,1)) -> 299.679993 | E93: =IF(A93>$A$8,"",OFFSET(InputPriceData!D$15,CalculationsAndCharts!$A93+$A$11,IF($C$5,8,0),1,1)) -> 300.23999 | F93: =IF(A93>$A$8,"",OFFSET(InputPriceData!E$15,CalculationsAndCharts!$A93+$A$11,IF($C$5,8,0),1,1)) -> 298.519989 | G93: =IF(A93>$A$8,"",OFFSET(InputPriceData!F$15,CalculationsAndCharts!$A93+$A$11,IF($C$5,8,0),1,1)) -> 299.279999 | H93: 1.257941235 | I93: =IF($A93>$A$8-$A$19-2,"",BPTrunc(G93,$A$17,$A$18,$A$19)) -> 0.5623892084 | K93: 0.8110349064 | L93: 6.736612506 | N93: 0.35500533 | O93: 3.01932992 | T93: 1.257941235 | U93: 0.5623892084 | AQ93: 45736600
A94: 62 | B94: =IF(A94>$A$8,"",OFFSET(InputPriceData!B$15,$A94+$A$11,0,1,1)) -> 2019-10-16 | C94: =IF(A94>$A$8,"",OFFSET(InputPriceData!G$15,CalculationsAndCharts!$A94+$A$11,IF($C$5,8,0),1,1)) -> 48928200 | D94: =IF(A94>$A$8,"",OFFSET(InputPriceData!C$15,CalculationsAndCharts!$A94+$A$11,IF($C$5,8,0),1,1)) -> 298.369995 | E94: =IF(A94>$A$8,"",OFFSET(InputPriceData!D$15,CalculationsAndCharts!$A94+$A$11,IF($C$5,8,0),1,1)) -> 299.160004 | F94: =IF(A94>$A$8,"",OFFSET(InputPriceData!E$15,CalculationsAndCharts!$A94+$A$11,IF($C$5,8,0),1,1)) -> 297.920013 | G94: =IF(A94>$A$8,"",OFFSET(InputPriceData!F$15,CalculationsAndCharts!$A94+$A$11,IF($C$5,8,0),1,1)) -> 298.399994 | H94: 1.286393018 | I94: =IF($A94>$A$8-$A$19-2,"",BPTrunc(G94,$A$17,$A$18,$A$19)) -> 0.5307448514 | K94: 1.279702985 | L94: 6.438655122 | N94: 0.6411691066 | O94: 2.543300002 | T94: 1.286393018 | U94: 0.5307448514 | AP94: 48928200
A95: 63 | B95: =IF(A95>$A$8,"",OFFSET(InputPriceData!B$15,$A95+$A$11,0,1,1)) -> 2019-10-15 | C95: =IF(A95>$A$8,"",OFFSET(InputPriceData!G$15,CalculationsAndCharts!$A95+$A$11,IF($C$5,8,0),1,1)) -> 46754500 | D95: =IF(A95>$A$8,"",OFFSET(InputPriceData!C$15,CalculationsAndCharts!$A95+$A$11,IF($C$5,8,0),1,1)) -> 297.100006 | E95: =IF(A95>$A$8,"",OFFSET(InputPriceData!D$15,CalculationsAndCharts!$A95+$A$11,IF($C$5,8,0),1,1)) -> 299.700012 | F95: =IF(A95>$A$8,"",OFFSET(InputPriceData!E$15,CalculationsAndCharts!$A95+$A$11,IF($C$5,8,0),1,1)) -> 296.970001 | G95: =IF(A95>$A$8,"",OFFSET(InputPriceData!F$15,CalculationsAndCharts!$A95+$A$11,IF($C$5,8,0),1,1)) -> 298.880005 | H95: 1.194206065 | I95: =IF($A95>$A$8-$A$19-2,"",BPTrunc(G95,$A$17,$A$18,$A$19)) -> 0.4122394832 | K95: 1.545206712 | L95: 5.620029675 | N95: 1.211926692 | O95: 1.261510207 | T95: 1.194206065 | U95: 0.4122394832 | AP95: 46754500
A96: 64 | B96: =IF(A96>$A$8,"",OFFSET(InputPriceData!B$15,$A96+$A$11,0,1,1)) -> 2019-10-14 | C96: =IF(A96>$A$8,"",OFFSET(InputPriceData!G$15,CalculationsAndCharts!$A96+$A$11,IF($C$5,8,0),1,1)) -> 40394800 | D96: =IF(A96>$A$8,"",OFFSET(InputPriceData!C$15,CalculationsAndCharts!$A96+$A$11,IF($C$5,8,0),1,1)) -> 295.929993 | E96: =IF(A96>$A$8,"",OFFSET(InputPriceData!D$15,CalculationsAndCharts!$A96+$A$11,IF($C$5,8,0),1,1)) -> 296.670013 | F96: =IF(A96>$A$8,"",OFFSET(InputPriceData!E$15,CalculationsAndCharts!$A96+$A$11,IF($C$5,8,0),1,1)) -> 295.570007 | G96: =IF(A96>$A$8,"",OFFSET(InputPriceData!F$15,CalculationsAndCharts!$A96+$A$11,IF($C$5,8,0),1,1)) -> 295.950012 | H96: 1.019415272 | I96: =IF($A96>$A$8-$A$19-2,"",BPTrunc(G96,$A$17,$A$18,$A$19)) -> 0.1702903673 | K96: 1.683936145 | L96: 4.432555489 | N96: 1.159777123 | O96: -0.138034919 | T96: 1.019415272 | U96: 0.1702903673 | AP96: 40394800
A97: 65 | B97: =IF(A97>$A$8,"",OFFSET(InputPriceData!B$15,$A97+$A$11,0,1,1)) -> 2019-10-11 | C97: =IF(A97>$A$8,"",OFFSET(InputPriceData!G$15,CalculationsAndCharts!$A97+$A$11,IF($C$5,8,0),1,1)) -> 98720400 | D97: =IF(A97>$A$8,"",OFFSET(InputPriceData!C$15,CalculationsAndCharts!$A97+$A$11,IF($C$5,8,0),1,1)) -> 296.269989 | E97: =IF(A97>$A$8,"",OFFSET(InputPriceData!D$15,CalculationsAndCharts!$A97+$A$11,IF($C$5,8,0),1,1)) -> 298.73999 | F97: =IF(A97>$A$8,"",OFFSET(InputPriceData!E$15,CalculationsAndCharts!$A97+$A$11,IF($C$5,8,0),1,1)) -> 296.140015 | G97: =IF(A97>$A$8,"",OFFSET(InputPriceData!F$15,CalculationsAndCharts!$A97+$A$11,IF($C$5,8,0),1,1)) -> 296.279999 | H97: =IF($A97<($A$8-$A$19-2),$D$20*(G97-G99)+$D$21*H98-$D$19*H99,IF($A97<($A$8-$A$19),0,"")) -> 0.7791611217 | I97: =IF($A97>$A$8-$A$19-2,"",BPTrunc(G97,$A$17,$A$18,$A$19)) -> -0.08397536091 | K97: 1.677883326 | L97: =IF($A97>$A$8-$A$19-2-$D$23,"",SUMPRODUCT(OFFSET($M$32,1,0,$D$23,1),OFFSET(K97,1,0,$D$23,1))) -> 2.997083404 | N97: 0.8384258926 | O97: =IF($A97>$A$8-$A$19-2-$D$23,"",SUMPRODUCT(OFFSET($M$32,1,0,$D$23,1),OFFSET(N97,1,0,$D$23,1))) -> -1.342278058 | T97: 0.7791611217 | U97: -0.08397536091 | AP97: 98720400
A98: 66 | B98: =IF(A98>$A$8,"",OFFSET(InputPriceData!B$15,$A98+$A$11,0,1,1)) -> 2019-10-10 | C98: =IF(A98>$A$8,"",OFFSET(InputPriceData!G$15,CalculationsAndCharts!$A98+$A$11,IF($C$5,8,0),1,1)) -> 55296300 | D98: =IF(A98>$A$8,"",OFFSET(InputPriceData!C$15,CalculationsAndCharts!$A98+$A$11,IF($C$5,8,0),1,1)) -> 291.179993 | E98: =IF(A98>$A$8,"",OFFSET(InputPriceData!D$15,CalculationsAndCharts!$A98+$A$11,IF($C$5,8,0),1,1)) -> 294.209991 | F98: =IF(A98>$A$8,"",OFFSET(InputPriceData!E$15,CalculationsAndCharts!$A98+$A$11,IF($C$5,8,0),1,1)) -> 291 | G98: =IF(A98>$A$8,"",OFFSET(InputPriceData!F$15,CalculationsAndCharts!$A98+$A$11,IF($C$5,8,0),1,1)) -> 293.23999 | H98: 0.4970029711 | I98: =IF($A98>$A$8-$A$19-2,"",BPTrunc(G98,$A$17,$A$18,$A$19)) -> -0.298221592 | K98: =IF($A98>$A$8-$A$19-2-$D$23,"",$D$24*H98-L98) -> 1.336586626 | L98: 1.645431201 | M98: =IF(A98>$D$23,"",($D$23-A98+1)/$D$23) ->  | N98: =IF($A98>$A$8-$A$19-2-$D$23,"",$D$24*I98-O98) -> 0.4122901624 | O98: -2.201619715 | T98: =IF(OR($R$18=1,$R$18=2),$H98,IF($R$18=3,$I98,$K98)) -> 0.4970029711 | U98: =IF($R$18=1,$I98,IF($R$18=2,$K98,$N98)) -> -0.298221592 | AP98: 55296300
A99: 67 | B99: =IF(A99>$A$8,"",OFFSET(InputPriceData!B$15,$A99+$A$11,0,1,1)) -> 2019-10-09 | C99: =IF(A99>$A$8,"",OFFSET(InputPriceData!G$15,CalculationsAndCharts!$A99+$A$11,IF($C$5,8,0),1,1)) -> 62359400 | D99: =IF(A99>$A$8,"",OFFSET(InputPriceData!C$15,CalculationsAndCharts!$A99+$A$11,IF($C$5,8,0),1,1)) -> 290.75 | E99: =IF(A99>$A$8,"",OFFSET(InputPriceData!D$15,CalculationsAndCharts!$A99+$A$11,IF($C$5,8,0),1,1)) -> 292.299988 | F99: =IF(A99>$A$8,"",OFFSET(InputPriceData!E$15,CalculationsAndCharts!$A99+$A$11,IF($C$5,8,0),1,1)) -> 290.059998 | G99: =IF(A99>$A$8,"",OFFSET(InputPriceData!F$15,CalculationsAndCharts!$A99+$A$11,IF($C$5,8,0),1,1)) -> 291.269989 | H99: 0.236371411 | I99: =IF($A99>$A$8-$A$19-2,"",BPTrunc(G99,$A$17,$A$18,$A$19)) -> -0.439427298 | K99: 0.8323263094 | L99: 0.5859021566 | N99: -0.3852605658 | O99: -2.251303222 | T99: 0.236371411 | U99: -0.439427298 | AP99: 62359400
A100: 68 | B100: =IF(A100>$A$8,"",OFFSET(InputPriceData!B$15,$A100+$A$11,0,1,1)) -> 2019-10-08 | C100: =IF(A100>$A$8,"",OFFSET(InputPriceData!G$15,CalculationsAndCharts!$A100+$A$11,IF($C$5,8,0),1,1)) -> 95708100 | D100: =IF(A100>$A$8,"",OFFSET(InputPriceData!C$15,CalculationsAndCharts!$A100+$A$11,IF($C$5,8,0),1,1)) -> 291.040009 | E100: =IF(A100>$A$8,"",OFFSET(InputPriceData!D$15,CalculationsAndCharts!$A100+$A$11,IF($C$5,8,0),1,1)) -> 291.850006 | F100: =IF(A100>$A$8,"",OFFSET(InputPriceData!E$15,CalculationsAndCharts!$A100+$A$11,IF($C$5,8,0),1,1)) -> 288.48999 | G100: =IF(A100>$A$8,"",OFFSET(InputPriceData!F$15,CalculationsAndCharts!$A100+$A$11,IF($C$5,8,0),1,1)) -> 288.529999 | H100: 0.01908488418 | I100: =IF($A100>$A$8-$A$19-2,"",BPTrunc(G100,$A$17,$A$18,$A$19)) -> -0.4511335659 | K100: 0.77464474 | L100: -0.6601354349 | N100: -0.5161641982 | O100: -2.190637197 | T100: 0.01908488418 | U100: -0.4511335659 | AQ100: 95708100
A101: 69 | B101: =IF(A101>$A$8,"",OFFSET(InputPriceData!B$15,$A101+$A$11,0,1,1)) -> 2019-10-07 | C101: =IF(A101>$A$8,"",OFFSET(InputPriceData!G$15,CalculationsAndCharts!$A101+$A$11,IF($C$5,8,0),1,1)) -> 59610500 | D101: =IF(A101>$A$8,"",OFFSET(InputPriceData!C$15,CalculationsAndCharts!$A101+$A$11,IF($C$5,8,0),1,1)) -> 293.470001 | E101: =IF(A101>$A$8,"",OFFSET(InputPriceData!D$15,CalculationsAndCharts!$A101+$A$11,IF($C$5,8,0),1,1)) -> 295.26001 | F101: =IF(A101>$A$8,"",OFFSET(InputPriceData!E$15,CalculationsAndCharts!$A101+$A$11,IF($C$5,8,0),1,1)) -> 292.769989 | G101: =IF(A101>$A$8,"",OFFSET(InputPriceData!F$15,CalculationsAndCharts!$A101+$A$11,IF($C$5,8,0),1,1)) -> 293.079987 | H101: -0.235922917 | I101: =IF($A101>$A$8-$A$19-2,"",BPTrunc(G101,$A$17,$A$18,$A$19)) -> -0.4555875798 | K101: 1.043657687 | L101: -2.459195189 | N101: -0.05959326647 | O101: -2.673932212 | T101: -0.235922917 | U101: -0.4555875798 | AQ101: 59610500
A102: 70 | B102: =IF(A102>$A$8,"",OFFSET(InputPriceData!B$15,$A102+$A$11,0,1,1)) -> 2019-10-04 | C102: =IF(A102>$A$8,"",OFFSET(InputPriceData!G$15,CalculationsAndCharts!$A102+$A$11,IF($C$5,8,0),1,1)) -> 65091200 | D102: =IF(A102>$A$8,"",OFFSET(InputPriceData!C$15,CalculationsAndCharts!$A102+$A$11,IF($C$5,8,0),1,1)) -> 291.140015 | E102: =IF(A102>$A$8,"",OFFSET(InputPriceData!D$15,CalculationsAndCharts!$A102+$A$11,IF($C$5,8,0),1,1)) -> 294.630005 | F102: =IF(A102>$A$8,"",OFFSET(InputPriceData!E$15,CalculationsAndCharts!$A102+$A$11,IF($C$5,8,0),1,1)) -> 291.079987 | G102: =IF(A102>$A$8,"",OFFSET(InputPriceData!F$15,CalculationsAndCharts!$A102+$A$11,IF($C$5,8,0),1,1)) -> 294.350006 | H102: -0.5684953633 | I102: =IF($A102>$A$8-$A$19-2,"",BPTrunc(G102,$A$17,$A$18,$A$19)) -> -0.5407238854 | K102: 0.4721910632 | L102: -3.883163243 | N102: -0.293690847 | O102: -2.950652465 | T102: -0.5684953633 | U102: -0.5407238854 | AP102: 65091200
A103: 71 | B103: =IF(A103>$A$8,"",OFFSET(InputPriceData!B$15,$A103+$A$11,0,1,1)) -> 2019-10-03 | C103: =IF(A103>$A$8,"",OFFSET(InputPriceData!G$15,CalculationsAndCharts!$A103+$A$11,IF($C$5,8,0),1,1)) -> 85278800 | D103: =IF(A103>$A$8,"",OFFSET(InputPriceData!C$15,CalculationsAndCharts!$A103+$A$11,IF($C$5,8,0),1,1)) -> 287.809998 | E103: =IF(A103>$A$8,"",OFFSET(InputPriceData!D$15,CalculationsAndCharts!$A103+$A$11,IF($C$5,8,0),1,1)) -> 290.450012 | F103: =IF(A103>$A$8,"",OFFSET(InputPriceData!E$15,CalculationsAndCharts!$A103+$A$11,IF($C$5,8,0),1,1)) -> 284.820007 | G103: =IF(A103>$A$8,"",OFFSET(InputPriceData!F$15,CalculationsAndCharts!$A103+$A$11,IF($C$5,8,0),1,1)) -> 290.420013 | H103: -0.8126939553 | I103: =IF($A103>$A$8-$A$19-2,"",BPTrunc(G103,$A$17,$A$18,$A$19)) -> -0.5715031581 | K103: -0.5307222055 | L103: -4.345441526 | N103: -0.8814583014 | O103: -2.547560647 | T103: -0.8126939553 | U103: -0.5715031581 | AP103: 85278800
A104: 72 | B104: =IF(A104>$A$8,"",OFFSET(InputPriceData!B$15,$A104+$A$11,0,1,1)) -> 2019-10-02 | C104: =IF(A104>$A$8,"",OFFSET(InputPriceData!G$15,CalculationsAndCharts!$A104+$A$11,IF($C$5,8,0),1,1)) -> 122539500 | D104: =IF(A104>$A$8,"",OFFSET(InputPriceData!C$15,CalculationsAndCharts!$A104+$A$11,IF($C$5,8,0),1,1)) -> 291.5 | E104: =IF(A104>$A$8,"",OFFSET(InputPriceData!D$15,CalculationsAndCharts!$A104+$A$11,IF($C$5,8,0),1,1)) -> 291.51001 | F104: =IF(A104>$A$8,"",OFFSET(InputPriceData!E$15,CalculationsAndCharts!$A104+$A$11,IF($C$5,8,0),1,1)) -> 286.640015 | G104: =IF(A104>$A$8,"",OFFSET(InputPriceData!F$15,CalculationsAndCharts!$A104+$A$11,IF($C$5,8,0),1,1)) -> 288.059998 | H104: -0.8834771889 | I104: =IF($A104>$A$8-$A$19-2,"",BPTrunc(G104,$A$17,$A$18,$A$19)) -> -0.4840275867 | K104: -0.7512723059 | L104: -4.549590827 | N104: -0.9030939233 | O104: -2.001071597 | T104: -0.8834771889 | U104: -0.4840275867 | AQ104: 122539500
A105: 73 | B105: =IF(A105>$A$8,"",OFFSET(InputPriceData!B$15,$A105+$A$11,0,1,1)) -> 2019-10-01 | C105: =IF(A105>$A$8,"",OFFSET(InputPriceData!G$15,CalculationsAndCharts!$A105+$A$11,IF($C$5,8,0),1,1)) -> 88242400 | D105: =IF(A105>$A$8,"",OFFSET(InputPriceData!C$15,CalculationsAndCharts!$A105+$A$11,IF($C$5,8,0),1,1)) -> 297.73999 | E105: =IF(A105>$A$8,"",OFFSET(InputPriceData!D$15,CalculationsAndCharts!$A105+$A$11,IF($C$5,8,0),1,1)) -> 298.459991 | F105: =IF(A105>$A$8,"",OFFSET(InputPriceData!E$15,CalculationsAndCharts!$A105+$A$11,IF($C$5,8,0),1,1)) -> 293 | G105: =IF(A105>$A$8,"",OFFSET(InputPriceData!F$15,CalculationsAndCharts!$A105+$A$11,IF($C$5,8,0),1,1)) -> 293.23999 | H105: -0.9136654453 | I105: =IF($A105>$A$8-$A$19-2,"",BPTrunc(G105,$A$17,$A$18,$A$19)) -> -0.3883185639 | K105: -0.3871376087 | L105: -5.094855063 | N105: -0.3693669824 | O105: -1.960544401 | T105: -0.9136654453 | U105: -0.3883185639 | AQ105: 88242400
A106: 74 | B106: =IF(A106>$A$8,"",OFFSET(InputPriceData!B$15,$A106+$A$11,0,1,1)) -> 2019-09-30 | C106: =IF(A106>$A$8,"",OFFSET(InputPriceData!G$15,CalculationsAndCharts!$A106+$A$11,IF($C$5,8,0),1,1)) -> 51662400 | D106: =IF(A106>$A$8,"",OFFSET(InputPriceData!C$15,CalculationsAndCharts!$A106+$A$11,IF($C$5,8,0),1,1)) -> 295.970001 | E106: =IF(A106>$A$8,"",OFFSET(InputPriceData!D$15,CalculationsAndCharts!$A106+$A$11,IF($C$5,8,0),1,1)) -> 297.549988 | F106: =IF(A106>$A$8,"",OFFSET(InputPriceData!E$15,CalculationsAndCharts!$A106+$A$11,IF($C$5,8,0),1,1)) -> 295.920013 | G106: =IF(A106>$A$8,"",OFFSET(InputPriceData!F$15,CalculationsAndCharts!$A106+$A$11,IF($C$5,8,0),1,1)) -> 296.769989 | H106: -0.9929652098 | I106: =IF($A106>$A$8-$A$19-2,"",BPTrunc(G106,$A$17,$A$18,$A$19)) -> -0.3773048521 | K106: -0.6085731347 | L106: -5.349218124 | N106: -0.296017296 | O106: -1.967811817 | T106: -0.9929652098 | U106: -0.3773048521 | AP106: 51662400
A107: 75 | B107: =IF(A107>$A$8,"",OFFSET(InputPriceData!B$15,$A107+$A$11,0,1,1)) -> 2019-09-27 | C107: =IF(A107>$A$8,"",OFFSET(InputPriceData!G$15,CalculationsAndCharts!$A107+$A$11,IF($C$5,8,0),1,1)) -> 84746600 | D107: =IF(A107>$A$8,"",OFFSET(InputPriceData!C$15,CalculationsAndCharts!$A107+$A$11,IF($C$5,8,0),1,1)) -> 297.829987 | E107: =IF(A107>$A$8,"",OFFSET(InputPriceData!D$15,CalculationsAndCharts!$A107+$A$11,IF($C$5,8,0),1,1)) -> 297.950012 | F107: =IF(A107>$A$8,"",OFFSET(InputPriceData!E$15,CalculationsAndCharts!$A107+$A$11,IF($C$5,8,0),1,1)) -> 293.690002 | G107: =IF(A107>$A$8,"",OFFSET(InputPriceData!F$15,CalculationsAndCharts!$A107+$A$11,IF($C$5,8,0),1,1)) -> 295.399994 | H107: -1.010520191 | I107: =IF($A107>$A$8-$A$19-2,"",BPTrunc(G107,$A$17,$A$18,$A$19)) -> -0.3653686637 | K107: -0.9807047428 | L107: -5.082416405 | N107: -0.3188180669 | O107: -1.873393915 | T107: -1.010520191 | U107: -0.3653686637 | AQ107: 84746600
A108: 76 | B108: =IF(A108>$A$8,"",OFFSET(InputPriceData!B$15,$A108+$A$11,0,1,1)) -> 2019-09-26 | C108: =IF(A108>$A$8,"",OFFSET(InputPriceData!G$15,CalculationsAndCharts!$A108+$A$11,IF($C$5,8,0),1,1)) -> 56179700 | D108: =IF(A108>$A$8,"",OFFSET(InputPriceData!C$15,CalculationsAndCharts!$A108+$A$11,IF($C$5,8,0),1,1)) -> 297.630005 | E108: =IF(A108>$A$8,"",OFFSET(InputPriceData!D$15,CalculationsAndCharts!$A108+$A$11,IF($C$5,8,0),1,1)) -> 297.859985 | F108: =IF(A108>$A$8,"",OFFSET(InputPriceData!E$15,CalculationsAndCharts!$A108+$A$11,IF($C$5,8,0),1,1)) -> 295.450012 | G108: =IF(A108>$A$8,"",OFFSET(InputPriceData!F$15,CalculationsAndCharts!$A108+$A$11,IF($C$5,8,0),1,1)) -> 297 | H108: -0.9318110309 | I108: =IF($A108>$A$8-$A$19-2,"",BPTrunc(G108,$A$17,$A$18,$A$19)) -> -0.3354801432 | K108: -1.076908105 | L108: -4.513958081 | N108: -0.2762937763 | O108: -1.736587083 | T108: -0.9318110309 | U108: -0.3354801432 | AQ108: 56179700
A109: 77 | B109: =IF(A109>$A$8,"",OFFSET(InputPriceData!B$15,$A109+$A$11,0,1,1)) -> 2019-09-25 | C109: =IF(A109>$A$8,"",OFFSET(InputPriceData!G$15,CalculationsAndCharts!$A109+$A$11,IF($C$5,8,0),1,1)) -> 71854000 | D109: =IF(A109>$A$8,"",OFFSET(InputPriceData!C$15,CalculationsAndCharts!$A109+$A$11,IF($C$5,8,0),1,1)) -> 295.959991 | E109: =IF(A109>$A$8,"",OFFSET(InputPriceData!D$15,CalculationsAndCharts!$A109+$A$11,IF($C$5,8,0),1,1)) -> 298.109985 | F109: =IF(A109>$A$8,"",OFFSET(InputPriceData!E$15,CalculationsAndCharts!$A109+$A$11,IF($C$5,8,0),1,1)) -> 294.329987 | G109: =IF(A109>$A$8,"",OFFSET(InputPriceData!F$15,CalculationsAndCharts!$A109+$A$11,IF($C$5,8,0),1,1)) -> 297.619995 | H109: -0.7933527379 | I109: =IF($A109>$A$8-$A$19-2,"",BPTrunc(G109,$A$17,$A$18,$A$19)) -> -0.2948601074 | K109: -1.423066312 | L109: -3.337050116 | N109: -0.7011511043 | O109: -1.06800954 | T109: -0.7933527379 | U109: -0.2948601074 | AP109: 71854000
A110: 78 | B110: =IF(A110>$A$8,"",OFFSET(InputPriceData!B$15,$A110+$A$11,0,1,1)) -> 2019-09-24 | C110: =IF(A110>$A$8,"",OFFSET(InputPriceData!G$15,CalculationsAndCharts!$A110+$A$11,IF($C$5,8,0),1,1)) -> 94869400 | D110: =IF(A110>$A$8,"",OFFSET(InputPriceData!C$15,CalculationsAndCharts!$A110+$A$11,IF($C$5,8,0),1,1)) -> 299.410004 | E110: =IF(A110>$A$8,"",OFFSET(InputPriceData!D$15,CalculationsAndCharts!$A110+$A$11,IF($C$5,8,0),1,1)) -> 299.839996 | F110: =IF(A110>$A$8,"",OFFSET(InputPriceData!E$15,CalculationsAndCharts!$A110+$A$11,IF($C$5,8,0),1,1)) -> 294.809998 | G110: =IF(A110>$A$8,"",OFFSET(InputPriceData!F$15,CalculationsAndCharts!$A110+$A$11,IF($C$5,8,0),1,1)) -> 295.869995 | H110: -0.5535416846 | I110: =IF($A110>$A$8-$A$19-2,"",BPTrunc(G110,$A$17,$A$18,$A$19)) -> -0.1626499619 | K110: -1.512425251 | L110: -1.808824856 | N110: -0.8461042321 | O110: -0.1297955396 | T110: -0.5535416846 | U110: -0.1626499619 | AQ110: 94869400
A111: 79 | B111: =IF(A111>$A$8,"",OFFSET(InputPriceData!B$15,$A111+$A$11,0,1,1)) -> 2019-09-23 | C111: =IF(A111>$A$8,"",OFFSET(InputPriceData!G$15,CalculationsAndCharts!$A111+$A$11,IF($C$5,8,0),1,1)) -> 43476800 | D111: =IF(A111>$A$8,"",OFFSET(InputPriceData!C$15,CalculationsAndCharts!$A111+$A$11,IF($C$5,8,0),1,1)) -> 297.549988 | E111: =IF(A111>$A$8,"",OFFSET(InputPriceData!D$15,CalculationsAndCharts!$A111+$A$11,IF($C$5,8,0),1,1)) -> 299 | F111: =IF(A111>$A$8,"",OFFSET(InputPriceData!E$15,CalculationsAndCharts!$A111+$A$11,IF($C$5,8,0),1,1)) -> 297.269989 | G111: =IF(A111>$A$8,"",OFFSET(InputPriceData!F$15,CalculationsAndCharts!$A111+$A$11,IF($C$5,8,0),1,1)) -> 298.209991 | H111: -0.2604428954 | I111: =IF($A111>$A$8-$A$19-2,"",BPTrunc(G111,$A$17,$A$18,$A$19)) -> 0.008186020775 | K111: -1.295183252 | L111: -0.2674741204 | N111: -0.5413962201 | O111: 0.5905123447 | T111: -0.2604428954 | U111: 0.008186020775 | AP111: 43476800
A112: 80 | B112: =IF(A112>$A$8,"",OFFSET(InputPriceData!B$15,$A112+$A$11,0,1,1)) -> 2019-09-20 | C112: =IF(A112>$A$8,"",OFFSET(InputPriceData!G$15,CalculationsAndCharts!$A112+$A$11,IF($C$5,8,0),1,1)) -> 89565000 | D112: =IF(A112>$A$8,"",OFFSET(InputPriceData!C$15,CalculationsAndCharts!$A112+$A$11,IF($C$5,8,0),1,1)) -> 300.359985 | E112: =IF(A112>$A$8,"",OFFSET(InputPriceData!D$15,CalculationsAndCharts!$A112+$A$11,IF($C$5,8,0),1,1)) -> 300.670013 | F112: =IF(A112>$A$8,"",OFFSET(InputPriceData!E$15,CalculationsAndCharts!$A112+$A$11,IF($C$5,8,0),1,1)) -> 297.410004 | G112: =IF(A112>$A$8,"",OFFSET(InputPriceData!F$15,CalculationsAndCharts!$A112+$A$11,IF($C$5,8,0),1,1)) -> 298.279999 | H112: 0.02944883781 | I112: =IF($A112>$A$8-$A$19-2,"",BPTrunc(G112,$A$17,$A$18,$A$19)) -> 0.1463388192 | K112: -0.9017336889 | L112: 1.078426716 | N112: -0.05305674805 | O112: 0.9310896633 | T112: 0.02944883781 | U112: 0.1463388192 | AQ112: 89565000
A113: 81 | B113: =IF(A113>$A$8,"",OFFSET(InputPriceData!B$15,$A113+$A$11,0,1,1)) -> 2019-09-19 | C113: =IF(A113>$A$8,"",OFFSET(InputPriceData!G$15,CalculationsAndCharts!$A113+$A$11,IF($C$5,8,0),1,1)) -> 76560500 | D113: =IF(A113>$A$8,"",OFFSET(InputPriceData!C$15,CalculationsAndCharts!$A113+$A$11,IF($C$5,8,0),1,1)) -> 301.529999 | E113: =IF(A113>$A$8,"",OFFSET(InputPriceData!D$15,CalculationsAndCharts!$A113+$A$11,IF($C$5,8,0),1,1)) -> 302.630005 | F113: =IF(A113>$A$8,"",OFFSET(InputPriceData!E$15,CalculationsAndCharts!$A113+$A$11,IF($C$5,8,0),1,1)) -> 300.709991 | G113: =IF(A113>$A$8,"",OFFSET(InputPriceData!F$15,CalculationsAndCharts!$A113+$A$11,IF($C$5,8,0),1,1)) -> 301.079987 | H113: 0.2798601725 | I113: =IF($A113>$A$8-$A$19-2,"",BPTrunc(G113,$A$17,$A$18,$A$19)) -> 0.2343284389 | K113: -0.4130623682 | L113: 2.092223403 | N113: 0.1927605703 | O113: 1.213210063 | T113: 0.2798601725 | U113: 0.2343284389 | AQ113: 76560500
A114: 82 | B114: =IF(A114>$A$8,"",OFFSET(InputPriceData!B$15,$A114+$A$11,0,1,1)) -> 2019-09-18 | C114: =IF(A114>$A$8,"",OFFSET(InputPriceData!G$15,CalculationsAndCharts!$A114+$A$11,IF($C$5,8,0),1,1)) -> 73375800 | D114: =IF(A114>$A$8,"",OFFSET(InputPriceData!C$15,CalculationsAndCharts!$A114+$A$11,IF($C$5,8,0),1,1)) -> 300.48999 | E114: =IF(A114>$A$8,"",OFFSET(InputPriceData!D$15,CalculationsAndCharts!$A114+$A$11,IF($C$5,8,0),1,1)) -> 301.220001 | F114: =IF(A114>$A$8,"",OFFSET(InputPriceData!E$15,CalculationsAndCharts!$A114+$A$11,IF($C$5,8,0),1,1)) -> 298.23999 | G114: =IF(A114>$A$8,"",OFFSET(InputPriceData!F$15,CalculationsAndCharts!$A114+$A$11,IF($C$5,8,0),1,1)) -> 301.100006 | H114: 0.4654255023 | I114: =IF($A114>$A$8-$A$19-2,"",BPTrunc(G114,$A$17,$A$18,$A$19)) -> 0.3120397819 | K114: -0.1799597442 | L114: 2.972512758 | N114: -0.1194812055 | O114: 1.991719897 | T114: 0.4654255023 | U114: 0.3120397819 | AP114: 73375800
A115: 83 | B115: =IF(A115>$A$8,"",OFFSET(InputPriceData!B$15,$A115+$A$11,0,1,1)) -> 2019-09-17 | C115: =IF(A115>$A$8,"",OFFSET(InputPriceData!G$15,CalculationsAndCharts!$A115+$A$11,IF($C$5,8,0),1,1)) -> 41475500 | D115: =IF(A115>$A$8,"",OFFSET(InputPriceData!C$15,CalculationsAndCharts!$A115+$A$11,IF($C$5,8,0),1,1)) -> 299.940002 | E115: =IF(A115>$A$8,"",OFFSET(InputPriceData!D$15,CalculationsAndCharts!$A115+$A$11,IF($C$5,8,0),1,1)) -> 301.019989 | F115: =IF(A115>$A$8,"",OFFSET(InputPriceData!E$15,CalculationsAndCharts!$A115+$A$11,IF($C$5,8,0),1,1)) -> 299.75 | G115: =IF(A115>$A$8,"",OFFSET(InputPriceData!F$15,CalculationsAndCharts!$A115+$A$11,IF($C$5,8,0),1,1)) -> 300.920013 | H115: 0.6131810362 | I115: =IF($A115>$A$8-$A$19-2,"",BPTrunc(G115,$A$17,$A$18,$A$19)) -> 0.4594526207 | K115: 0.01661770321 | L115: 3.662468514 | N115: -0.06602162223 | O115: 2.822737346 | T115: 0.6131810362 | U115: 0.4594526207 | AP115: 41475500
A116: 84 | B116: =IF(A116>$A$8,"",OFFSET(InputPriceData!B$15,$A116+$A$11,0,1,1)) -> 2019-09-16 | C116: =IF(A116>$A$8,"",OFFSET(InputPriceData!G$15,CalculationsAndCharts!$A116+$A$11,IF($C$5,8,0),1,1)) -> 58191200 | D116: =IF(A116>$A$8,"",OFFSET(InputPriceData!C$15,CalculationsAndCharts!$A116+$A$11,IF($C$5,8,0),1,1)) -> 299.839996 | E116: =IF(A116>$A$8,"",OFFSET(InputPriceData!D$15,CalculationsAndCharts!$A116+$A$11,IF($C$5,8,0),1,1)) -> 301.140015 | F116: =IF(A116>$A$8,"",OFFSET(InputPriceData!E$15,CalculationsAndCharts!$A116+$A$11,IF($C$5,8,0),1,1)) -> 299.450012 | G116: =IF(A116>$A$8,"",OFFSET(InputPriceData!F$15,CalculationsAndCharts!$A116+$A$11,IF($C$5,8,0),1,1)) -> 300.160004 | H116: 0.7196749386 | I116: =IF($A116>$A$8-$A$19-2,"",BPTrunc(G116,$A$17,$A$18,$A$19)) -> 0.6020096612 | K116: 0.3605937967 | L116: 3.957455835 | N116: 0.3911428491 | O116: 3.220915118 | T116: 0.7196749386 | U116: 0.6020096612 | AP116: 58191200
A117: 85 | B117: =IF(A117>$A$8,"",OFFSET(InputPriceData!B$15,$A117+$A$11,0,1,1)) -> 2019-09-13 | C117: =IF(A117>$A$8,"",OFFSET(InputPriceData!G$15,CalculationsAndCharts!$A117+$A$11,IF($C$5,8,0),1,1)) -> 62104800 | D117: =IF(A117>$A$8,"",OFFSET(InputPriceData!C$15,CalculationsAndCharts!$A117+$A$11,IF($C$5,8,0),1,1)) -> 301.779999 | E117: =IF(A117>$A$8,"",OFFSET(InputPriceData!D$15,CalculationsAndCharts!$A117+$A$11,IF($C$5,8,0),1,1)) -> 302.170013 | F117: =IF(A117>$A$8,"",OFFSET(InputPriceData!E$15,CalculationsAndCharts!$A117+$A$11,IF($C$5,8,0),1,1)) -> 300.679993 | G117: =IF(A117>$A$8,"",OFFSET(InputPriceData!F$15,CalculationsAndCharts!$A117+$A$11,IF($C$5,8,0),1,1)) -> 301.089996 | H117: 0.7552840703 | I117: =IF($A117>$A$8-$A$19-2,"",BPTrunc(G117,$A$17,$A$18,$A$19)) -> 0.6623206083 | K117: 0.7721710972 | L117: 3.759533325 | N117: 0.487925216 | O117: 3.485998434 | T117: 0.7552840703 | U117: 0.6623206083 | AQ117: 62104800
A118: 86 | B118: =IF(A118>$A$8,"",OFFSET(InputPriceData!B$15,$A118+$A$11,0,1,1)) -> 2019-09-12 | C118: =IF(A118>$A$8,"",OFFSET(InputPriceData!G$15,CalculationsAndCharts!$A118+$A$11,IF($C$5,8,0),1,1)) -> 72908700 | D118: =IF(A118>$A$8,"",OFFSET(InputPriceData!C$15,CalculationsAndCharts!$A118+$A$11,IF($C$5,8,0),1,1)) -> 301.25 | E118: =IF(A118>$A$8,"",OFFSET(InputPriceData!D$15,CalculationsAndCharts!$A118+$A$11,IF($C$5,8,0),1,1)) -> 302.459991 | F118: =IF(A118>$A$8,"",OFFSET(InputPriceData!E$15,CalculationsAndCharts!$A118+$A$11,IF($C$5,8,0),1,1)) -> 300.410004 | G118: =IF(A118>$A$8,"",OFFSET(InputPriceData!F$15,CalculationsAndCharts!$A118+$A$11,IF($C$5,8,0),1,1)) -> 301.290009 | H118: 0.6988825651 | I118: =IF($A118>$A$8-$A$19-2,"",BPTrunc(G118,$A$17,$A$18,$A$19)) -> 0.6895865124 | K118: 0.9375565855 | L118: 3.255738805 | N118: 0.2610693385 | O118: 3.876449736 | T118: 0.6988825651 | U118: 0.6895865124 | AP118: 72908700
A119: 87 | B119: =IF(A119>$A$8,"",OFFSET(InputPriceData!B$15,$A119+$A$11,0,1,1)) -> 2019-09-11 | C119: =IF(A119>$A$8,"",OFFSET(InputPriceData!G$15,CalculationsAndCharts!$A119+$A$11,IF($C$5,8,0),1,1)) -> 68821100 | D119: =IF(A119>$A$8,"",OFFSET(InputPriceData!C$15,CalculationsAndCharts!$A119+$A$11,IF($C$5,8,0),1,1)) -> 298.470001 | E119: =IF(A119>$A$8,"",OFFSET(InputPriceData!D$15,CalculationsAndCharts!$A119+$A$11,IF($C$5,8,0),1,1)) -> 300.339996 | F119: =IF(A119>$A$8,"",OFFSET(InputPriceData!E$15,CalculationsAndCharts!$A119+$A$11,IF($C$5,8,0),1,1)) -> 297.75 | G119: =IF(A119>$A$8,"",OFFSET(InputPriceData!F$15,CalculationsAndCharts!$A119+$A$11,IF($C$5,8,0),1,1)) -> 300.25 | H119: 0.5845837009 | I119: =IF($A119>$A$8-$A$19-2,"",BPTrunc(G119,$A$17,$A$18,$A$19)) -> 0.7396667424 | K119: 0.8451999481 | L119: 2.662302257 | N119: 0.276045739 | O119: 4.161954716 | T119: 0.5845837009 | U119: 0.7396667424 | AP119: 68821100
A120: 88 | B120: =IF(A120>$A$8,"",OFFSET(InputPriceData!B$15,$A120+$A$11,0,1,1)) -> 2019-09-10 | C120: =IF(A120>$A$8,"",OFFSET(InputPriceData!G$15,CalculationsAndCharts!$A120+$A$11,IF($C$5,8,0),1,1)) -> 57947100 | D120: =IF(A120>$A$8,"",OFFSET(InputPriceData!C$15,CalculationsAndCharts!$A120+$A$11,IF($C$5,8,0),1,1)) -> 297.359985 | E120: =IF(A120>$A$8,"",OFFSET(InputPriceData!D$15,CalculationsAndCharts!$A120+$A$11,IF($C$5,8,0),1,1)) -> 298.200012 | F120: =IF(A120>$A$8,"",OFFSET(InputPriceData!E$15,CalculationsAndCharts!$A120+$A$11,IF($C$5,8,0),1,1)) -> 295.970001 | G120: =IF(A120>$A$8,"",OFFSET(InputPriceData!F$15,CalculationsAndCharts!$A120+$A$11,IF($C$5,8,0),1,1)) -> 298.130005 | H120: 0.4589336012 | I120: =IF($A120>$A$8-$A$19-2,"",BPTrunc(G120,$A$17,$A$18,$A$19)) -> 0.7805509774 | K120: 0.7781240261 | L120: 1.975477581 | N120: 0.2398208407 | O120: 4.443485024 | T120: 0.4589336012 | U120: 0.7805509774 | AP120: 57947100
A121: 89 | B121: =IF(A121>$A$8,"",OFFSET(InputPriceData!B$15,$A121+$A$11,0,1,1)) -> 2019-09-09 | C121: =IF(A121>$A$8,"",OFFSET(InputPriceData!G$15,CalculationsAndCharts!$A121+$A$11,IF($C$5,8,0),1,1)) -> 51260300 | D121: =IF(A121>$A$8,"",OFFSET(InputPriceData!C$15,CalculationsAndCharts!$A121+$A$11,IF($C$5,8,0),1,1)) -> 299.140015 | E121: =IF(A121>$A$8,"",OFFSET(InputPriceData!D$15,CalculationsAndCharts!$A121+$A$11,IF($C$5,8,0),1,1)) -> 299.23999 | F121: =IF(A121>$A$8,"",OFFSET(InputPriceData!E$15,CalculationsAndCharts!$A121+$A$11,IF($C$5,8,0),1,1)) -> 297.160004 | G121: =IF(A121>$A$8,"",OFFSET(InputPriceData!F$15,CalculationsAndCharts!$A121+$A$11,IF($C$5,8,0),1,1)) -> 298.200012 | H121: 0.3163499149 | I121: =IF($A121>$A$8-$A$19-2,"",BPTrunc(G121,$A$17,$A$18,$A$19)) -> 0.8043409596 | K121: 0.8802632805 | L121: 1.017836209 | N121: 0.9244234082 | O121: 3.90162235 | T121: 0.3163499149 | U121: 0.8043409596 | AQ121: 51260300
A122: 90 | B122: =IF(A122>$A$8,"",OFFSET(InputPriceData!B$15,$A122+$A$11,0,1,1)) -> 2019-09-06 | C122: =IF(A122>$A$8,"",OFFSET(InputPriceData!G$15,CalculationsAndCharts!$A122+$A$11,IF($C$5,8,0),1,1)) -> 49584300 | D122: =IF(A122>$A$8,"",OFFSET(InputPriceData!C$15,CalculationsAndCharts!$A122+$A$11,IF($C$5,8,0),1,1)) -> 298.170013 | E122: =IF(A122>$A$8,"",OFFSET(InputPriceData!D$15,CalculationsAndCharts!$A122+$A$11,IF($C$5,8,0),1,1)) -> 298.76001 | F122: =IF(A122>$A$8,"",OFFSET(InputPriceData!E$15,CalculationsAndCharts!$A122+$A$11,IF($C$5,8,0),1,1)) -> 297.420013 | G122: =IF(A122>$A$8,"",OFFSET(InputPriceData!F$15,CalculationsAndCharts!$A122+$A$11,IF($C$5,8,0),1,1)) -> 298.049988 | H122: 0.1390312749 | I122: =IF($A122>$A$8-$A$19-2,"",BPTrunc(G122,$A$17,$A$18,$A$19)) -> 0.6901481939 | K122: 0.9960421791 | L122: -0.1618545297 | N122: 1.879004167 | O122: 2.261884996 | T122: 0.1390312749 | U122: 0.6901481939 | AQ122: 49584300
A123: 91 | B123: =IF(A123>$A$8,"",OFFSET(InputPriceData!B$15,$A123+$A$11,0,1,1)) -> 2019-09-05 | C123: =IF(A123>$A$8,"",OFFSET(InputPriceData!G$15,CalculationsAndCharts!$A123+$A$11,IF($C$5,8,0),1,1)) -> 83258100 | D123: =IF(A123>$A$8,"",OFFSET(InputPriceData!C$15,CalculationsAndCharts!$A123+$A$11,IF($C$5,8,0),1,1)) -> 296.790009 | E123: =IF(A123>$A$8,"",OFFSET(InputPriceData!D$15,CalculationsAndCharts!$A123+$A$11,IF($C$5,8,0),1,1)) -> 298.829987 | F123: =IF(A123>$A$8,"",OFFSET(InputPriceData!E$15,CalculationsAndCharts!$A123+$A$11,IF($C$5,8,0),1,1)) -> 294 | G123: =IF(A123>$A$8,"",OFFSET(InputPriceData!F$15,CalculationsAndCharts!$A123+$A$11,IF($C$5,8,0),1,1)) -> 297.820007 | H123: -0.05170905164 | I123: =IF($A123>$A$8-$A$19-2,"",BPTrunc(G123,$A$17,$A$18,$A$19)) -> 0.407669491 | K123: 0.7163978817 | L123: -1.026652192 | N123: 1.53784772 | O123: 0.9081692257 | T123: -0.05170905164 | U123: 0.407669491 | AP123: 83258100
A124: 92 | B124: =IF(A124>$A$8,"",OFFSET(InputPriceData!B$15,$A124+$A$11,0,1,1)) -> 2019-09-04 | C124: =IF(A124>$A$8,"",OFFSET(InputPriceData!G$15,CalculationsAndCharts!$A124+$A$11,IF($C$5,8,0),1,1)) -> 46887300 | D124: =IF(A124>$A$8,"",OFFSET(InputPriceData!C$15,CalculationsAndCharts!$A124+$A$11,IF($C$5,8,0),1,1)) -> 293.140015 | E124: =IF(A124>$A$8,"",OFFSET(InputPriceData!D$15,CalculationsAndCharts!$A124+$A$11,IF($C$5,8,0),1,1)) -> 294.059998 | F124: =IF(A124>$A$8,"",OFFSET(InputPriceData!E$15,CalculationsAndCharts!$A124+$A$11,IF($C$5,8,0),1,1)) -> 292.309998 | G124: =IF(A124>$A$8,"",OFFSET(InputPriceData!F$15,CalculationsAndCharts!$A124+$A$11,IF($C$5,8,0),1,1)) -> 294.040009 | H124: -0.1793962107 | I124: =IF($A124>$A$8-$A$19-2,"",BPTrunc(G124,$A$17,$A$18,$A$19)) -> 0.170249604 | K124: 0.07281233438 | L124: -1.149189598 | N124: 0.8876831642 | O124: 0.1338144599 | T124: -0.1793962107 | U124: 0.170249604 | AP124: 46887300
A125: 93 | B125: =IF(A125>$A$8,"",OFFSET(InputPriceData!B$15,$A125+$A$11,0,1,1)) -> 2019-09-03 | C125: =IF(A125>$A$8,"",OFFSET(InputPriceData!G$15,CalculationsAndCharts!$A125+$A$11,IF($C$5,8,0),1,1)) -> 69101400 | D125: =IF(A125>$A$8,"",OFFSET(InputPriceData!C$15,CalculationsAndCharts!$A125+$A$11,IF($C$5,8,0),1,1)) -> 290.570007 | E125: =IF(A125>$A$8,"",OFFSET(InputPriceData!D$15,CalculationsAndCharts!$A125+$A$11,IF($C$5,8,0),1,1)) -> 291.579987 | F125: =IF(A125>$A$8,"",OFFSET(InputPriceData!E$15,CalculationsAndCharts!$A125+$A$11,IF($C$5,8,0),1,1)) -> 289.269989 | G125: =IF(A125>$A$8,"",OFFSET(InputPriceData!F$15,CalculationsAndCharts!$A125+$A$11,IF($C$5,8,0),1,1)) -> 290.73999 | H125: -0.1803214286 | I125: =IF($A125>$A$8-$A$19-2,"",BPTrunc(G125,$A$17,$A$18,$A$19)) -> 0.02313989767 | K125: -0.09833727081 | L125: -0.9835913005 | N125: 0.6100659912 | O125: -0.4712266052 | T125: -0.1803214286 | U125: 0.02313989767 | AP125: 69101400
A126: 94 | B126: =IF(A126>$A$8,"",OFFSET(InputPriceData!B$15,$A126+$A$11,0,1,1)) -> 2019-08-30 | C126: =IF(A126>$A$8,"",OFFSET(InputPriceData!G$15,CalculationsAndCharts!$A126+$A$11,IF($C$5,8,0),1,1)) -> 62901200 | D126: =IF(A126>$A$8,"",OFFSET(InputPriceData!C$15,CalculationsAndCharts!$A126+$A$11,IF($C$5,8,0),1,1)) -> 294.220001 | E126: =IF(A126>$A$8,"",OFFSET(InputPriceData!D$15,CalculationsAndCharts!$A126+$A$11,IF($C$5,8,0),1,1)) -> 294.23999 | F126: =IF(A126>$A$8,"",OFFSET(InputPriceData!E$15,CalculationsAndCharts!$A126+$A$11,IF($C$5,8,0),1,1)) -> 291.420013 | G126: =IF(A126>$A$8,"",OFFSET(InputPriceData!F$15,CalculationsAndCharts!$A126+$A$11,IF($C$5,8,0),1,1)) -> 292.450012 | H126: -0.1379670384 | I126: =IF($A126>$A$8-$A$19-2,"",BPTrunc(G126,$A$17,$A$18,$A$19)) -> -0.08760598275 | K126: 0.04017831774 | L126: -0.867980548 | N126: 0.1611164214 | O126: -0.6867523179 | T126: -0.1379670384 | U126: -0.08760598275 | AQ126: 62901200
A127: 95 | B127: =IF(A127>$A$8,"",OFFSET(InputPriceData!B$15,$A127+$A$11,0,1,1)) -> 2019-08-29 | C127: =IF(A127>$A$8,"",OFFSET(InputPriceData!G$15,CalculationsAndCharts!$A127+$A$11,IF($C$5,8,0),1,1)) -> 57899400 | D127: =IF(A127>$A$8,"",OFFSET(InputPriceData!C$15,CalculationsAndCharts!$A127+$A$11,IF($C$5,8,0),1,1)) -> 291.720001 | E127: =IF(A127>$A$8,"",OFFSET(InputPriceData!D$15,CalculationsAndCharts!$A127+$A$11,IF($C$5,8,0),1,1)) -> 293.160004 | F127: =IF(A127>$A$8,"",OFFSET(InputPriceData!E$15,CalculationsAndCharts!$A127+$A$11,IF($C$5,8,0),1,1)) -> 290.609985 | G127: =IF(A127>$A$8,"",OFFSET(InputPriceData!F$15,CalculationsAndCharts!$A127+$A$11,IF($C$5,8,0),1,1)) -> 292.579987 | H127: -0.1099062864 | I127: =IF($A127>$A$8-$A$19-2,"",BPTrunc(G127,$A$17,$A$18,$A$19)) -> -0.1181978896 | K127: -0.326822105 | L127: -0.3326156136 | N127: -0.6523216875 | O127: -0.05686564998 | T127: -0.1099062864 | U127: -0.1181978896 | AP127: 57899400
A128: 96 | B128: =IF(A128>$A$8,"",OFFSET(InputPriceData!B$15,$A128+$A$11,0,1,1)) -> 2019-08-28 | C128: =IF(A128>$A$8,"",OFFSET(InputPriceData!G$15,CalculationsAndCharts!$A128+$A$11,IF($C$5,8,0),1,1)) -> 59696700 | D128: =IF(A128>$A$8,"",OFFSET(InputPriceData!C$15,CalculationsAndCharts!$A128+$A$11,IF($C$5,8,0),1,1)) -> 286.140015 | E128: =IF(A128>$A$8,"",OFFSET(InputPriceData!D$15,CalculationsAndCharts!$A128+$A$11,IF($C$5,8,0),1,1)) -> 289.070007 | F128: =IF(A128>$A$8,"",OFFSET(InputPriceData!E$15,CalculationsAndCharts!$A128+$A$11,IF($C$5,8,0),1,1)) -> 285.25 | G128: =IF(A128>$A$8,"",OFFSET(InputPriceData!F$15,CalculationsAndCharts!$A128+$A$11,IF($C$5,8,0),1,1)) -> 288.890015 | H128: -0.01320227811 | I128: =IF($A128>$A$8-$A$19-2,"",BPTrunc(G128,$A$17,$A$18,$A$19)) -> -0.01577517969 | K128: -0.7927880393 | L128: 0.7135743706 | N128: -0.5336835582 | O128: 0.4390324801 | T128: -0.01320227811 | U128: -0.01577517969 | AP128: 59696700
A129: 97 | B129: =IF(A129>$A$8,"",OFFSET(InputPriceData!B$15,$A129+$A$11,0,1,1)) -> 2019-08-27 | C129: =IF(A129>$A$8,"",OFFSET(InputPriceData!G$15,CalculationsAndCharts!$A129+$A$11,IF($C$5,8,0),1,1)) -> 66668900 | D129: =IF(A129>$A$8,"",OFFSET(InputPriceData!C$15,CalculationsAndCharts!$A129+$A$11,IF($C$5,8,0),1,1)) -> 289.540009 | E129: =IF(A129>$A$8,"",OFFSET(InputPriceData!D$15,CalculationsAndCharts!$A129+$A$11,IF($C$5,8,0),1,1)) -> 289.950012 | F129: =IF(A129>$A$8,"",OFFSET(InputPriceData!E$15,CalculationsAndCharts!$A129+$A$11,IF($C$5,8,0),1,1)) -> 286.029999 | G129: =IF(A129>$A$8,"",OFFSET(InputPriceData!F$15,CalculationsAndCharts!$A129+$A$11,IF($C$5,8,0),1,1)) -> 286.869995 | H129: 0.1790328013 | I129: =IF($A129>$A$8-$A$19-2,"",BPTrunc(G129,$A$17,$A$18,$A$19)) -> 0.07543747291 | K129: -0.6660524308 | L129: 1.740249239 | N129: -0.1219752888 | O129: 0.5746001262 | T129: 0.1790328013 | U129: 0.07543747291 | AQ129: 66668900
A130: 98 | B130: =IF(A130>$A$8,"",OFFSET(InputPriceData!B$15,$A130+$A$11,0,1,1)) -> 2019-08-26 | C130: =IF(A130>$A$8,"",OFFSET(InputPriceData!G$15,CalculationsAndCharts!$A130+$A$11,IF($C$5,8,0),1,1)) -> 72423800 | D130: =IF(A130>$A$8,"",OFFSET(InputPriceData!C$15,CalculationsAndCharts!$A130+$A$11,IF($C$5,8,0),1,1)) -> 287.269989 | E130: =IF(A130>$A$8,"",OFFSET(InputPriceData!D$15,CalculationsAndCharts!$A130+$A$11,IF($C$5,8,0),1,1)) -> 288 | F130: =IF(A130>$A$8,"",OFFSET(InputPriceData!E$15,CalculationsAndCharts!$A130+$A$11,IF($C$5,8,0),1,1)) -> 285.579987 | G130: =IF(A130>$A$8,"",OFFSET(InputPriceData!F$15,CalculationsAndCharts!$A130+$A$11,IF($C$5,8,0),1,1)) -> 288 | H130: 0.3738039553 | I130: =IF($A130>$A$8-$A$19-2,"",BPTrunc(G130,$A$17,$A$18,$A$19)) -> 0.12020697 | K130: -0.6378336929 | L130: 2.880657425 | N130: -0.324690322 | O130: 1.045932142 | T130: 0.3738039553 | U130: 0.12020697 | AP130: 72423800
A131: 99 | B131: =IF(A131>$A$8,"",OFFSET(InputPriceData!B$15,$A131+$A$11,0,1,1)) -> 2019-08-23 | C131: =IF(A131>$A$8,"",OFFSET(InputPriceData!G$15,CalculationsAndCharts!$A131+$A$11,IF($C$5,8,0),1,1)) -> 149161500 | D131: =IF(A131>$A$8,"",OFFSET(InputPriceData!C$15,CalculationsAndCharts!$A131+$A$11,IF($C$5,8,0),1,1)) -> 290.920013 | E131: =IF(A131>$A$8,"",OFFSET(InputPriceData!D$15,CalculationsAndCharts!$A131+$A$11,IF($C$5,8,0),1,1)) -> 292.76001 | F131: =IF(A131>$A$8,"",OFFSET(InputPriceData!E$15,CalculationsAndCharts!$A131+$A$11,IF($C$5,8,0),1,1)) -> 283.470001 | G131: =IF(A131>$A$8,"",OFFSET(InputPriceData!F$15,CalculationsAndCharts!$A131+$A$11,IF($C$5,8,0),1,1)) -> 284.850006 | H131: 0.5698566483 | I131: =IF($A131>$A$8-$A$19-2,"",BPTrunc(G131,$A$17,$A$18,$A$19)) -> 0.1983085205 | K131: 0.03960797176 | L131: 3.379531918 | N131: 0.5893588845 | O131: 0.6004922385 | T131: 0.5698566483 | U131: 0.1983085205 | AQ131: 149161500
A132: 100 | B132: =IF(A132>$A$8,"",OFFSET(InputPriceData!B$15,$A132+$A$11,0,1,1)) -> 2019-08-22 | C132: =IF(A132>$A$8,"",OFFSET(InputPriceData!G$15,CalculationsAndCharts!$A132+$A$11,IF($C$5,8,0),1,1)) -> 51666400 | D132: =IF(A132>$A$8,"",OFFSET(InputPriceData!C$15,CalculationsAndCharts!$A132+$A$11,IF($C$5,8,0),1,1)) -> 293.230011 | E132: =IF(A132>$A$8,"",OFFSET(InputPriceData!D$15,CalculationsAndCharts!$A132+$A$11,IF($C$5,8,0),1,1)) -> 293.929993 | F132: =IF(A132>$A$8,"",OFFSET(InputPriceData!E$15,CalculationsAndCharts!$A132+$A$11,IF($C$5,8,0),1,1)) -> 290.399994 | G132: =IF(A132>$A$8,"",OFFSET(InputPriceData!F$15,CalculationsAndCharts!$A132+$A$11,IF($C$5,8,0),1,1)) -> 292.359985 | H132: 0.6459102722 | I132: =IF($A132>$A$8-$A$19-2,"",BPTrunc(G132,$A$17,$A$18,$A$19)) -> 0.1153870501 | K132: 1.033636894 | L132: 2.84182474 | N132: 1.041633943 | O132: -0.3493116425 | T132: 0.6459102722 | U132: 0.1153870501 | AQ132: 51666400
A133: 101 | B133: =IF(A133>$A$8,"",OFFSET(InputPriceData!B$15,$A133+$A$11,0,1,1)) -> 2019-08-21 | C133: =IF(A133>$A$8,"",OFFSET(InputPriceData!G$15,CalculationsAndCharts!$A133+$A$11,IF($C$5,8,0),1,1)) -> 49524700 | D133: =IF(A133>$A$8,"",OFFSET(InputPriceData!C$15,CalculationsAndCharts!$A133+$A$11,IF($C$5,8,0),1,1)) -> 292.480011 | E133: =IF(A133>$A$8,"",OFFSET(InputPriceData!D$15,CalculationsAndCharts!$A133+$A$11,IF($C$5,8,0),1,1)) -> 292.859985 | F133: =IF(A133>$A$8,"",OFFSET(InputPriceData!E$15,CalculationsAndCharts!$A133+$A$11,IF($C$5,8,0),1,1)) -> 291.720001 | G133: =IF(A133>$A$8,"",OFFSET(InputPriceData!F$15,CalculationsAndCharts!$A133+$A$11,IF($C$5,8,0),1,1)) -> 292.450012 | H133: 0.5388603346 | I133: =IF($A133>$A$8-$A$19-2,"",BPTrunc(G133,$A$17,$A$18,$A$19)) -> -0.05278903198 | K133: 0.9608847046 | L133: 2.272277303 | N133: 0.2504512011 | O133: -0.567185393 | T133: 0.5388603346 | U133: -0.05278903198 | AQ133: 49524700
A134: 102 | B134: =IF(A134>$A$8,"",OFFSET(InputPriceData!B$15,$A134+$A$11,0,1,1)) -> 2019-08-20 | C134: =IF(A134>$A$8,"",OFFSET(InputPriceData!G$15,CalculationsAndCharts!$A134+$A$11,IF($C$5,8,0),1,1)) -> 51596400 | D134: =IF(A134>$A$8,"",OFFSET(InputPriceData!C$15,CalculationsAndCharts!$A134+$A$11,IF($C$5,8,0),1,1)) -> 291.769989 | E134: =IF(A134>$A$8,"",OFFSET(InputPriceData!D$15,CalculationsAndCharts!$A134+$A$11,IF($C$5,8,0),1,1)) -> 292.359985 | F134: =IF(A134>$A$8,"",OFFSET(InputPriceData!E$15,CalculationsAndCharts!$A134+$A$11,IF($C$5,8,0),1,1)) -> 289.950012 | G134: =IF(A134>$A$8,"",OFFSET(InputPriceData!F$15,CalculationsAndCharts!$A134+$A$11,IF($C$5,8,0),1,1)) -> 290.089996 | H134: 0.411033084 | I134: =IF($A134>$A$8-$A$19-2,"",BPTrunc(G134,$A$17,$A$18,$A$19)) -> -0.1057160104 | K134: 0.9545376229 | L134: 1.511660881 | N134: -0.3646652584 | O134: -0.2696308039 | T134: 0.411033084 | U134: -0.1057160104 | AQ134: 51596400
A135: 103 | B135: =IF(A135>$A$8,"",OFFSET(InputPriceData!B$15,$A135+$A$11,0,1,1)) -> 2019-08-19 | C135: =IF(A135>$A$8,"",OFFSET(InputPriceData!G$15,CalculationsAndCharts!$A135+$A$11,IF($C$5,8,0),1,1)) -> 53571800 | D135: =IF(A135>$A$8,"",OFFSET(InputPriceData!C$15,CalculationsAndCharts!$A135+$A$11,IF($C$5,8,0),1,1)) -> 292.190002 | E135: =IF(A135>$A$8,"",OFFSET(InputPriceData!D$15,CalculationsAndCharts!$A135+$A$11,IF($C$5,8,0),1,1)) -> 293.079987 | F135: =IF(A135>$A$8,"",OFFSET(InputPriceData!E$15,CalculationsAndCharts!$A135+$A$11,IF($C$5,8,0),1,1)) -> 291.440002 | G135: =IF(A135>$A$8,"",OFFSET(InputPriceData!F$15,CalculationsAndCharts!$A135+$A$11,IF($C$5,8,0),1,1)) -> 292.329987 | H135: 0.2401642619 | I135: =IF($A135>$A$8-$A$19-2,"",BPTrunc(G135,$A$17,$A$18,$A$19)) -> -0.09275934194 | K135: 0.8369307075 | L135: 0.6040548637 | N135: -0.3737915361 | O135: -0.1827645155 | T135: 0.2401642619 | U135: -0.09275934194 | AP135: 53571800
A136: 104 | B136: =IF(A136>$A$8,"",OFFSET(InputPriceData!B$15,$A136+$A$11,0,1,1)) -> 2019-08-16 | C136: =IF(A136>$A$8,"",OFFSET(InputPriceData!G$15,CalculationsAndCharts!$A136+$A$11,IF($C$5,8,0),1,1)) -> 83018300 | D136: =IF(A136>$A$8,"",OFFSET(InputPriceData!C$15,CalculationsAndCharts!$A136+$A$11,IF($C$5,8,0),1,1)) -> 286.480011 | E136: =IF(A136>$A$8,"",OFFSET(InputPriceData!D$15,CalculationsAndCharts!$A136+$A$11,IF($C$5,8,0),1,1)) -> 289.329987 | F136: =IF(A136>$A$8,"",OFFSET(InputPriceData!E$15,CalculationsAndCharts!$A136+$A$11,IF($C$5,8,0),1,1)) -> 284.709991 | G136: =IF(A136>$A$8,"",OFFSET(InputPriceData!F$15,CalculationsAndCharts!$A136+$A$11,IF($C$5,8,0),1,1)) -> 288.850006 | H136: 0.05974737097 | I136: =IF($A136>$A$8-$A$19-2,"",BPTrunc(G136,$A$17,$A$18,$A$19)) -> -0.1171685442 | K136: 0.1479617274 | L136: 0.2105224984 | N136: -0.3645532415 | O136: -0.3384580235 | T136: 0.05974737097 | U136: -0.1171685442 | AP136: 83018300
A137: 105 | B137: =IF(A137>$A$8,"",OFFSET(InputPriceData!B$15,$A137+$A$11,0,1,1)) -> 2019-08-15 | C137: =IF(A137>$A$8,"",OFFSET(InputPriceData!G$15,CalculationsAndCharts!$A137+$A$11,IF($C$5,8,0),1,1)) -> 99556600 | D137: =IF(A137>$A$8,"",OFFSET(InputPriceData!C$15,CalculationsAndCharts!$A137+$A$11,IF($C$5,8,0),1,1)) -> 284.880005 | E137: =IF(A137>$A$8,"",OFFSET(InputPriceData!D$15,CalculationsAndCharts!$A137+$A$11,IF($C$5,8,0),1,1)) -> 285.640015 | F137: =IF(A137>$A$8,"",OFFSET(InputPriceData!E$15,CalculationsAndCharts!$A137+$A$11,IF($C$5,8,0),1,1)) -> 282.390015 | G137: =IF(A137>$A$8,"",OFFSET(InputPriceData!F$15,CalculationsAndCharts!$A137+$A$11,IF($C$5,8,0),1,1)) -> 284.649994 | H137: -0.009797755101 | I137: =IF($A137>$A$8-$A$19-2,"",BPTrunc(G137,$A$17,$A$18,$A$19)) -> -0.1574742442 | K137: -0.3890559999 | L137: 0.3302694693 | N137: -0.6718372354 | O137: -0.2730082298 | T137: -0.009797755101 | U137: -0.1574742442 | AQ137: 99556600
A138: 106 | B138: =IF(A138>$A$8,"",OFFSET(InputPriceData!B$15,$A138+$A$11,0,1,1)) -> 2019-08-14 | C138: =IF(A138>$A$8,"",OFFSET(InputPriceData!G$15,CalculationsAndCharts!$A138+$A$11,IF($C$5,8,0),1,1)) -> 135622100 | D138: =IF(A138>$A$8,"",OFFSET(InputPriceData!C$15,CalculationsAndCharts!$A138+$A$11,IF($C$5,8,0),1,1)) -> 288.070007 | E138: =IF(A138>$A$8,"",OFFSET(InputPriceData!D$15,CalculationsAndCharts!$A138+$A$11,IF($C$5,8,0),1,1)) -> 288.73999 | F138: =IF(A138>$A$8,"",OFFSET(InputPriceData!E$15,CalculationsAndCharts!$A138+$A$11,IF($C$5,8,0),1,1)) -> 283.76001 | G138: =IF(A138>$A$8,"",OFFSET(InputPriceData!F$15,CalculationsAndCharts!$A138+$A$11,IF($C$5,8,0),1,1)) -> 283.899994 | H138: -0.001586312771 | I138: =IF($A138>$A$8-$A$19-2,"",BPTrunc(G138,$A$17,$A$18,$A$19)) -> -0.1702135451 | K138: 0.2989320003 | L138: -0.3084498769 | N138: 0.3404247811 | O138: -1.361706051 | T138: -0.001586312771 | U138: -0.1702135451 | AQ138: 135622100
A139: 107 | B139: =IF(A139>$A$8,"",OFFSET(InputPriceData!B$15,$A139+$A$11,0,1,1)) -> 2019-08-13 | C139: =IF(A139>$A$8,"",OFFSET(InputPriceData!G$15,CalculationsAndCharts!$A139+$A$11,IF($C$5,8,0),1,1)) -> 94299800 | D139: =IF(A139>$A$8,"",OFFSET(InputPriceData!C$15,CalculationsAndCharts!$A139+$A$11,IF($C$5,8,0),1,1)) -> 287.73999 | E139: =IF(A139>$A$8,"",OFFSET(InputPriceData!D$15,CalculationsAndCharts!$A139+$A$11,IF($C$5,8,0),1,1)) -> 294.149994 | F139: =IF(A139>$A$8,"",OFFSET(InputPriceData!E$15,CalculationsAndCharts!$A139+$A$11,IF($C$5,8,0),1,1)) -> 287.359985 | G139: =IF(A139>$A$8,"",OFFSET(InputPriceData!F$15,CalculationsAndCharts!$A139+$A$11,IF($C$5,8,0),1,1)) -> 292.549988 | H139: -0.1190387079 | I139: =IF($A139>$A$8-$A$19-2,"",BPTrunc(G139,$A$17,$A$18,$A$19)) -> -0.3724429803 | K139: 0.639734813 | L139: -1.353967061 | N139: 0.8727537074 | O139: -3.107411589 | T139: -0.1190387079 | U139: -0.3724429803 | AP139: 94299800
A140: 108 | B140: =IF(A140>$A$8,"",OFFSET(InputPriceData!B$15,$A140+$A$11,0,1,1)) -> 2019-08-12 | C140: =IF(A140>$A$8,"",OFFSET(InputPriceData!G$15,CalculationsAndCharts!$A140+$A$11,IF($C$5,8,0),1,1)) -> 62629500 | D140: =IF(A140>$A$8,"",OFFSET(InputPriceData!C$15,CalculationsAndCharts!$A140+$A$11,IF($C$5,8,0),1,1)) -> 289.959991 | E140: =IF(A140>$A$8,"",OFFSET(InputPriceData!D$15,CalculationsAndCharts!$A140+$A$11,IF($C$5,8,0),1,1)) -> 291.609985 | F140: =IF(A140>$A$8,"",OFFSET(InputPriceData!E$15,CalculationsAndCharts!$A140+$A$11,IF($C$5,8,0),1,1)) -> 287.019989 | G140: =IF(A140>$A$8,"",OFFSET(InputPriceData!F$15,CalculationsAndCharts!$A140+$A$11,IF($C$5,8,0),1,1)) -> 288.070007 | H140: -0.2949551701 | I140: =IF($A140>$A$8-$A$19-2,"",BPTrunc(G140,$A$17,$A$18,$A$19)) -> -0.6651784309 | K140: 0.3627797166 | L140: -2.132510737 | N140: 0.5648544659 | O140: -4.555925051 | T140: -0.2949551701 | U140: -0.6651784309 | AQ140: 62629500
A141: 109 | B141: =IF(A141>$A$8,"",OFFSET(InputPriceData!B$15,$A141+$A$11,0,1,1)) -> 2019-08-09 | C141: =IF(A141>$A$8,"",OFFSET(InputPriceData!G$15,CalculationsAndCharts!$A141+$A$11,IF($C$5,8,0),1,1)) -> 93730000 | D141: =IF(A141>$A$8,"",OFFSET(InputPriceData!C$15,CalculationsAndCharts!$A141+$A$11,IF($C$5,8,0),1,1)) -> 292.579987 | E141: =IF(A141>$A$8,"",OFFSET(InputPriceData!D$15,CalculationsAndCharts!$A141+$A$11,IF($C$5,8,0),1,1)) -> 293.23999 | F141: =IF(A141>$A$8,"",OFFSET(InputPriceData!E$15,CalculationsAndCharts!$A141+$A$11,IF($C$5,8,0),1,1)) -> 289.649994 | G141: =IF(A141>$A$8,"",OFFSET(InputPriceData!F$15,CalculationsAndCharts!$A141+$A$11,IF($C$5,8,0),1,1)) -> 291.619995 | H141: -0.4323111444 | I141: =IF($A141>$A$8-$A$19-2,"",BPTrunc(G141,$A$17,$A$18,$A$19)) -> -0.9034114801 | K141: 0.6506621423 | L141: -3.244529009 | N141: 0.5728336754 | O141: -5.993302556 | T141: -0.4323111444 | U141: -0.9034114801 | AQ141: 93730000
A142: 110 | B142: =IF(A142>$A$8,"",OFFSET(InputPriceData!B$15,$A142+$A$11,0,1,1)) -> 2019-08-08 | C142: =IF(A142>$A$8,"",OFFSET(InputPriceData!G$15,CalculationsAndCharts!$A142+$A$11,IF($C$5,8,0),1,1)) -> 87713900 | D142: =IF(A142>$A$8,"",OFFSET(InputPriceData!C$15,CalculationsAndCharts!$A142+$A$11,IF($C$5,8,0),1,1)) -> 289.619995 | E142: =IF(A142>$A$8,"",OFFSET(InputPriceData!D$15,CalculationsAndCharts!$A142+$A$11,IF($C$5,8,0),1,1)) -> 293.619995 | F142: =IF(A142>$A$8,"",OFFSET(InputPriceData!E$15,CalculationsAndCharts!$A142+$A$11,IF($C$5,8,0),1,1)) -> 289.01001 | G142: =IF(A142>$A$8,"",OFFSET(InputPriceData!F$15,CalculationsAndCharts!$A142+$A$11,IF($C$5,8,0),1,1)) -> 293.619995 | H142: -0.6196361671 | I142: =IF($A142>$A$8-$A$19-2,"",BPTrunc(G142,$A$17,$A$18,$A$19)) -> -1.128208413 | K142: 0.01955267998 | L142: -3.737369682 | N142: -0.2828223033 | O142: -6.486428174 | T142: -0.6196361671 | U142: -1.128208413 | AP142: 87713900
A143: 111 | B143: =IF(A143>$A$8,"",OFFSET(InputPriceData!B$15,$A143+$A$11,0,1,1)) -> 2019-08-07 | C143: =IF(A143>$A$8,"",OFFSET(InputPriceData!G$15,CalculationsAndCharts!$A143+$A$11,IF($C$5,8,0),1,1)) -> 140572300 | D143: =IF(A143>$A$8,"",OFFSET(InputPriceData!C$15,CalculationsAndCharts!$A143+$A$11,IF($C$5,8,0),1,1)) -> 284.399994 | E143: =IF(A143>$A$8,"",OFFSET(InputPriceData!D$15,CalculationsAndCharts!$A143+$A$11,IF($C$5,8,0),1,1)) -> 288.820007 | F143: =IF(A143>$A$8,"",OFFSET(InputPriceData!E$15,CalculationsAndCharts!$A143+$A$11,IF($C$5,8,0),1,1)) -> 282.040009 | G143: =IF(A143>$A$8,"",OFFSET(InputPriceData!F$15,CalculationsAndCharts!$A143+$A$11,IF($C$5,8,0),1,1)) -> 287.970001 | H143: -0.6930644367 | I143: =IF($A143>$A$8-$A$19-2,"",BPTrunc(G143,$A$17,$A$18,$A$19)) -> -1.182048952 | K143: -0.8222069762 | L143: -3.336179644 | N143: -1.261858337 | O143: -5.830435373 | T143: -0.6930644367 | U143: -1.182048952 | AP143: 140572300
A144: 112 | B144: =IF(A144>$A$8,"",OFFSET(InputPriceData!B$15,$A144+$A$11,0,1,1)) -> 2019-08-06 | C144: =IF(A144>$A$8,"",OFFSET(InputPriceData!G$15,CalculationsAndCharts!$A144+$A$11,IF($C$5,8,0),1,1)) -> 120711700 | D144: =IF(A144>$A$8,"",OFFSET(InputPriceData!C$15,CalculationsAndCharts!$A144+$A$11,IF($C$5,8,0),1,1)) -> 285.910004 | E144: =IF(A144>$A$8,"",OFFSET(InputPriceData!D$15,CalculationsAndCharts!$A144+$A$11,IF($C$5,8,0),1,1)) -> 288.040009 | F144: =IF(A144>$A$8,"",OFFSET(InputPriceData!E$15,CalculationsAndCharts!$A144+$A$11,IF($C$5,8,0),1,1)) -> 284.279999 | G144: =IF(A144>$A$8,"",OFFSET(InputPriceData!F$15,CalculationsAndCharts!$A144+$A$11,IF($C$5,8,0),1,1)) -> 287.799988 | H144: -0.6070246368 | I144: =IF($A144>$A$8-$A$19-2,"",BPTrunc(G144,$A$17,$A$18,$A$19)) -> -1.026986163 | K144: -1.544437894 | L144: -2.097709926 | N144: -2.352122743 | O144: -3.809794238 | T144: -0.6070246368 | U144: -1.026986163 | AP144: 120711700
A145: 113 | B145: =IF(A145>$A$8,"",OFFSET(InputPriceData!B$15,$A145+$A$11,0,1,1)) -> 2019-08-05 | C145: =IF(A145>$A$8,"",OFFSET(InputPriceData!G$15,CalculationsAndCharts!$A145+$A$11,IF($C$5,8,0),1,1)) -> 178745400 | D145: =IF(A145>$A$8,"",OFFSET(InputPriceData!C$15,CalculationsAndCharts!$A145+$A$11,IF($C$5,8,0),1,1)) -> 288.089996 | E145: =IF(A145>$A$8,"",OFFSET(InputPriceData!D$15,CalculationsAndCharts!$A145+$A$11,IF($C$5,8,0),1,1)) -> 288.209991 | F145: =IF(A145>$A$8,"",OFFSET(InputPriceData!E$15,CalculationsAndCharts!$A145+$A$11,IF($C$5,8,0),1,1)) -> 281.720001 | G145: =IF(A145>$A$8,"",OFFSET(InputPriceData!F$15,CalculationsAndCharts!$A145+$A$11,IF($C$5,8,0),1,1)) -> 283.820007 | H145: -0.3916365125 | I145: =IF($A145>$A$8-$A$19-2,"",BPTrunc(G145,$A$17,$A$18,$A$19)) -> -0.6504156481 | K145: -1.426096223 | L145: -0.9237228522 | N145: -2.464446757 | O145: -1.438047132 | T145: -0.3916365125 | U145: -0.6504156481 | AQ145: 178745400
A146: 114 | B146: =IF(A146>$A$8,"",OFFSET(InputPriceData!B$15,$A146+$A$11,0,1,1)) -> 2019-08-02 | C146: =IF(A146>$A$8,"",OFFSET(InputPriceData!G$15,CalculationsAndCharts!$A146+$A$11,IF($C$5,8,0),1,1)) -> 116749700 | D146: =IF(A146>$A$8,"",OFFSET(InputPriceData!C$15,CalculationsAndCharts!$A146+$A$11,IF($C$5,8,0),1,1)) -> 293.850006 | E146: =IF(A146>$A$8,"",OFFSET(InputPriceData!D$15,CalculationsAndCharts!$A146+$A$11,IF($C$5,8,0),1,1)) -> 294.119995 | F146: =IF(A146>$A$8,"",OFFSET(InputPriceData!E$15,CalculationsAndCharts!$A146+$A$11,IF($C$5,8,0),1,1)) -> 290.899994 | G146: =IF(A146>$A$8,"",OFFSET(InputPriceData!F$15,CalculationsAndCharts!$A146+$A$11,IF($C$5,8,0),1,1)) -> 292.619995 | H146: -0.2073524457 | I146: =IF($A146>$A$8-$A$19-2,"",BPTrunc(G146,$A$17,$A$18,$A$19)) -> -0.2356706587 | K146: -0.6027015199 | L146: -0.6414131544 | N146: -1.447103465 | O146: 0.03307951279 | T146: -0.2073524457 | U146: -0.2356706587 | AP146: =IF(G146>=D146,C146,NA()) ->  | AQ146: =IF(G146<D146,C146,NA()) -> 116749700
A147: 115 | B147: =IF(A147>$A$8,"",OFFSET(InputPriceData!B$15,$A147+$A$11,0,1,1)) -> 2019-08-01 | C147: =IF(A147>$A$8,"",OFFSET(InputPriceData!G$15,CalculationsAndCharts!$A147+$A$11,IF($C$5,8,0),1,1)) -> 142646600 | D147: =IF(A147>$A$8,"",OFFSET(InputPriceData!C$15,CalculationsAndCharts!$A147+$A$11,IF($C$5,8,0),1,1)) -> 297.600006 | E147: =IF(A147>$A$8,"",OFFSET(InputPriceData!D$15,CalculationsAndCharts!$A147+$A$11,IF($C$5,8,0),1,1)) -> 300.869995 | F147: =IF(A147>$A$8,"",OFFSET(InputPriceData!E$15,CalculationsAndCharts!$A147+$A$11,IF($C$5,8,0),1,1)) -> 293.959991 | G147: =IF(A147>$A$8,"",OFFSET(InputPriceData!F$15,CalculationsAndCharts!$A147+$A$11,IF($C$5,8,0),1,1)) -> 294.839996 | H147: -0.1724437426 | I147: =IF($A147>$A$8-$A$19-2,"",BPTrunc(G147,$A$17,$A$18,$A$19)) -> 0.02724116581 | K147: -0.335372852 | L147: -0.6992896034 | N147: -0.936545609 | O147: 1.099992604 | T147: -0.1724437426 | U147: 0.02724116581 | AQ147: 142646600
A148: 116 | B148: =IF(A148>$A$8,"",OFFSET(InputPriceData!B$15,$A148+$A$11,0,1,1)) -> 2019-07-31 | C148: =IF(A148>$A$8,"",OFFSET(InputPriceData!G$15,CalculationsAndCharts!$A148+$A$11,IF($C$5,8,0),1,1)) -> 104245200 | D148: =IF(A148>$A$8,"",OFFSET(InputPriceData!C$15,CalculationsAndCharts!$A148+$A$11,IF($C$5,8,0),1,1)) -> 300.98999 | E148: =IF(A148>$A$8,"",OFFSET(InputPriceData!D$15,CalculationsAndCharts!$A148+$A$11,IF($C$5,8,0),1,1)) -> 301.200012 | F148: =IF(A148>$A$8,"",OFFSET(InputPriceData!E$15,CalculationsAndCharts!$A148+$A$11,IF($C$5,8,0),1,1)) -> 295.200012 | G148: =IF(A148>$A$8,"",OFFSET(InputPriceData!F$15,CalculationsAndCharts!$A148+$A$11,IF($C$5,8,0),1,1)) -> 297.429993 | H148: -0.1960388022 | I148: =IF($A148>$A$8-$A$19-2,"",BPTrunc(G148,$A$17,$A$18,$A$19)) -> 0.2112283398 | K148: 0.04577959071 | L148: -1.222012404 | N148: -0.2493554025 | O148: 1.516725441 | T148: -0.1960388022 | U148: 0.2112283398 | AQ148: 104245200
A149: 117 | B149: =IF(A149>$A$8,"",OFFSET(InputPriceData!B$15,$A149+$A$11,0,1,1)) -> 2019-07-30 | C149: =IF(A149>$A$8,"",OFFSET(InputPriceData!G$15,CalculationsAndCharts!$A149+$A$11,IF($C$5,8,0),1,1)) -> 45849000 | D149: =IF(A149>$A$8,"",OFFSET(InputPriceData!C$15,CalculationsAndCharts!$A149+$A$11,IF($C$5,8,0),1,1)) -> 299.910004 | E149: =IF(A149>$A$8,"",OFFSET(InputPriceData!D$15,CalculationsAndCharts!$A149+$A$11,IF($C$5,8,0),1,1)) -> 301.170013 | F149: =IF(A149>$A$8,"",OFFSET(InputPriceData!E$15,CalculationsAndCharts!$A149+$A$11,IF($C$5,8,0),1,1)) -> 299.48999 | G149: =IF(A149>$A$8,"",OFFSET(InputPriceData!F$15,CalculationsAndCharts!$A149+$A$11,IF($C$5,8,0),1,1)) -> 300.720001 | H149: -0.2947358355 | I149: =IF($A149>$A$8-$A$19-2,"",BPTrunc(G149,$A$17,$A$18,$A$19)) -> 0.2729335643 | K149: 0.2729454092 | L149: -2.041360422 | N149: 0.4684899795 | O149: 1.169111406 | T149: -0.2947358355 | U149: 0.2729335643 | AP149: 45849000
A150: 118 | B150: =IF(A150>$A$8,"",OFFSET(InputPriceData!B$15,$A150+$A$11,0,1,1)) -> 2019-07-29 | C150: =IF(A150>$A$8,"",OFFSET(InputPriceData!G$15,CalculationsAndCharts!$A150+$A$11,IF($C$5,8,0),1,1)) -> 38126500 | D150: =IF(A150>$A$8,"",OFFSET(InputPriceData!C$15,CalculationsAndCharts!$A150+$A$11,IF($C$5,8,0),1,1)) -> 301.880005 | E150: =IF(A150>$A$8,"",OFFSET(InputPriceData!D$15,CalculationsAndCharts!$A150+$A$11,IF($C$5,8,0),1,1)) -> 302.01001 | F150: =IF(A150>$A$8,"",OFFSET(InputPriceData!E$15,CalculationsAndCharts!$A150+$A$11,IF($C$5,8,0),1,1)) -> 300.850006 | G150: =IF(A150>$A$8,"",OFFSET(InputPriceData!F$15,CalculationsAndCharts!$A150+$A$11,IF($C$5,8,0),1,1)) -> 301.459991 | H150: -0.4315906839 | I150: =IF($A150>$A$8-$A$19-2,"",BPTrunc(G150,$A$17,$A$18,$A$19)) -> 0.2044286293 | K150: 0.2403326225 | L150: -2.829876726 | N150: 0.7448701694 | O150: 0.4817016065 | T150: -0.4315906839 | U150: 0.2044286293 | AQ150: 38126500
A151: 119 | B151: =IF(A151>$A$8,"",OFFSET(InputPriceData!B$15,$A151+$A$11,0,1,1)) -> 2019-07-26 | C151: =IF(A151>$A$8,"",OFFSET(InputPriceData!G$15,CalculationsAndCharts!$A151+$A$11,IF($C$5,8,0),1,1)) -> 45084100 | D151: =IF(A151>$A$8,"",OFFSET(InputPriceData!C$15,CalculationsAndCharts!$A151+$A$11,IF($C$5,8,0),1,1)) -> 300.76001 | E151: =IF(A151>$A$8,"",OFFSET(InputPriceData!D$15,CalculationsAndCharts!$A151+$A$11,IF($C$5,8,0),1,1)) -> 302.230011 | F151: =IF(A151>$A$8,"",OFFSET(InputPriceData!E$15,CalculationsAndCharts!$A151+$A$11,IF($C$5,8,0),1,1)) -> 300.619995 | G151: =IF(A151>$A$8,"",OFFSET(InputPriceData!F$15,CalculationsAndCharts!$A151+$A$11,IF($C$5,8,0),1,1)) -> 302.01001 | H151: -0.5504810771 | I151: =IF($A151>$A$8-$A$19-2,"",BPTrunc(G151,$A$17,$A$18,$A$19)) -> 0.08132897331 | K151: -0.08783409785 | L151: -3.215052365 | N151: 0.5145408707 | O151: -0.02656703082 | T151: -0.5504810771 | U151: 0.08132897331 | AP151: 45084100
A152: 120 | B152: =IF(A152>$A$8,"",OFFSET(InputPriceData!B$15,$A152+$A$11,0,1,1)) -> 2019-07-25 | C152: =IF(A152>$A$8,"",OFFSET(InputPriceData!G$15,CalculationsAndCharts!$A152+$A$11,IF($C$5,8,0),1,1)) -> 55394100 | D152: =IF(A152>$A$8,"",OFFSET(InputPriceData!C$15,CalculationsAndCharts!$A152+$A$11,IF($C$5,8,0),1,1)) -> 300.940002 | E152: =IF(A152>$A$8,"",OFFSET(InputPriceData!D$15,CalculationsAndCharts!$A152+$A$11,IF($C$5,8,0),1,1)) -> 301 | F152: =IF(A152>$A$8,"",OFFSET(InputPriceData!E$15,CalculationsAndCharts!$A152+$A$11,IF($C$5,8,0),1,1)) -> 299.109985 | G152: =IF(A152>$A$8,"",OFFSET(InputPriceData!F$15,CalculationsAndCharts!$A152+$A$11,IF($C$5,8,0),1,1)) -> 300 | H152: -0.5951201011 | I152: =IF($A152>$A$8-$A$19-2,"",BPTrunc(G152,$A$17,$A$18,$A$19)) -> -0.01073853409 | K152: -0.3517674791 | L152: -3.218953127 | N152: 0.2688831364 | O152: -0.3333143409 | T152: -0.5951201011 | U152: -0.01073853409 | AQ152: 55394100
A153: 121 | B153: =IF(A153>$A$8,"",OFFSET(InputPriceData!B$15,$A153+$A$11,0,1,1)) -> 2019-07-24 | C153: =IF(A153>$A$8,"",OFFSET(InputPriceData!G$15,CalculationsAndCharts!$A153+$A$11,IF($C$5,8,0),1,1)) -> 47213200 | D153: =IF(A153>$A$8,"",OFFSET(InputPriceData!C$15,CalculationsAndCharts!$A153+$A$11,IF($C$5,8,0),1,1)) -> 299.190002 | E153: =IF(A153>$A$8,"",OFFSET(InputPriceData!D$15,CalculationsAndCharts!$A153+$A$11,IF($C$5,8,0),1,1)) -> 301.440002 | F153: =IF(A153>$A$8,"",OFFSET(InputPriceData!E$15,CalculationsAndCharts!$A153+$A$11,IF($C$5,8,0),1,1)) -> 299.089996 | G153: =IF(A153>$A$8,"",OFFSET(InputPriceData!F$15,CalculationsAndCharts!$A153+$A$11,IF($C$5,8,0),1,1)) -> 301.440002 | H153: -0.5729024449 | I153: =IF($A153>$A$8-$A$19-2,"",BPTrunc(G153,$A$17,$A$18,$A$19)) -> -0.06773022845 | K153: -0.5089990398 | L153: -2.928415629 | N153: 0.1173326049 | O153: -0.5237139755 | T153: -0.5729024449 | U153: -0.06773022845 | AP153: 47213200
A154: 122 | B154: =IF(A154>$A$8,"",OFFSET(InputPriceData!B$15,$A154+$A$11,0,1,1)) -> 2019-07-23 | C154: =IF(A154>$A$8,"",OFFSET(InputPriceData!G$15,CalculationsAndCharts!$A154+$A$11,IF($C$5,8,0),1,1)) -> 44564500 | D154: =IF(A154>$A$8,"",OFFSET(InputPriceData!C$15,CalculationsAndCharts!$A154+$A$11,IF($C$5,8,0),1,1)) -> 299.140015 | E154: =IF(A154>$A$8,"",OFFSET(InputPriceData!D$15,CalculationsAndCharts!$A154+$A$11,IF($C$5,8,0),1,1)) -> 300.029999 | F154: =IF(A154>$A$8,"",OFFSET(InputPriceData!E$15,CalculationsAndCharts!$A154+$A$11,IF($C$5,8,0),1,1)) -> 298.220001 | G154: =IF(A154>$A$8,"",OFFSET(InputPriceData!F$15,CalculationsAndCharts!$A154+$A$11,IF($C$5,8,0),1,1)) -> 300.029999 | H154: -0.4934796722 | I154: =IF($A154>$A$8-$A$19-2,"",BPTrunc(G154,$A$17,$A$18,$A$19)) -> -0.0914111616 | K154: -0.9413649689 | L154: -2.019513064 | N154: -0.3154091405 | O154: -0.2330578291 | T154: -0.4934796722 | U154: -0.0914111616 | AP154: 44564500
A155: 123 | B155: =IF(A155>$A$8,"",OFFSET(InputPriceData!B$15,$A155+$A$11,0,1,1)) -> 2019-07-22 | C155: =IF(A155>$A$8,"",OFFSET(InputPriceData!G$15,CalculationsAndCharts!$A155+$A$11,IF($C$5,8,0),1,1)) -> 43638100 | D155: =IF(A155>$A$8,"",OFFSET(InputPriceData!C$15,CalculationsAndCharts!$A155+$A$11,IF($C$5,8,0),1,1)) -> 297.609985 | E155: =IF(A155>$A$8,"",OFFSET(InputPriceData!D$15,CalculationsAndCharts!$A155+$A$11,IF($C$5,8,0),1,1)) -> 298.5 | F155: =IF(A155>$A$8,"",OFFSET(InputPriceData!E$15,CalculationsAndCharts!$A155+$A$11,IF($C$5,8,0),1,1)) -> 297.040009 | G155: =IF(A155>$A$8,"",OFFSET(InputPriceData!F$15,CalculationsAndCharts!$A155+$A$11,IF($C$5,8,0),1,1)) -> 297.899994 | H155: -0.305947112 | I155: =IF($A155>$A$8-$A$19-2,"",BPTrunc(G155,$A$17,$A$18,$A$19)) -> -0.02634024653 | K155: -1.217245584 | L155: -0.618437088 | N155: -0.3965979889 | O155: 0.2385565097 | T155: -0.305947112 | U155: -0.02634024653 | AP155: 43638100
A156: 124 | B156: =IF(A156>$A$8,"",OFFSET(InputPriceData!B$15,$A156+$A$11,0,1,1)) -> 2019-07-19 | C156: =IF(A156>$A$8,"",OFFSET(InputPriceData!G$15,CalculationsAndCharts!$A156+$A$11,IF($C$5,8,0),1,1)) -> 58678600 | D156: =IF(A156>$A$8,"",OFFSET(InputPriceData!C$15,CalculationsAndCharts!$A156+$A$11,IF($C$5,8,0),1,1)) -> 300.040009 | E156: =IF(A156>$A$8,"",OFFSET(InputPriceData!D$15,CalculationsAndCharts!$A156+$A$11,IF($C$5,8,0),1,1)) -> 300.070007 | F156: =IF(A156>$A$8,"",OFFSET(InputPriceData!E$15,CalculationsAndCharts!$A156+$A$11,IF($C$5,8,0),1,1)) -> 296.980011 | G156: =IF(A156>$A$8,"",OFFSET(InputPriceData!F$15,CalculationsAndCharts!$A156+$A$11,IF($C$5,8,0),1,1)) -> 297.170013 | H156: -0.03635700984 | I156: =IF($A156>$A$8-$A$19-2,"",BPTrunc(G156,$A$17,$A$18,$A$19)) -> 0.0716260426 | K156: -0.9910901612 | L156: 0.7729481021 | N156: 0.02055310997 | O156: 0.4092031457 | T156: -0.03635700984 | U156: 0.0716260426 | AQ156: 58678600
A157: 125 | B157: =IF(A157>$A$8,"",OFFSET(InputPriceData!B$15,$A157+$A$11,0,1,1)) -> 2019-07-18 | C157: =IF(A157>$A$8,"",OFFSET(InputPriceData!G$15,CalculationsAndCharts!$A157+$A$11,IF($C$5,8,0),1,1)) -> 51392600 | D157: =IF(A157>$A$8,"",OFFSET(InputPriceData!C$15,CalculationsAndCharts!$A157+$A$11,IF($C$5,8,0),1,1)) -> 297.190002 | E157: =IF(A157>$A$8,"",OFFSET(InputPriceData!D$15,CalculationsAndCharts!$A157+$A$11,IF($C$5,8,0),1,1)) -> 299.25 | F157: =IF(A157>$A$8,"",OFFSET(InputPriceData!E$15,CalculationsAndCharts!$A157+$A$11,IF($C$5,8,0),1,1)) -> 296.700012 | G157: =IF(A157>$A$8,"",OFFSET(InputPriceData!F$15,CalculationsAndCharts!$A157+$A$11,IF($C$5,8,0),1,1)) -> 298.829987 | H157: 0.230611407 | I157: =IF($A157>$A$8-$A$19-2,"",BPTrunc(G157,$A$17,$A$18,$A$19)) -> 0.1243995092 | K157: -0.7074655872 | L157: 2.091134029 | N157: 0.08373417254 | O157: 0.6626628829 | T157: 0.230611407 | U157: 0.1243995092 | AP157: 51392600
A158: 126 | B158: =IF(A158>$A$8,"",OFFSET(InputPriceData!B$15,$A158+$A$11,0,1,1)) -> 2019-07-17 | C158: =IF(A158>$A$8,"",OFFSET(InputPriceData!G$15,CalculationsAndCharts!$A158+$A$11,IF($C$5,8,0),1,1)) -> 36036300 | D158: =IF(A158>$A$8,"",OFFSET(InputPriceData!C$15,CalculationsAndCharts!$A158+$A$11,IF($C$5,8,0),1,1)) -> 299.75 | E158: =IF(A158>$A$8,"",OFFSET(InputPriceData!D$15,CalculationsAndCharts!$A158+$A$11,IF($C$5,8,0),1,1)) -> 299.929993 | F158: =IF(A158>$A$8,"",OFFSET(InputPriceData!E$15,CalculationsAndCharts!$A158+$A$11,IF($C$5,8,0),1,1)) -> 297.73999 | G158: =IF(A158>$A$8,"",OFFSET(InputPriceData!F$15,CalculationsAndCharts!$A158+$A$11,IF($C$5,8,0),1,1)) -> 297.73999 | H158: 0.4740704944 | I158: =IF($A158>$A$8-$A$19-2,"",BPTrunc(G158,$A$17,$A$18,$A$19)) -> 0.1852722835 | K158: -0.3521891877 | L158: 3.196612154 | N158: 0.04997656581 | O158: 1.061657135 | T158: 0.4740704944 | U158: 0.1852722835 | AQ158: 36036300
A159: 127 | B159: =IF(A159>$A$8,"",OFFSET(InputPriceData!B$15,$A159+$A$11,0,1,1)) -> 2019-07-16 | C159: =IF(A159>$A$8,"",OFFSET(InputPriceData!G$15,CalculationsAndCharts!$A159+$A$11,IF($C$5,8,0),1,1)) -> 36650100 | D159: =IF(A159>$A$8,"",OFFSET(InputPriceData!C$15,CalculationsAndCharts!$A159+$A$11,IF($C$5,8,0),1,1)) -> 300.649994 | E159: =IF(A159>$A$8,"",OFFSET(InputPriceData!D$15,CalculationsAndCharts!$A159+$A$11,IF($C$5,8,0),1,1)) -> 300.880005 | F159: =IF(A159>$A$8,"",OFFSET(InputPriceData!E$15,CalculationsAndCharts!$A159+$A$11,IF($C$5,8,0),1,1)) -> 299.440002 | G159: =IF(A159>$A$8,"",OFFSET(InputPriceData!F$15,CalculationsAndCharts!$A159+$A$11,IF($C$5,8,0),1,1)) -> 299.779999 | H159: 0.6629926652 | I159: =IF($A159>$A$8-$A$19-2,"",BPTrunc(G159,$A$17,$A$18,$A$19)) -> 0.2573941003 | K159: 0.2243029752 | L159: 3.753653016 | N159: 0.1741299956 | O159: 1.370234606 | T159: 0.6629926652 | U159: 0.2573941003 | AQ159: 36650100
A160: 128 | B160: =IF(A160>$A$8,"",OFFSET(InputPriceData!B$15,$A160+$A$11,0,1,1)) -> 2019-07-15 | C160: =IF(A160>$A$8,"",OFFSET(InputPriceData!G$15,CalculationsAndCharts!$A160+$A$11,IF($C$5,8,0),1,1)) -> 33900000 | D160: =IF(A160>$A$8,"",OFFSET(InputPriceData!C$15,CalculationsAndCharts!$A160+$A$11,IF($C$5,8,0),1,1)) -> 301.130005 | E160: =IF(A160>$A$8,"",OFFSET(InputPriceData!D$15,CalculationsAndCharts!$A160+$A$11,IF($C$5,8,0),1,1)) -> 301.130005 | F160: =IF(A160>$A$8,"",OFFSET(InputPriceData!E$15,CalculationsAndCharts!$A160+$A$11,IF($C$5,8,0),1,1)) -> 300.190002 | G160: =IF(A160>$A$8,"",OFFSET(InputPriceData!F$15,CalculationsAndCharts!$A160+$A$11,IF($C$5,8,0),1,1)) -> 300.75 | H160: 0.7439714216 | I160: =IF($A160>$A$8-$A$19-2,"",BPTrunc(G160,$A$17,$A$18,$A$19)) -> 0.3051039989 | K160: 0.5887314001 | L160: 3.875097129 | N160: 0.05384764462 | O160: 1.776776349 | T160: 0.7439714216 | U160: 0.3051039989 | AQ160: 33900000
A161: 129 | B161: =IF(A161>$A$8,"",OFFSET(InputPriceData!B$15,$A161+$A$11,0,1,1)) -> 2019-07-12 | C161: =IF(A161>$A$8,"",OFFSET(InputPriceData!G$15,CalculationsAndCharts!$A161+$A$11,IF($C$5,8,0),1,1)) -> 40326000 | D161: =IF(A161>$A$8,"",OFFSET(InputPriceData!C$15,CalculationsAndCharts!$A161+$A$11,IF($C$5,8,0),1,1)) -> 299.850006 | E161: =IF(A161>$A$8,"",OFFSET(InputPriceData!D$15,CalculationsAndCharts!$A161+$A$11,IF($C$5,8,0),1,1)) -> 300.730011 | F161: =IF(A161>$A$8,"",OFFSET(InputPriceData!E$15,CalculationsAndCharts!$A161+$A$11,IF($C$5,8,0),1,1)) -> 299.51001 | G161: =IF(A161>$A$8,"",OFFSET(InputPriceData!F$15,CalculationsAndCharts!$A161+$A$11,IF($C$5,8,0),1,1)) -> 300.649994 | H161: =IF($A161<($A$8-$A$19-2),$D$20*(G161-G163)+$D$21*H162-$D$19*H163,IF($A161<($A$8-$A$19),0,"")) -> 0.7396625244 | I161: =IF($A161>$A$8-$A$19-2,"",BPTrunc(G161,$A$17,$A$18,$A$19)) -> 0.3666035229 | K161: 0.704305979 | L161: =IF($A161>$A$8-$A$19-2-$D$23,"",SUMPRODUCT(OFFSET($M$32,1,0,$D$23,1),OFFSET(K161,1,0,$D$23,1))) -> 3.733669168 | N161: -0.1283445276 | O161: =IF($A161>$A$8-$A$19-2-$D$23,"",SUMPRODUCT(OFFSET($M$32,1,0,$D$23,1),OFFSET(N161,1,0,$D$23,1))) -> 2.327965665 | T161: 0.7396625244 | U161: 0.3666035229 | AP161: 40326000
A162: 130 | B162: =IF(A162>$A$8,"",OFFSET(InputPriceData!B$15,$A162+$A$11,0,1,1)) -> 2019-07-11 | C162: =IF(A162>$A$8,"",OFFSET(InputPriceData!G$15,CalculationsAndCharts!$A162+$A$11,IF($C$5,8,0),1,1)) -> 50826100 | D162: =IF(A162>$A$8,"",OFFSET(InputPriceData!C$15,CalculationsAndCharts!$A162+$A$11,IF($C$5,8,0),1,1)) -> 299.320007 | E162: =IF(A162>$A$8,"",OFFSET(InputPriceData!D$15,CalculationsAndCharts!$A162+$A$11,IF($C$5,8,0),1,1)) -> 299.579987 | F162: =IF(A162>$A$8,"",OFFSET(InputPriceData!E$15,CalculationsAndCharts!$A162+$A$11,IF($C$5,8,0),1,1)) -> 298.200012 | G162: =IF(A162>$A$8,"",OFFSET(InputPriceData!F$15,CalculationsAndCharts!$A162+$A$11,IF($C$5,8,0),1,1)) -> 299.309998 | H162: 0.6846396064 | I162: =IF($A162>$A$8-$A$19-2,"",BPTrunc(G162,$A$17,$A$18,$A$19)) -> 0.4508162146 | K162: =IF($A162>$A$8-$A$19-2-$D$23,"",$D$24*H162-L162) -> 0.725861257 | L162: 3.381976381 | M162: =IF(A162>$D$23,"",($D$23-A162+1)/$D$23) ->  | N162: =IF($A162>$A$8-$A$19-2-$D$23,"",$D$24*I162-O162) -> -0.1994930994 | O162: 2.904390387 | T162: =IF(OR($R$18=1,$R$18=2),$H162,IF($R$18=3,$I162,$K162)) -> 0.6846396064 | U162: =IF($R$18=1,$I162,IF($R$18=2,$K162,$N162)) -> 0.4508162146 | AQ162: 50826100
A163: 131 | B163: =IF(A163>$A$8,"",OFFSET(InputPriceData!B$15,$A163+$A$11,0,1,1)) -> 2019-07-10 | C163: =IF(A163>$A$8,"",OFFSET(InputPriceData!G$15,CalculationsAndCharts!$A163+$A$11,IF($C$5,8,0),1,1)) -> 58448500 | D163: =IF(A163>$A$8,"",OFFSET(InputPriceData!C$15,CalculationsAndCharts!$A163+$A$11,IF($C$5,8,0),1,1)) -> 298.369995 | E163: =IF(A163>$A$8,"",OFFSET(InputPriceData!D$15,CalculationsAndCharts!$A163+$A$11,IF($C$5,8,0),1,1)) -> 299.660004 | F163: =IF(A163>$A$8,"",OFFSET(InputPriceData!E$15,CalculationsAndCharts!$A163+$A$11,IF($C$5,8,0),1,1)) -> 297.779999 | G163: =IF(A163>$A$8,"",OFFSET(InputPriceData!F$15,CalculationsAndCharts!$A163+$A$11,IF($C$5,8,0),1,1)) -> 298.609985 | H163: 0.5923319623 | I163: =IF($A163>$A$8-$A$19-2,"",BPTrunc(G163,$A$17,$A$18,$A$19)) -> 0.5348929413 | K163: 0.7326272729 | L163: 2.821364501 | N163: 0.1194171808 | O163: 3.089940467 | T163: 0.5923319623 | U163: 0.5348929413 | AP163: 58448500
A164: 132 | B164: =IF(A164>$A$8,"",OFFSET(InputPriceData!B$15,$A164+$A$11,0,1,1)) -> 2019-07-09 | C164: =IF(A164>$A$8,"",OFFSET(InputPriceData!G$15,CalculationsAndCharts!$A164+$A$11,IF($C$5,8,0),1,1)) -> 41101300 | D164: =IF(A164>$A$8,"",OFFSET(InputPriceData!C$15,CalculationsAndCharts!$A164+$A$11,IF($C$5,8,0),1,1)) -> 295.540009 | E164: =IF(A164>$A$8,"",OFFSET(InputPriceData!D$15,CalculationsAndCharts!$A164+$A$11,IF($C$5,8,0),1,1)) -> 297.519989 | F164: =IF(A164>$A$8,"",OFFSET(InputPriceData!E$15,CalculationsAndCharts!$A164+$A$11,IF($C$5,8,0),1,1)) -> 295.480011 | G164: =IF(A164>$A$8,"",OFFSET(InputPriceData!F$15,CalculationsAndCharts!$A164+$A$11,IF($C$5,8,0),1,1)) -> 297.190002 | H164: 0.4720059812 | I164: =IF($A164>$A$8-$A$19-2,"",BPTrunc(G164,$A$17,$A$18,$A$19)) -> 0.5590270511 | K164: 0.7293895852 | L164: 2.102646302 | N164: 0.5013261065 | O164: 2.8528362 | T164: 0.4720059812 | U164: 0.5590270511 | AP164: 41101300
A165: 133 | B165: =IF(A165>$A$8,"",OFFSET(InputPriceData!B$15,$A165+$A$11,0,1,1)) -> 2019-07-08 | C165: =IF(A165>$A$8,"",OFFSET(InputPriceData!G$15,CalculationsAndCharts!$A165+$A$11,IF($C$5,8,0),1,1)) -> 45841800 | D165: =IF(A165>$A$8,"",OFFSET(InputPriceData!C$15,CalculationsAndCharts!$A165+$A$11,IF($C$5,8,0),1,1)) -> 297.01001 | E165: =IF(A165>$A$8,"",OFFSET(InputPriceData!D$15,CalculationsAndCharts!$A165+$A$11,IF($C$5,8,0),1,1)) -> 298.26001 | F165: =IF(A165>$A$8,"",OFFSET(InputPriceData!E$15,CalculationsAndCharts!$A165+$A$11,IF($C$5,8,0),1,1)) -> 296.220001 | G165: =IF(A165>$A$8,"",OFFSET(InputPriceData!F$15,CalculationsAndCharts!$A165+$A$11,IF($C$5,8,0),1,1)) -> 296.820007 | H165: 0.3294665679 | I165: =IF($A165>$A$8-$A$19-2,"",BPTrunc(G165,$A$17,$A$18,$A$19)) -> 0.5128633571 | K165: 0.9570915663 | L165: 1.019707841 | N165: 1.066203675 | O165: 2.010976468 | T165: 0.3294665679 | U165: 0.5128633571 | AQ165: 45841800
A166: 134 | B166: =IF(A166>$A$8,"",OFFSET(InputPriceData!B$15,$A166+$A$11,0,1,1)) -> 2019-07-05 | C166: =IF(A166>$A$8,"",OFFSET(InputPriceData!G$15,CalculationsAndCharts!$A166+$A$11,IF($C$5,8,0),1,1)) -> 51677300 | D166: =IF(A166>$A$8,"",OFFSET(InputPriceData!C$15,CalculationsAndCharts!$A166+$A$11,IF($C$5,8,0),1,1)) -> 297.440002 | E166: =IF(A166>$A$8,"",OFFSET(InputPriceData!D$15,CalculationsAndCharts!$A166+$A$11,IF($C$5,8,0),1,1)) -> 298.640015 | F166: =IF(A166>$A$8,"",OFFSET(InputPriceData!E$15,CalculationsAndCharts!$A166+$A$11,IF($C$5,8,0),1,1)) -> 296.01001 | G166: =IF(A166>$A$8,"",OFFSET(InputPriceData!F$15,CalculationsAndCharts!$A166+$A$11,IF($C$5,8,0),1,1)) -> 298.459991 | H166: 0.1293431114 | I166: =IF($A166>$A$8-$A$19-2,"",BPTrunc(G166,$A$17,$A$18,$A$19)) -> 0.3641839723 | K166: 1.186362212 | L166: -0.4103035432 | N166: 1.397681647 | O166: 0.7874221871 | T166: 0.1293431114 | U166: 0.3641839723 | AP166: 51677300
A167: 135 | B167: =IF(A167>$A$8,"",OFFSET(InputPriceData!B$15,$A167+$A$11,0,1,1)) -> 2019-07-03 | C167: =IF(A167>$A$8,"",OFFSET(InputPriceData!G$15,CalculationsAndCharts!$A167+$A$11,IF($C$5,8,0),1,1)) -> 40898900 | D167: =IF(A167>$A$8,"",OFFSET(InputPriceData!C$15,CalculationsAndCharts!$A167+$A$11,IF($C$5,8,0),1,1)) -> 297.179993 | E167: =IF(A167>$A$8,"",OFFSET(InputPriceData!D$15,CalculationsAndCharts!$A167+$A$11,IF($C$5,8,0),1,1)) -> 298.820007 | F167: =IF(A167>$A$8,"",OFFSET(InputPriceData!E$15,CalculationsAndCharts!$A167+$A$11,IF($C$5,8,0),1,1)) -> 297.019989 | G167: =IF(A167>$A$8,"",OFFSET(InputPriceData!F$15,CalculationsAndCharts!$A167+$A$11,IF($C$5,8,0),1,1)) -> 298.799988 | H167: -0.1216317964 | I167: =IF($A167>$A$8-$A$19-2,"",BPTrunc(G167,$A$17,$A$18,$A$19)) -> 0.1561835265 | K167: 0.930928184 | L167: -1.660718963 | N167: 1.055968738 | O167: -0.1188675795 | T167: -0.1216317964 | U167: 0.1561835265 | AP167: 40898900
A168: 136 | B168: =IF(A168>$A$8,"",OFFSET(InputPriceData!B$15,$A168+$A$11,0,1,1)) -> 2019-07-02 | C168: =IF(A168>$A$8,"",OFFSET(InputPriceData!G$15,CalculationsAndCharts!$A168+$A$11,IF($C$5,8,0),1,1)) -> 61504500 | D168: =IF(A168>$A$8,"",OFFSET(InputPriceData!C$15,CalculationsAndCharts!$A168+$A$11,IF($C$5,8,0),1,1)) -> 295.609985 | E168: =IF(A168>$A$8,"",OFFSET(InputPriceData!D$15,CalculationsAndCharts!$A168+$A$11,IF($C$5,8,0),1,1)) -> 296.48999 | F168: =IF(A168>$A$8,"",OFFSET(InputPriceData!E$15,CalculationsAndCharts!$A168+$A$11,IF($C$5,8,0),1,1)) -> 294.679993 | G168: =IF(A168>$A$8,"",OFFSET(InputPriceData!F$15,CalculationsAndCharts!$A168+$A$11,IF($C$5,8,0),1,1)) -> 296.429993 | H168: -0.3361229042 | I168: =IF($A168>$A$8-$A$19-2,"",BPTrunc(G168,$A$17,$A$18,$A$19)) -> 0.005660050954 | K168: 0.476797079 | L168: -2.493534504 | N168: 0.4777598379 | O168: -0.4437995321 | T168: -0.3361229042 | U168: 0.005660050954 | AP168: 61504500
A169: 137 | B169: =IF(A169>$A$8,"",OFFSET(InputPriceData!B$15,$A169+$A$11,0,1,1)) -> 2019-07-01 | C169: =IF(A169>$A$8,"",OFFSET(InputPriceData!G$15,CalculationsAndCharts!$A169+$A$11,IF($C$5,8,0),1,1)) -> 79107500 | D169: =IF(A169>$A$8,"",OFFSET(InputPriceData!C$15,CalculationsAndCharts!$A169+$A$11,IF($C$5,8,0),1,1)) -> 296.679993 | E169: =IF(A169>$A$8,"",OFFSET(InputPriceData!D$15,CalculationsAndCharts!$A169+$A$11,IF($C$5,8,0),1,1)) -> 296.920013 | F169: =IF(A169>$A$8,"",OFFSET(InputPriceData!E$15,CalculationsAndCharts!$A169+$A$11,IF($C$5,8,0),1,1)) -> 294.329987 | G169: =IF(A169>$A$8,"",OFFSET(InputPriceData!F$15,CalculationsAndCharts!$A169+$A$11,IF($C$5,8,0),1,1)) -> 295.660004 | H169: -0.4739193245 | I169: =IF($A169>$A$8-$A$19-2,"",BPTrunc(G169,$A$17,$A$18,$A$19)) -> -0.04985742187 | K169: -0.05178351433 | L169: -2.791732433 | N169: -0.1470150729 | O169: -0.1521294583 | T169: -0.4739193245 | U169: -0.04985742187 | AQ169: 79107500
A170: 138 | B170: =IF(A170>$A$8,"",OFFSET(InputPriceData!B$15,$A170+$A$11,0,1,1)) -> 2019-06-28 | C170: =IF(A170>$A$8,"",OFFSET(InputPriceData!G$15,CalculationsAndCharts!$A170+$A$11,IF($C$5,8,0),1,1)) -> 59350900 | D170: =IF(A170>$A$8,"",OFFSET(InputPriceData!C$15,CalculationsAndCharts!$A170+$A$11,IF($C$5,8,0),1,1)) -> 292.579987 | E170: =IF(A170>$A$8,"",OFFSET(InputPriceData!D$15,CalculationsAndCharts!$A170+$A$11,IF($C$5,8,0),1,1)) -> 293.549988 | F170: =IF(A170>$A$8,"",OFFSET(InputPriceData!E$15,CalculationsAndCharts!$A170+$A$11,IF($C$5,8,0),1,1)) -> 292.01001 | G170: =IF(A170>$A$8,"",OFFSET(InputPriceData!F$15,CalculationsAndCharts!$A170+$A$11,IF($C$5,8,0),1,1)) -> 293 | H170: -0.5142406812 | I170: =IF($A170>$A$8-$A$19-2,"",BPTrunc(G170,$A$17,$A$18,$A$19)) -> -0.005154571039 | K170: -0.621371485 | L170: -2.464072602 | N170: -0.4662459173 | O170: 0.435318491 | T170: -0.5142406812 | U170: -0.005154571039 | AP170: 59350900
A171: 139 | B171: =IF(A171>$A$8,"",OFFSET(InputPriceData!B$15,$A171+$A$11,0,1,1)) -> 2019-06-27 | C171: =IF(A171>$A$8,"",OFFSET(InputPriceData!G$15,CalculationsAndCharts!$A171+$A$11,IF($C$5,8,0),1,1)) -> 40355200 | D171: =IF(A171>$A$8,"",OFFSET(InputPriceData!C$15,CalculationsAndCharts!$A171+$A$11,IF($C$5,8,0),1,1)) -> 291.309998 | E171: =IF(A171>$A$8,"",OFFSET(InputPriceData!D$15,CalculationsAndCharts!$A171+$A$11,IF($C$5,8,0),1,1)) -> 292.059998 | F171: =IF(A171>$A$8,"",OFFSET(InputPriceData!E$15,CalculationsAndCharts!$A171+$A$11,IF($C$5,8,0),1,1)) -> 290.890015 | G171: =IF(A171>$A$8,"",OFFSET(InputPriceData!F$15,CalculationsAndCharts!$A171+$A$11,IF($C$5,8,0),1,1)) -> 291.5 | H171: -0.4383146899 | I171: =IF($A171>$A$8-$A$19-2,"",BPTrunc(G171,$A$17,$A$18,$A$19)) -> 0.1051945582 | K171: -0.9725246657 | L171: -1.657363474 | N171: -0.6127115897 | O171: 1.243878939 | T171: -0.4383146899 | U171: 0.1051945582 | AP171: 40355200
A172: 140 | B172: =IF(A172>$A$8,"",OFFSET(InputPriceData!B$15,$A172+$A$11,0,1,1)) -> 2019-06-26 | C172: =IF(A172>$A$8,"",OFFSET(InputPriceData!G$15,CalculationsAndCharts!$A172+$A$11,IF($C$5,8,0),1,1)) -> 51584900 | D172: =IF(A172>$A$8,"",OFFSET(InputPriceData!C$15,CalculationsAndCharts!$A172+$A$11,IF($C$5,8,0),1,1)) -> 291.75 | E172: =IF(A172>$A$8,"",OFFSET(InputPriceData!D$15,CalculationsAndCharts!$A172+$A$11,IF($C$5,8,0),1,1)) -> 292.309998 | F172: =IF(A172>$A$8,"",OFFSET(InputPriceData!E$15,CalculationsAndCharts!$A172+$A$11,IF($C$5,8,0),1,1)) -> 290.350006 | G172: =IF(A172>$A$8,"",OFFSET(InputPriceData!F$15,CalculationsAndCharts!$A172+$A$11,IF($C$5,8,0),1,1)) -> 290.470001 | H172: -0.2759963616 | I172: =IF($A172>$A$8-$A$19-2,"",BPTrunc(G172,$A$17,$A$18,$A$19)) -> 0.2608229832 | K172: -1.086750429 | L172: -0.5692277407 | N172: -0.5282620793 | O172: 2.093199979 | T172: -0.2759963616 | U172: 0.2608229832 | AQ172: 51584900
A173: 141 | B173: =IF(A173>$A$8,"",OFFSET(InputPriceData!B$15,$A173+$A$11,0,1,1)) -> 2019-06-25 | C173: =IF(A173>$A$8,"",OFFSET(InputPriceData!G$15,CalculationsAndCharts!$A173+$A$11,IF($C$5,8,0),1,1)) -> 82028700 | D173: =IF(A173>$A$8,"",OFFSET(InputPriceData!C$15,CalculationsAndCharts!$A173+$A$11,IF($C$5,8,0),1,1)) -> 293.700012 | E173: =IF(A173>$A$8,"",OFFSET(InputPriceData!D$15,CalculationsAndCharts!$A173+$A$11,IF($C$5,8,0),1,1)) -> 293.730011 | F173: =IF(A173>$A$8,"",OFFSET(InputPriceData!E$15,CalculationsAndCharts!$A173+$A$11,IF($C$5,8,0),1,1)) -> 290.640015 | G173: =IF(A173>$A$8,"",OFFSET(InputPriceData!F$15,CalculationsAndCharts!$A173+$A$11,IF($C$5,8,0),1,1)) -> 290.76001 | H173: -0.0692389903 | I173: =IF($A173>$A$8-$A$19-2,"",BPTrunc(G173,$A$17,$A$18,$A$19)) -> 0.4163608977 | K173: -0.7227064667 | L173: 0.3072725249 | N173: 0.1346173166 | O173: 2.36354807 | T173: -0.0692389903 | U173: 0.4163608977 | AQ173: 82028700
A174: 142 | B174: =IF(A174>$A$8,"",OFFSET(InputPriceData!B$15,$A174+$A$11,0,1,1)) -> 2019-06-24 | C174: =IF(A174>$A$8,"",OFFSET(InputPriceData!G$15,CalculationsAndCharts!$A174+$A$11,IF($C$5,8,0),1,1)) -> 47582700 | D174: =IF(A174>$A$8,"",OFFSET(InputPriceData!C$15,CalculationsAndCharts!$A174+$A$11,IF($C$5,8,0),1,1)) -> 294.230011 | E174: =IF(A174>$A$8,"",OFFSET(InputPriceData!D$15,CalculationsAndCharts!$A174+$A$11,IF($C$5,8,0),1,1)) -> 294.579987 | F174: =IF(A174>$A$8,"",OFFSET(InputPriceData!E$15,CalculationsAndCharts!$A174+$A$11,IF($C$5,8,0),1,1)) -> 293.470001 | G174: =IF(A174>$A$8,"",OFFSET(InputPriceData!F$15,CalculationsAndCharts!$A174+$A$11,IF($C$5,8,0),1,1)) -> 293.640015 | H174: 0.1004104878 | I174: =IF($A174>$A$8-$A$19-2,"",BPTrunc(G174,$A$17,$A$18,$A$19)) -> 0.4772520353 | K174: -0.2715729661 | L174: 0.874035893 | N174: 0.7073026027 | O174: 2.156209609 | T174: 0.1004104878 | U174: 0.4772520353 | AQ174: 47582700
A175: 143 | B175: =IF(A175>$A$8,"",OFFSET(InputPriceData!B$15,$A175+$A$11,0,1,1)) -> 2019-06-21 | C175: =IF(A175>$A$8,"",OFFSET(InputPriceData!G$15,CalculationsAndCharts!$A175+$A$11,IF($C$5,8,0),1,1)) -> 83309500 | D175: =IF(A175>$A$8,"",OFFSET(InputPriceData!C$15,CalculationsAndCharts!$A175+$A$11,IF($C$5,8,0),1,1)) -> 294.130005 | E175: =IF(A175>$A$8,"",OFFSET(InputPriceData!D$15,CalculationsAndCharts!$A175+$A$11,IF($C$5,8,0),1,1)) -> 295.519989 | F175: =IF(A175>$A$8,"",OFFSET(InputPriceData!E$15,CalculationsAndCharts!$A175+$A$11,IF($C$5,8,0),1,1)) -> 293.76001 | G175: =IF(A175>$A$8,"",OFFSET(InputPriceData!F$15,CalculationsAndCharts!$A175+$A$11,IF($C$5,8,0),1,1)) -> 294 | H175: 0.2137792637 | I175: =IF($A175>$A$8-$A$19-2,"",BPTrunc(G175,$A$17,$A$18,$A$19)) -> 0.458453436 | K175: 0.1261417111 | L175: 1.156533871 | N175: 0.9457324595 | O175: 1.804988156 | T175: 0.2137792637 | U175: 0.458453436 | AQ175: 83309500
A176: 144 | B176: =IF(A176>$A$8,"",OFFSET(InputPriceData!B$15,$A176+$A$11,0,1,1)) -> 2019-06-20 | C176: =IF(A176>$A$8,"",OFFSET(InputPriceData!G$15,CalculationsAndCharts!$A176+$A$11,IF($C$5,8,0),1,1)) -> 116570000 | D176: =IF(A176>$A$8,"",OFFSET(InputPriceData!C$15,CalculationsAndCharts!$A176+$A$11,IF($C$5,8,0),1,1)) -> 296.040009 | E176: =IF(A176>$A$8,"",OFFSET(InputPriceData!D$15,CalculationsAndCharts!$A176+$A$11,IF($C$5,8,0),1,1)) -> 296.309998 | F176: =IF(A176>$A$8,"",OFFSET(InputPriceData!E$15,CalculationsAndCharts!$A176+$A$11,IF($C$5,8,0),1,1)) -> 293.130005 | G176: =IF(A176>$A$8,"",OFFSET(InputPriceData!F$15,CalculationsAndCharts!$A176+$A$11,IF($C$5,8,0),1,1)) -> 295.859985 | H176: 0.2740759147 | I176: =IF($A176>$A$8-$A$19-2,"",BPTrunc(G176,$A$17,$A$18,$A$19)) -> 0.4150174882 | K176: 0.248385619 | L176: 1.396069869 | N176: 0.8359331885 | O176: 1.654171741 | T176: 0.2740759147 | U176: 0.4150174882 | AQ176: 116570000
A177: 145 | B177: =IF(A177>$A$8,"",OFFSET(InputPriceData!B$15,$A177+$A$11,0,1,1)) -> 2019-06-19 | C177: =IF(A177>$A$8,"",OFFSET(InputPriceData!G$15,CalculationsAndCharts!$A177+$A$11,IF($C$5,8,0),1,1)) -> 78674400 | D177: =IF(A177>$A$8,"",OFFSET(InputPriceData!C$15,CalculationsAndCharts!$A177+$A$11,IF($C$5,8,0),1,1)) -> 292.549988 | E177: =IF(A177>$A$8,"",OFFSET(InputPriceData!D$15,CalculationsAndCharts!$A177+$A$11,IF($C$5,8,0),1,1)) -> 293.649994 | F177: =IF(A177>$A$8,"",OFFSET(InputPriceData!E$15,CalculationsAndCharts!$A177+$A$11,IF($C$5,8,0),1,1)) -> 291.470001 | G177: =IF(A177>$A$8,"",OFFSET(InputPriceData!F$15,CalculationsAndCharts!$A177+$A$11,IF($C$5,8,0),1,1)) -> 293.059998 | H177: 0.3240429981 | I177: =IF($A177>$A$8-$A$19-2,"",BPTrunc(G177,$A$17,$A$18,$A$19)) -> 0.4078504216 | K177: 0.1480160338 | L177: 1.796241955 | N177: 0.506100059 | O177: 1.941002471 | T177: 0.3240429981 | U177: 0.4078504216 | AP177: 78674400
A178: 146 | B178: =IF(A178>$A$8,"",OFFSET(InputPriceData!B$15,$A178+$A$11,0,1,1)) -> 2019-06-18 | C178: =IF(A178>$A$8,"",OFFSET(InputPriceData!G$15,CalculationsAndCharts!$A178+$A$11,IF($C$5,8,0),1,1)) -> 85434800 | D178: =IF(A178>$A$8,"",OFFSET(InputPriceData!C$15,CalculationsAndCharts!$A178+$A$11,IF($C$5,8,0),1,1)) -> 291.390015 | E178: =IF(A178>$A$8,"",OFFSET(InputPriceData!D$15,CalculationsAndCharts!$A178+$A$11,IF($C$5,8,0),1,1)) -> 293.570007 | F178: =IF(A178>$A$8,"",OFFSET(InputPriceData!E$15,CalculationsAndCharts!$A178+$A$11,IF($C$5,8,0),1,1)) -> 290.98999 | G178: =IF(A178>$A$8,"",OFFSET(InputPriceData!F$15,CalculationsAndCharts!$A178+$A$11,IF($C$5,8,0),1,1)) -> 292.399994 | H178: 0.3986005668 | I178: =IF($A178>$A$8-$A$19-2,"",BPTrunc(G178,$A$17,$A$18,$A$19)) -> 0.4740611098 | K178: 0.002549660735 | L178: 2.38905374 | N178: -0.2205710314 | O178: 3.06493769 | T178: 0.3986005668 | U178: 0.4740611098 | AP178: 85434800
A179: 147 | B179: =IF(A179>$A$8,"",OFFSET(InputPriceData!B$15,$A179+$A$11,0,1,1)) -> 2019-06-17 | C179: =IF(A179>$A$8,"",OFFSET(InputPriceData!G$15,CalculationsAndCharts!$A179+$A$11,IF($C$5,8,0),1,1)) -> 39205700 | D179: =IF(A179>$A$8,"",OFFSET(InputPriceData!C$15,CalculationsAndCharts!$A179+$A$11,IF($C$5,8,0),1,1)) -> 289.519989 | E179: =IF(A179>$A$8,"",OFFSET(InputPriceData!D$15,CalculationsAndCharts!$A179+$A$11,IF($C$5,8,0),1,1)) -> 290.220001 | F179: =IF(A179>$A$8,"",OFFSET(InputPriceData!E$15,CalculationsAndCharts!$A179+$A$11,IF($C$5,8,0),1,1)) -> 289.179993 | G179: =IF(A179>$A$8,"",OFFSET(InputPriceData!F$15,CalculationsAndCharts!$A179+$A$11,IF($C$5,8,0),1,1)) -> 289.369995 | H179: 0.4947898398 | I179: =IF($A179>$A$8-$A$19-2,"",BPTrunc(G179,$A$17,$A$18,$A$19)) -> 0.6680972786 | K179: -0.1149433888 | L179: 3.083682427 | N179: -0.6773226368 | O179: 4.685906309 | T179: 0.4947898398 | U179: 0.6680972786 | AQ179: 39205700
A180: 148 | B180: =IF(A180>$A$8,"",OFFSET(InputPriceData!B$15,$A180+$A$11,0,1,1)) -> 2019-06-14 | C180: =IF(A180>$A$8,"",OFFSET(InputPriceData!G$15,CalculationsAndCharts!$A180+$A$11,IF($C$5,8,0),1,1)) -> 52324700 | D180: =IF(A180>$A$8,"",OFFSET(InputPriceData!C$15,CalculationsAndCharts!$A180+$A$11,IF($C$5,8,0),1,1)) -> 289.26001 | E180: =IF(A180>$A$8,"",OFFSET(InputPriceData!D$15,CalculationsAndCharts!$A180+$A$11,IF($C$5,8,0),1,1)) -> 289.929993 | F180: =IF(A180>$A$8,"",OFFSET(InputPriceData!E$15,CalculationsAndCharts!$A180+$A$11,IF($C$5,8,0),1,1)) -> 288.410004 | G180: =IF(A180>$A$8,"",OFFSET(InputPriceData!F$15,CalculationsAndCharts!$A180+$A$11,IF($C$5,8,0),1,1)) -> 289.26001 | H180: 0.5949570605 | I180: =IF($A180>$A$8-$A$19-2,"",BPTrunc(G180,$A$17,$A$18,$A$19)) -> 0.9221657543 | K180: 0.1785403949 | L180: 3.391201968 | N180: 0.05910984235 | O180: 5.473884683 | T180: 0.5949570605 | U180: 0.9221657543 | AP180: 52324700
A181: 149 | B181: =IF(A181>$A$8,"",OFFSET(InputPriceData!B$15,$A181+$A$11,0,1,1)) -> 2019-06-13 | C181: =IF(A181>$A$8,"",OFFSET(InputPriceData!G$15,CalculationsAndCharts!$A181+$A$11,IF($C$5,8,0),1,1)) -> 48945200 | D181: =IF(A181>$A$8,"",OFFSET(InputPriceData!C$15,CalculationsAndCharts!$A181+$A$11,IF($C$5,8,0),1,1)) -> 289.399994 | E181: =IF(A181>$A$8,"",OFFSET(InputPriceData!D$15,CalculationsAndCharts!$A181+$A$11,IF($C$5,8,0),1,1)) -> 289.980011 | F181: =IF(A181>$A$8,"",OFFSET(InputPriceData!E$15,CalculationsAndCharts!$A181+$A$11,IF($C$5,8,0),1,1)) -> 288.619995 | G181: =IF(A181>$A$8,"",OFFSET(InputPriceData!F$15,CalculationsAndCharts!$A181+$A$11,IF($C$5,8,0),1,1)) -> 289.579987 | H181: 0.6358021187 | I181: =IF($A181>$A$8-$A$19-2,"",BPTrunc(G181,$A$17,$A$18,$A$19)) -> 1.02866827 | K181: 0.4180571358 | L181: 3.396755577 | N181: 0.5986288477 | O181: 5.573380775 | T181: 0.6358021187 | U181: 1.02866827 | AP181: 48945200
A182: 150 | B182: =IF(A182>$A$8,"",OFFSET(InputPriceData!B$15,$A182+$A$11,0,1,1)) -> 2019-06-12 | C182: =IF(A182>$A$8,"",OFFSET(InputPriceData!G$15,CalculationsAndCharts!$A182+$A$11,IF($C$5,8,0),1,1)) -> 46984700 | D182: =IF(A182>$A$8,"",OFFSET(InputPriceData!C$15,CalculationsAndCharts!$A182+$A$11,IF($C$5,8,0),1,1)) -> 288.640015 | E182: =IF(A182>$A$8,"",OFFSET(InputPriceData!D$15,CalculationsAndCharts!$A182+$A$11,IF($C$5,8,0),1,1)) -> 289.26001 | F182: =IF(A182>$A$8,"",OFFSET(InputPriceData!E$15,CalculationsAndCharts!$A182+$A$11,IF($C$5,8,0),1,1)) -> 287.820007 | G182: =IF(A182>$A$8,"",OFFSET(InputPriceData!F$15,CalculationsAndCharts!$A182+$A$11,IF($C$5,8,0),1,1)) -> 288.390015 | H182: 0.6286060093 | I182: =IF($A182>$A$8-$A$19-2,"",BPTrunc(G182,$A$17,$A$18,$A$19)) -> 1.009530676 | K182: 0.6489699891 | L182: 3.122666066 | N182: 0.8897753374 | O182: 5.167408721 | T182: 0.6286060093 | U182: 1.009530676 | AQ182: 46984700
A183: 151 | B183: =IF(A183>$A$8,"",OFFSET(InputPriceData!B$15,$A183+$A$11,0,1,1)) -> 2019-06-11 | C183: =IF(A183>$A$8,"",OFFSET(InputPriceData!G$15,CalculationsAndCharts!$A183+$A$11,IF($C$5,8,0),1,1)) -> 58641300 | D183: =IF(A183>$A$8,"",OFFSET(InputPriceData!C$15,CalculationsAndCharts!$A183+$A$11,IF($C$5,8,0),1,1)) -> 290.98999 | E183: =IF(A183>$A$8,"",OFFSET(InputPriceData!D$15,CalculationsAndCharts!$A183+$A$11,IF($C$5,8,0),1,1)) -> 291.399994 | F183: =IF(A183>$A$8,"",OFFSET(InputPriceData!E$15,CalculationsAndCharts!$A183+$A$11,IF($C$5,8,0),1,1)) -> 288.179993 | G183: =IF(A183>$A$8,"",OFFSET(InputPriceData!F$15,CalculationsAndCharts!$A183+$A$11,IF($C$5,8,0),1,1)) -> 288.899994 | H183: 0.5695184809 | I183: =IF($A183>$A$8-$A$19-2,"",BPTrunc(G183,$A$17,$A$18,$A$19)) -> 0.8843949182 | K183: 1.000996462 | L183: 2.416114423 | N183: 1.562291212 | O183: 3.744078297 | T183: 0.5695184809 | U183: 0.8843949182 | AQ183: 58641300
A184: 152 | B184: =IF(A184>$A$8,"",OFFSET(InputPriceData!B$15,$A184+$A$11,0,1,1)) -> 2019-06-10 | C184: =IF(A184>$A$8,"",OFFSET(InputPriceData!G$15,CalculationsAndCharts!$A184+$A$11,IF($C$5,8,0),1,1)) -> 60799100 | D184: =IF(A184>$A$8,"",OFFSET(InputPriceData!C$15,CalculationsAndCharts!$A184+$A$11,IF($C$5,8,0),1,1)) -> 289.369995 | E184: =IF(A184>$A$8,"",OFFSET(InputPriceData!D$15,CalculationsAndCharts!$A184+$A$11,IF($C$5,8,0),1,1)) -> 290.820007 | F184: =IF(A184>$A$8,"",OFFSET(InputPriceData!E$15,CalculationsAndCharts!$A184+$A$11,IF($C$5,8,0),1,1)) -> 288.869995 | G184: =IF(A184>$A$8,"",OFFSET(InputPriceData!F$15,CalculationsAndCharts!$A184+$A$11,IF($C$5,8,0),1,1)) -> 288.970001 | H184: 0.4426501391 | I184: =IF($A184>$A$8-$A$19-2,"",BPTrunc(G184,$A$17,$A$18,$A$19)) -> 0.5969329522 | K184: 1.147185293 | L184: 1.508715542 | N184: 1.796654241 | O184: 1.784943472 | T184: 0.4426501391 | U184: 0.5969329522 | AQ184: 60799100
A185: 153 | B185: =IF(A185>$A$8,"",OFFSET(InputPriceData!B$15,$A185+$A$11,0,1,1)) -> 2019-06-07 | C185: =IF(A185>$A$8,"",OFFSET(InputPriceData!G$15,CalculationsAndCharts!$A185+$A$11,IF($C$5,8,0),1,1)) -> 74272200 | D185: =IF(A185>$A$8,"",OFFSET(InputPriceData!C$15,CalculationsAndCharts!$A185+$A$11,IF($C$5,8,0),1,1)) -> 285.929993 | E185: =IF(A185>$A$8,"",OFFSET(InputPriceData!D$15,CalculationsAndCharts!$A185+$A$11,IF($C$5,8,0),1,1)) -> 288.850006 | F185: =IF(A185>$A$8,"",OFFSET(InputPriceData!E$15,CalculationsAndCharts!$A185+$A$11,IF($C$5,8,0),1,1)) -> 285.73999 | G185: =IF(A185>$A$8,"",OFFSET(InputPriceData!F$15,CalculationsAndCharts!$A185+$A$11,IF($C$5,8,0),1,1)) -> 287.649994 | H185: 0.2876609143 | I185: =IF($A185>$A$8-$A$19-2,"",BPTrunc(G185,$A$17,$A$18,$A$19)) -> 0.2335844397 | K185: 0.9619229735 | L185: 0.7640425125 | N185: 1.651385083 | O185: -0.2498784446 | T185: 0.2876609143 | U185: 0.2335844397 | AP185: 74272200
A186: 154 | B186: =IF(A186>$A$8,"",OFFSET(InputPriceData!B$15,$A186+$A$11,0,1,1)) -> 2019-06-06 | C186: =IF(A186>$A$8,"",OFFSET(InputPriceData!G$15,CalculationsAndCharts!$A186+$A$11,IF($C$5,8,0),1,1)) -> 69430400 | D186: =IF(A186>$A$8,"",OFFSET(InputPriceData!C$15,CalculationsAndCharts!$A186+$A$11,IF($C$5,8,0),1,1)) -> 283.290009 | E186: =IF(A186>$A$8,"",OFFSET(InputPriceData!D$15,CalculationsAndCharts!$A186+$A$11,IF($C$5,8,0),1,1)) -> 285.549988 | F186: =IF(A186>$A$8,"",OFFSET(InputPriceData!E$15,CalculationsAndCharts!$A186+$A$11,IF($C$5,8,0),1,1)) -> 282.570007 | G186: =IF(A186>$A$8,"",OFFSET(InputPriceData!F$15,CalculationsAndCharts!$A186+$A$11,IF($C$5,8,0),1,1)) -> 284.799988 | H186: 0.1656700835 | I186: =IF($A186>$A$8-$A$19-2,"",BPTrunc(G186,$A$17,$A$18,$A$19)) -> -0.1371785445 | K186: 0.6904145575 | L186: 0.3036059434 | N186: 1.476426206 | O186: -2.299497473 | T186: 0.1656700835 | U186: -0.1371785445 | AP186: 69430400
A187: 155 | B187: =IF(A187>$A$8,"",OFFSET(InputPriceData!B$15,$A187+$A$11,0,1,1)) -> 2019-06-05 | C187: =IF(A187>$A$8,"",OFFSET(InputPriceData!G$15,CalculationsAndCharts!$A187+$A$11,IF($C$5,8,0),1,1)) -> 71169700 | D187: =IF(A187>$A$8,"",OFFSET(InputPriceData!C$15,CalculationsAndCharts!$A187+$A$11,IF($C$5,8,0),1,1)) -> 282.329987 | E187: =IF(A187>$A$8,"",OFFSET(InputPriceData!D$15,CalculationsAndCharts!$A187+$A$11,IF($C$5,8,0),1,1)) -> 282.98999 | F187: =IF(A187>$A$8,"",OFFSET(InputPriceData!E$15,CalculationsAndCharts!$A187+$A$11,IF($C$5,8,0),1,1)) -> 280.320007 | G187: =IF(A187>$A$8,"",OFFSET(InputPriceData!F$15,CalculationsAndCharts!$A187+$A$11,IF($C$5,8,0),1,1)) -> 282.959991 | H187: 0.09816187639 | I187: =IF($A187>$A$8-$A$19-2,"",BPTrunc(G187,$A$17,$A$18,$A$19)) -> -0.4899104262 | K187: 0.4271095937 | L187: 0.1618616647 | N187: 0.7733295605 | O187: -3.712792118 | T187: 0.09816187639 | U187: -0.4899104262 | AP187: 71169700
A188: 156 | B188: =IF(A188>$A$8,"",OFFSET(InputPriceData!B$15,$A188+$A$11,0,1,1)) -> 2019-06-04 | C188: =IF(A188>$A$8,"",OFFSET(InputPriceData!G$15,CalculationsAndCharts!$A188+$A$11,IF($C$5,8,0),1,1)) -> 77231900 | D188: =IF(A188>$A$8,"",OFFSET(InputPriceData!C$15,CalculationsAndCharts!$A188+$A$11,IF($C$5,8,0),1,1)) -> 277.119995 | E188: =IF(A188>$A$8,"",OFFSET(InputPriceData!D$15,CalculationsAndCharts!$A188+$A$11,IF($C$5,8,0),1,1)) -> 280.679993 | F188: =IF(A188>$A$8,"",OFFSET(InputPriceData!E$15,CalculationsAndCharts!$A188+$A$11,IF($C$5,8,0),1,1)) -> 276.619995 | G188: =IF(A188>$A$8,"",OFFSET(InputPriceData!F$15,CalculationsAndCharts!$A188+$A$11,IF($C$5,8,0),1,1)) -> 280.529999 | H188: 0.08688560282 | I188: =IF($A188>$A$8-$A$19-2,"",BPTrunc(G188,$A$17,$A$18,$A$19)) -> -0.7142746597 | K188: -0.2560287132 | L188: 0.7773423301 | N188: -0.314786495 | O188: -3.970861463 | T188: 0.08688560282 | U188: -0.7142746597 | AP188: 77231900
A189: 157 | B189: =IF(A189>$A$8,"",OFFSET(InputPriceData!B$15,$A189+$A$11,0,1,1)) -> 2019-06-03 | C189: =IF(A189>$A$8,"",OFFSET(InputPriceData!G$15,CalculationsAndCharts!$A189+$A$11,IF($C$5,8,0),1,1)) -> 96428000 | D189: =IF(A189>$A$8,"",OFFSET(InputPriceData!C$15,CalculationsAndCharts!$A189+$A$11,IF($C$5,8,0),1,1)) -> 275.309998 | E189: =IF(A189>$A$8,"",OFFSET(InputPriceData!D$15,CalculationsAndCharts!$A189+$A$11,IF($C$5,8,0),1,1)) -> 276.549988 | F189: =IF(A189>$A$8,"",OFFSET(InputPriceData!E$15,CalculationsAndCharts!$A189+$A$11,IF($C$5,8,0),1,1)) -> 273.089996 | G189: =IF(A189>$A$8,"",OFFSET(InputPriceData!F$15,CalculationsAndCharts!$A189+$A$11,IF($C$5,8,0),1,1)) -> 274.570007 | H189: 0.2005126158 | I189: =IF($A189>$A$8-$A$19-2,"",BPTrunc(G189,$A$17,$A$18,$A$19)) -> -0.732450923 | K189: -0.6640878725 | L189: 1.867163567 | N189: -0.8099100375 | O189: -3.5847955 | T189: 0.2005126158 | U189: -0.732450923 | AQ189: 96428000
A190: 158 | B190: =IF(A190>$A$8,"",OFFSET(InputPriceData!B$15,$A190+$A$11,0,1,1)) -> 2019-05-31 | C190: =IF(A190>$A$8,"",OFFSET(InputPriceData!G$15,CalculationsAndCharts!$A190+$A$11,IF($C$5,8,0),1,1)) -> 86862800 | D190: =IF(A190>$A$8,"",OFFSET(InputPriceData!C$15,CalculationsAndCharts!$A190+$A$11,IF($C$5,8,0),1,1)) -> 276.200012 | E190: =IF(A190>$A$8,"",OFFSET(InputPriceData!D$15,CalculationsAndCharts!$A190+$A$11,IF($C$5,8,0),1,1)) -> 277.119995 | F190: =IF(A190>$A$8,"",OFFSET(InputPriceData!E$15,CalculationsAndCharts!$A190+$A$11,IF($C$5,8,0),1,1)) -> 275.23999 | G190: =IF(A190>$A$8,"",OFFSET(InputPriceData!F$15,CalculationsAndCharts!$A190+$A$11,IF($C$5,8,0),1,1)) -> 275.269989 | H190: 0.381775396 | I190: =IF($A190>$A$8-$A$19-2,"",BPTrunc(G190,$A$17,$A$18,$A$19)) -> -0.6448362515 | K190: -0.1439855828 | L190: 2.434637959 | N190: -0.7420406509 | O190: -3.126976858 | T190: 0.381775396 | U190: -0.6448362515 | AQ190: 86862800
A191: 159 | B191: =IF(A191>$A$8,"",OFFSET(InputPriceData!B$15,$A191+$A$11,0,1,1)) -> 2019-05-30 | C191: =IF(A191>$A$8,"",OFFSET(InputPriceData!G$15,CalculationsAndCharts!$A191+$A$11,IF($C$5,8,0),1,1)) -> 62523800 | D191: =IF(A191>$A$8,"",OFFSET(InputPriceData!C$15,CalculationsAndCharts!$A191+$A$11,IF($C$5,8,0),1,1)) -> 279.109985 | E191: =IF(A191>$A$8,"",OFFSET(InputPriceData!D$15,CalculationsAndCharts!$A191+$A$11,IF($C$5,8,0),1,1)) -> 280.040009 | F191: =IF(A191>$A$8,"",OFFSET(InputPriceData!E$15,CalculationsAndCharts!$A191+$A$11,IF($C$5,8,0),1,1)) -> 277.809998 | G191: =IF(A191>$A$8,"",OFFSET(InputPriceData!F$15,CalculationsAndCharts!$A191+$A$11,IF($C$5,8,0),1,1)) -> 279.029999 | H191: 0.4596754424 | I191: =IF($A191>$A$8-$A$19-2,"",BPTrunc(G191,$A$17,$A$18,$A$19)) -> -0.5502527027 | K191: 0.2103975985 | L191: 2.547655056 | N191: -1.039119569 | O191: -2.262396647 | T191: 0.4596754424 | U191: -0.5502527027 | AQ191: 62523800
A192: 160 | B192: =IF(A192>$A$8,"",OFFSET(InputPriceData!B$15,$A192+$A$11,0,1,1)) -> 2019-05-29 | C192: =IF(A192>$A$8,"",OFFSET(InputPriceData!G$15,CalculationsAndCharts!$A192+$A$11,IF($C$5,8,0),1,1)) -> 104972900 | D192: =IF(A192>$A$8,"",OFFSET(InputPriceData!C$15,CalculationsAndCharts!$A192+$A$11,IF($C$5,8,0),1,1)) -> 278.910004 | E192: =IF(A192>$A$8,"",OFFSET(InputPriceData!D$15,CalculationsAndCharts!$A192+$A$11,IF($C$5,8,0),1,1)) -> 279.359985 | F192: =IF(A192>$A$8,"",OFFSET(InputPriceData!E$15,CalculationsAndCharts!$A192+$A$11,IF($C$5,8,0),1,1)) -> 276.709991 | G192: =IF(A192>$A$8,"",OFFSET(InputPriceData!F$15,CalculationsAndCharts!$A192+$A$11,IF($C$5,8,0),1,1)) -> 278.269989 | H192: 0.4464677567 | I192: =IF($A192>$A$8-$A$19-2,"",BPTrunc(G192,$A$17,$A$18,$A$19)) -> -0.3871501199 | K192: 0.2770755222 | L192: 2.401731018 | N192: -1.541291246 | O192: -0.7816094731 | T192: 0.4464677567 | U192: -0.3871501199 | AQ192: 104972900
A193: 161 | B193: =IF(A193>$A$8,"",OFFSET(InputPriceData!B$15,$A193+$A$11,0,1,1)) -> 2019-05-28 | C193: =IF(A193>$A$8,"",OFFSET(InputPriceData!G$15,CalculationsAndCharts!$A193+$A$11,IF($C$5,8,0),1,1)) -> 70029400 | D193: =IF(A193>$A$8,"",OFFSET(InputPriceData!C$15,CalculationsAndCharts!$A193+$A$11,IF($C$5,8,0),1,1)) -> 283.089996 | E193: =IF(A193>$A$8,"",OFFSET(InputPriceData!D$15,CalculationsAndCharts!$A193+$A$11,IF($C$5,8,0),1,1)) -> 284.149994 | F193: =IF(A193>$A$8,"",OFFSET(InputPriceData!E$15,CalculationsAndCharts!$A193+$A$11,IF($C$5,8,0),1,1)) -> 280.130005 | G193: =IF(A193>$A$8,"",OFFSET(InputPriceData!F$15,CalculationsAndCharts!$A193+$A$11,IF($C$5,8,0),1,1)) -> 280.149994 | H193: 0.3705625109 | I193: =IF($A193>$A$8-$A$19-2,"",BPTrunc(G193,$A$17,$A$18,$A$19)) -> -0.1423764335 | K193: 0.6552596303 | L193: 1.568115435 | N193: -0.9163181106 | O193: 0.06205950957 | T193: 0.3705625109 | U193: -0.1423764335 | AQ193: 70029400
A194: 162 | B194: =IF(A194>$A$8,"",OFFSET(InputPriceData!B$15,$A194+$A$11,0,1,1)) -> 2019-05-24 | C194: =IF(A194>$A$8,"",OFFSET(InputPriceData!G$15,CalculationsAndCharts!$A194+$A$11,IF($C$5,8,0),1,1)) -> 55268100 | D194: =IF(A194>$A$8,"",OFFSET(InputPriceData!C$15,CalculationsAndCharts!$A194+$A$11,IF($C$5,8,0),1,1)) -> 283.73999 | E194: =IF(A194>$A$8,"",OFFSET(InputPriceData!D$15,CalculationsAndCharts!$A194+$A$11,IF($C$5,8,0),1,1)) -> 284.200012 | F194: =IF(A194>$A$8,"",OFFSET(InputPriceData!E$15,CalculationsAndCharts!$A194+$A$11,IF($C$5,8,0),1,1)) -> 282.089996 | G194: =IF(A194>$A$8,"",OFFSET(InputPriceData!F$15,CalculationsAndCharts!$A194+$A$11,IF($C$5,8,0),1,1)) -> 282.779999 | H194: 0.1834025679 | I194: =IF($A194>$A$8-$A$19-2,"",BPTrunc(G194,$A$17,$A$18,$A$19)) -> -0.01192399532 | K194: 0.7590947659 | L194: 0.3413206417 | N194: -0.3372211563 | O194: 0.2656771844 | T194: 0.1834025679 | U194: -0.01192399532 | AQ194: 55268100
A195: 163 | B195: =IF(A195>$A$8,"",OFFSET(InputPriceData!B$15,$A195+$A$11,0,1,1)) -> 2019-05-23 | C195: =IF(A195>$A$8,"",OFFSET(InputPriceData!G$15,CalculationsAndCharts!$A195+$A$11,IF($C$5,8,0),1,1)) -> 98733800 | D195: =IF(A195>$A$8,"",OFFSET(InputPriceData!C$15,CalculationsAndCharts!$A195+$A$11,IF($C$5,8,0),1,1)) -> 283.160004 | E195: =IF(A195>$A$8,"",OFFSET(InputPriceData!D$15,CalculationsAndCharts!$A195+$A$11,IF($C$5,8,0),1,1)) -> 283.209991 | F195: =IF(A195>$A$8,"",OFFSET(InputPriceData!E$15,CalculationsAndCharts!$A195+$A$11,IF($C$5,8,0),1,1)) -> 280.570007 | G195: =IF(A195>$A$8,"",OFFSET(InputPriceData!F$15,CalculationsAndCharts!$A195+$A$11,IF($C$5,8,0),1,1)) -> 282.140015 | H195: -0.05973144181 | I195: =IF($A195>$A$8-$A$19-2,"",BPTrunc(G195,$A$17,$A$18,$A$19)) -> 0.01402892312 | K195: 0.8049669537 | L195: -1.163355605 | N195: -0.2313776962 | O195: 0.3155512349 | T195: -0.05973144181 | U195: 0.01402892312 | AQ195: 98733800
A196: 164 | B196: =IF(A196>$A$8,"",OFFSET(InputPriceData!B$15,$A196+$A$11,0,1,1)) -> 2019-05-22 | C196: =IF(A196>$A$8,"",OFFSET(InputPriceData!G$15,CalculationsAndCharts!$A196+$A$11,IF($C$5,8,0),1,1)) -> 49482500 | D196: =IF(A196>$A$8,"",OFFSET(InputPriceData!C$15,CalculationsAndCharts!$A196+$A$11,IF($C$5,8,0),1,1)) -> 285.450012 | E196: =IF(A196>$A$8,"",OFFSET(InputPriceData!D$15,CalculationsAndCharts!$A196+$A$11,IF($C$5,8,0),1,1)) -> 286.690002 | F196: =IF(A196>$A$8,"",OFFSET(InputPriceData!E$15,CalculationsAndCharts!$A196+$A$11,IF($C$5,8,0),1,1)) -> 285.100006 | G196: =IF(A196>$A$8,"",OFFSET(InputPriceData!F$15,CalculationsAndCharts!$A196+$A$11,IF($C$5,8,0),1,1)) -> 285.630005 | H196: -0.3501720537 | I196: =IF($A196>$A$8-$A$19-2,"",BPTrunc(G196,$A$17,$A$18,$A$19)) -> 0.001402669763 | K196: 0.9255955322 | L196: -3.026627855 | N196: 0.1723792001 | O196: -0.1639631816 | T196: -0.3501720537 | U196: 0.001402669763 | AP196: 49482500
A197: 165 | B197: =IF(A197>$A$8,"",OFFSET(InputPriceData!B$15,$A197+$A$11,0,1,1)) -> 2019-05-21 | C197: =IF(A197>$A$8,"",OFFSET(InputPriceData!G$15,CalculationsAndCharts!$A197+$A$11,IF($C$5,8,0),1,1)) -> 46847100 | D197: =IF(A197>$A$8,"",OFFSET(InputPriceData!C$15,CalculationsAndCharts!$A197+$A$11,IF($C$5,8,0),1,1)) -> 285.829987 | E197: =IF(A197>$A$8,"",OFFSET(InputPriceData!D$15,CalculationsAndCharts!$A197+$A$11,IF($C$5,8,0),1,1)) -> 286.929993 | F197: =IF(A197>$A$8,"",OFFSET(InputPriceData!E$15,CalculationsAndCharts!$A197+$A$11,IF($C$5,8,0),1,1)) -> 285.549988 | G197: =IF(A197>$A$8,"",OFFSET(InputPriceData!F$15,CalculationsAndCharts!$A197+$A$11,IF($C$5,8,0),1,1)) -> 286.51001 | H197: -0.6848041797 | I197: =IF($A197>$A$8-$A$19-2,"",BPTrunc(G197,$A$17,$A$18,$A$19)) -> -0.09950486128 | K197: 0.4107510223 | L197: -4.519576101 | N197: 0.2891967027 | O197: -0.8862258703 | T197: -0.6848041797 | U197: -0.09950486128 | AP197: 46847100
A198: 166 | B198: =IF(A198>$A$8,"",OFFSET(InputPriceData!B$15,$A198+$A$11,0,1,1)) -> 2019-05-20 | C198: =IF(A198>$A$8,"",OFFSET(InputPriceData!G$15,CalculationsAndCharts!$A198+$A$11,IF($C$5,8,0),1,1)) -> 62877600 | D198: =IF(A198>$A$8,"",OFFSET(InputPriceData!C$15,CalculationsAndCharts!$A198+$A$11,IF($C$5,8,0),1,1)) -> 284.059998 | E198: =IF(A198>$A$8,"",OFFSET(InputPriceData!D$15,CalculationsAndCharts!$A198+$A$11,IF($C$5,8,0),1,1)) -> 285.959991 | F198: =IF(A198>$A$8,"",OFFSET(InputPriceData!E$15,CalculationsAndCharts!$A198+$A$11,IF($C$5,8,0),1,1)) -> 283.119995 | G198: =IF(A198>$A$8,"",OFFSET(InputPriceData!F$15,CalculationsAndCharts!$A198+$A$11,IF($C$5,8,0),1,1)) -> 283.950012 | H198: -0.9352018446 | I198: =IF($A198>$A$8-$A$19-2,"",BPTrunc(G198,$A$17,$A$18,$A$19)) -> -0.23924163 | K198: -0.06755516074 | L198: -5.543655907 | N198: 0.5311958556 | O198: -1.966645635 | T198: -0.9352018446 | U198: -0.23924163 | AQ198: 62877600
A199: 167 | B199: =IF(A199>$A$8,"",OFFSET(InputPriceData!B$15,$A199+$A$11,0,1,1)) -> 2019-05-17 | C199: =IF(A199>$A$8,"",OFFSET(InputPriceData!G$15,CalculationsAndCharts!$A199+$A$11,IF($C$5,8,0),1,1)) -> 100353000 | D199: =IF(A199>$A$8,"",OFFSET(InputPriceData!C$15,CalculationsAndCharts!$A199+$A$11,IF($C$5,8,0),1,1)) -> 285.140015 | E199: =IF(A199>$A$8,"",OFFSET(InputPriceData!D$15,CalculationsAndCharts!$A199+$A$11,IF($C$5,8,0),1,1)) -> 288.600006 | F199: =IF(A199>$A$8,"",OFFSET(InputPriceData!E$15,CalculationsAndCharts!$A199+$A$11,IF($C$5,8,0),1,1)) -> 285.119995 | G199: =IF(A199>$A$8,"",OFFSET(InputPriceData!F$15,CalculationsAndCharts!$A199+$A$11,IF($C$5,8,0),1,1)) -> 285.839996 | H199: -1.08989367 | I199: =IF($A199>$A$8-$A$19-2,"",BPTrunc(G199,$A$17,$A$18,$A$19)) -> -0.4309085425 | K199: -0.1641865849 | L199: -6.375175437 | N199: 0.5145579395 | O199: -3.100009195 | T199: -1.08989367 | U199: -0.4309085425 | AP199: 100353000
A200: 168 | B200: =IF(A200>$A$8,"",OFFSET(InputPriceData!B$15,$A200+$A$11,0,1,1)) -> 2019-05-16 | C200: =IF(A200>$A$8,"",OFFSET(InputPriceData!G$15,CalculationsAndCharts!$A200+$A$11,IF($C$5,8,0),1,1)) -> 76749600 | D200: =IF(A200>$A$8,"",OFFSET(InputPriceData!C$15,CalculationsAndCharts!$A200+$A$11,IF($C$5,8,0),1,1)) -> 285.839996 | E200: =IF(A200>$A$8,"",OFFSET(InputPriceData!D$15,CalculationsAndCharts!$A200+$A$11,IF($C$5,8,0),1,1)) -> 289.209991 | F200: =IF(A200>$A$8,"",OFFSET(InputPriceData!E$15,CalculationsAndCharts!$A200+$A$11,IF($C$5,8,0),1,1)) -> 285.76001 | G200: =IF(A200>$A$8,"",OFFSET(InputPriceData!F$15,CalculationsAndCharts!$A200+$A$11,IF($C$5,8,0),1,1)) -> 287.700012 | H200: -1.200984058 | I200: =IF($A200>$A$8-$A$19-2,"",BPTrunc(G200,$A$17,$A$18,$A$19)) -> -0.623215788 | K200: -0.690269419 | L200: -6.515634929 | N200: -0.05197571287 | O200: -3.687319015 | T200: -1.200984058 | U200: -0.623215788 | AP200: 76749600
A201: 169 | B201: =IF(A201>$A$8,"",OFFSET(InputPriceData!B$15,$A201+$A$11,0,1,1)) -> 2019-05-15 | C201: =IF(A201>$A$8,"",OFFSET(InputPriceData!G$15,CalculationsAndCharts!$A201+$A$11,IF($C$5,8,0),1,1)) -> 73956400 | D201: =IF(A201>$A$8,"",OFFSET(InputPriceData!C$15,CalculationsAndCharts!$A201+$A$11,IF($C$5,8,0),1,1)) -> 281.589996 | E201: =IF(A201>$A$8,"",OFFSET(InputPriceData!D$15,CalculationsAndCharts!$A201+$A$11,IF($C$5,8,0),1,1)) -> 285.769989 | F201: =IF(A201>$A$8,"",OFFSET(InputPriceData!E$15,CalculationsAndCharts!$A201+$A$11,IF($C$5,8,0),1,1)) -> 281.359985 | G201: =IF(A201>$A$8,"",OFFSET(InputPriceData!F$15,CalculationsAndCharts!$A201+$A$11,IF($C$5,8,0),1,1)) -> 285.059998 | H201: -1.183734744 | I201: =IF($A201>$A$8-$A$19-2,"",BPTrunc(G201,$A$17,$A$18,$A$19)) -> -0.7177788038 | K201: -1.453293385 | L201: -5.649115078 | N201: -0.5149736672 | O201: -3.791699156 | T201: -1.183734744 | U201: -0.7177788038 | AP201: 73956400
A202: 170 | B202: =IF(A202>$A$8,"",OFFSET(InputPriceData!B$15,$A202+$A$11,0,1,1)) -> 2019-05-14 | C202: =IF(A202>$A$8,"",OFFSET(InputPriceData!G$15,CalculationsAndCharts!$A202+$A$11,IF($C$5,8,0),1,1)) -> 77003200 | D202: =IF(A202>$A$8,"",OFFSET(InputPriceData!C$15,CalculationsAndCharts!$A202+$A$11,IF($C$5,8,0),1,1)) -> 281.98999 | E202: =IF(A202>$A$8,"",OFFSET(InputPriceData!D$15,CalculationsAndCharts!$A202+$A$11,IF($C$5,8,0),1,1)) -> 285.100006 | F202: =IF(A202>$A$8,"",OFFSET(InputPriceData!E$15,CalculationsAndCharts!$A202+$A$11,IF($C$5,8,0),1,1)) -> 281.850006 | G202: =IF(A202>$A$8,"",OFFSET(InputPriceData!F$15,CalculationsAndCharts!$A202+$A$11,IF($C$5,8,0),1,1)) -> 283.399994 | H202: -0.9795851326 | I202: =IF($A202>$A$8-$A$19-2,"",BPTrunc(G202,$A$17,$A$18,$A$19)) -> -0.7139726056 | K202: -2.130307294 | L202: -3.747203501 | N202: -1.025623617 | O202: -3.258212016 | T202: -0.9795851326 | U202: -0.7139726056 | AP202: 77003200
... 1080 more rows

Sheet Follow
A1: Stocks and Indexes I wish to follow
A3: To ease following a stock, enter a Yahoo Finance acceptable symbol in column "A" anywhere below cell "A9".
A4: Thereafter you may doubleclick the cell containing a symbol of interest to initiate data retrieval and charting for that symbol.
A7: Symbol
A8: To | B8: Description | C8: Last Trade as of most recent check
A9: Follow | C9: Date | D9: Time | E9: Open | F9: High | G9: Low | H9: Close | I9: Volume | J9: Change | K9: Retrieved @
A10: A | B10: Agilent Technologies, Inc. (A) -NYSE (Daily) | C10: 2020-03-09 | D10: 16:04:00 | E10: 72.589996 | F10: 74.190002 | G10: 70.169998 | H10: 70.75 | I10: 4591093 | J10: -7.809998 | K10: 2020-03-09T16:59:21
A11: AA | B11: Alcoa Corporation (AA) -NYSE (Daily) | C11: 2020-01-31 | D11: 16:04:00 | E11: 14.01 | F11: 14.24 | G11: 13.62 | H11: 13.95 | I11: 9931500 | J11: -0.34 | K11: 2020-02-02T15:07:13
A12: AAL | B12: American Airlines Group Inc. (AAL) -NasdaqGS (Daily) | C12: 2020-03-09 | D12: 16:00:00 | E12: 14.87 | F12: 15.79 | G12: 14.46 | H12: 14.75 | I12: 41078614 | J12: -1.22 | K12: 2020-03-09T17:00:15
A13: AAPL | B13: Apple Inc. (AAPL) -NasdaqGS (Daily) | C13: 2020-03-13 | D13: 11:43:00 | E13: 264.890015 | F13: 265.540009 | G13: 253.460007 | H13: 255.244995 | I13: 37261902 | J13: 7.014999 | K13: 2020-03-13T11:43:16
A14: ADM | B14: Archer-Daniels-Midland Company (ADM) -NYSE (Weekly) | C14: 2018-07-13 | D14: 16:00:00 | E14: 47.5 | F14: 47.84 | G14: 47.169998 | H14: 47.57 | I14: 2402809 | J14: 0
A15: ADBE | B15: Adobe Inc. (ADBE) -NasdaqGS (Daily) | C15: 2020-03-13 | D15: 11:55:00 | E15: 312.880005 | F15: 322.540009 | G15: 298.01001 | H15: 302.244995 | I15: 3498916 | J15: 17.244995 | K15: 2020-03-13T11:55:37
A16: ALGN | B16: Align Technology, Inc. (ALGN) -NasdaqGS (Daily) | C16: 2020-01-30 | D16: 16:00:00 | E16: 248.740005 | F16: 264.450012 | G16: 248.350006 | H16: 262.890015 | I16: 1833160 | J16: 1.290009
A17: AMC | B17: AMC Entertainment Holdings, Inc. (AMC) -NYSE (Weekly) | C17: 2018-07-13 | D17: 16:02:00 | E17: 17.049999 | F17: 17.15 | G17: 16.525 | H17: 17.049999 | I17: 1442776 | J17: 0
A18: BSX | B18: Boston Scientific Corporation C (BSX) -NYQ (Daily) | C18: 2015-03-13 | D18: 16:01:00 | E18: 16.84 | F18: 16.91 | G18: 16.44 | H18: 16.61 | I18: 7262460 | J18: -0.28
A19: CASY | B19: Casey's General Stores, Inc. (CASY) -NasdaqGS (Daily) | C19: 2019-04-10 | D19: 16:00:00 | E19: 128.979996 | F19: 130.330002 | G19: 128.779999 | H19: 130.179993 | I19: 351300 | J19: 1.489991
A20: CAT | B20: Caterpillar Inc. (CAT) -NYSE (Daily) | C20: 2020-03-13 | D20: 11:48:00 | E20: 98.389999 | F20: 99.910004 | G20: 90.150101 | H20: 90.269997 | I20: 3568294 | J20: -1.990005 | K20: 2020-03-13T11:48:53
A21: CSCO | B21: Cisco Systems, In (CSCO) -NasdaqNM (Daily) | C21: 2015-02-19 | D21: 16:00:00 | E21: 29.32 | F21: 29.39 | G21: 29.13 | H21: 29.31 | I21: 21469012 | J21: -0.18
A22: CVS | B22: CVS Health Corporation (CVS) -NYSE (Daily) | C22: 2020-03-09 | D22: 16:07:00 | E22: 59.75 | F22: 63 | G22: 59.599998 | H22: 61.299999 | I22: 13065424 | J22: -2.850003 | K22: 2020-03-09T17:51:54
A23: DIS | B23: The Walt Disney Company (DIS) -NYSE (Daily) | C23: 2020-03-09 | D23: 16:07:00 | E23: 108.690002 | F23: 110.43 | G23: 104.279999 | H23: 104.349998 | I23: 26101127 | J23: -10.919999 | K23: 2020-03-09T16:59:51
A24: F | B24: Ford Motor Company (F) -NYSE (Daily) | C24: 2020-01-31 | D24: 16:03:00 | E24: 8.78 | F24: 8.84 | G24: 8.74 | H24: 8.82 | I24: 59781000 | J24: -0.02 | K24: 2020-02-02T15:09:03
A25: FAS | B25: Direxion Daily Financial Bull 3X ETF (FAS) -NYSEArca (Daily) | C25: 2017-10-13 | D25: 16:00:00 | E25: 58.099998 | F25: 58.939999 | G25: 57.43 | H25: 58.450001 | I25: 1709300 | J25: 0.07
A26: FB | B26: Facebook, Inc. (FB) -NasdaqGS (Daily) | C26: 2020-02-14 | D26: 16:00:00 | E26: 214 | F26: 214.929993 | G26: 212.649994 | H26: 214.179993 | I26: 10727400 | J26: 1.039994 | K26: 2020-02-15T17:19:34
A27: GSK | B27: GlaxoSmithKline plc (GSK) -NYSE (Daily) | C27: 2019-08-14 | D27: 11:15:00 | E27: 40.060001 | F27: 40.209999 | G27: 39.895 | H27: 39.93 | I27: 941699 | J27: -0.310002
A28: GDX | B28: VanEck Vectors Gold Miners ETF (GDX) -NYSEArca (Daily) | C28: 2020-01-31 | D28: 16:00:00 | E28: 28.799999 | F28: 29.24 | G28: 28.76 | H28: 28.99 | I28: 41946000 | J28: 0.26 | K28: 2020-02-02T15:11:17
A29: GOOG | B29: Alphabet Inc. (GOOG) -NasdaqGS (Daily) | C29: 2020-02-14 | D29: 16:00:00 | E29: 1515.599976 | F29: 1520.73999 | G29: 1507.339966 | H29: 1520.73999 | I29: 1196700 | J29: 6.079956 | K29: 2020-02-15T17:20:39
A30: HD | B30: The Home Depot, Inc. (HD) -NYSE (Daily) | C30: 2020-03-13 | D30: 11:54:00 | E30: 200.449997 | F30: 201.179993 | G30: 192.270096 | H30: 193.449997 | I30: 3274582 | J30: 2.860001 | K30: 2020-03-13T11:54:29
A31: HSY | B31: The Hershey Company (HSY) -NYSE (Daily) | C31: 2019-04-10 | D31: 16:02:00 | E31: 116.099998 | F31: 116.43 | G31: 115.75 | H31: 116.309998 | I31: 574600 | J31: 0.290001
A32: HTLD | B32: Heartland Express, Inc. (HTLD) -NasdaqGS (Daily) | C32: 2020-03-09 | D32: 16:00:00 | E32: 17.33 | F32: 17.690001 | G32: 16.82 | H32: 16.879999 | I32: 284762 | J32: -1.280001 | K32: 2020-03-09T17:00:56
A33: IBM | B33: International Business Machines Corporation (IBM) -NYSE (Daily) | C33: 2019-08-14 | D33: 11:24:00 | E33: 133.910004 | F33: 134.160004 | G33: 132.130005 | H33: 132.460098 | I33: 1281528 | J33: -1.659897
A34: INTC | B34: Intel Corporation (INTC) -NasdaqGS (Daily) | C34: 2020-02-14 | D34: 16:00:00 | E34: 67.519997 | F34: 67.860001 | G34: 66.82 | H34: 67.269997 | I34: 13402800 | J34: -0.170005 | K34: 2020-02-15T17:21:41
A35: JAH | B35: Jarden Corporation Common Stock (JAH) -NYQ (Daily) | C35: 2016-01-08 | D35: 16:02:00 | E35: 53.82 | F35: 53.88 | G35: 52.65 | H35: 52.73 | I35: 4519480 | J35: -0.81
A36: JNJ | B36: Johnson & Johnson (JNJ) -NYSE (Daily) | C36: 2019-08-14 | D36: 10:33:00 | E36: 132.529999 | F36: 132.539993 | G36: 131.419998 | H36: 131.759995 | I36: 870520 | J36: -0.169998
A37: KO | B37: The Coca-Cola Company (KO) -NYSE (Daily) | C37: 2020-03-09 | D37: 16:07:00 | E37: 52.049999 | F37: 53.580002 | G37: 51.474998 | H37: 51.860001 | I37: 27771279 | J37: -3.399997 | K37: 2020-03-09T17:05:43
A38: LOW | B38: Lowe's Companies, Inc. (LOW) -NYSE (Daily) | C38: 2020-03-09 | D38: 16:03:00 | E38: 97.82 | F38: 99.82 | G38: 93.150101 | H38: 94.220001 | I38: 8167579 | J38: -11.089997 | K38: 2020-03-09T16:57:19
A39: LMT | B39: Lockheed Martin Corporation (LMT) -NYSE (Daily) | C39: 2020-03-09 | D39: 16:06:00 | E39: 359.980011 | F39: 369.470001 | G39: 351.269989 | H39: 352.029999 | I39: 3067426 | J39: -30.440002 | K39: 2020-03-09T17:06:13
A40: MCD | B40: McDonald's Corporation (MCD) -NYSE (Daily) | C40: 2020-03-09 | D40: 16:01:00 | E40: 187.669998 | F40: 194.470001 | G40: 184.100006 | H40: 186.860001 | I40: 7601343 | J40: -12 | K40: 2020-03-09T16:58:16
A41: MDT | B41: Medtronic plc (MDT) -NYSE (Daily) | C41: 2020-03-09 | D41: 16:07:00 | E41: 94.019997 | F41: 95.470001 | G41: 91.709999 | H41: 92.400002 | I41: 9000931 | J41: -6.659996 | K41: 2020-03-09T17:48:45
A42: MGM | B42: MGM Resorts International (MGM) -NYSE (Daily) | C42: 2020-03-09 | D42: 16:02:00 | E42: 18.6 | F42: 19.58 | G42: 17.530001 | H42: 17.879999 | I42: 26050818 | J42: -2.51 | K42: 2020-03-09T17:13:53
A43: MO | B43: Altria Group, Inc. (MO) -NYSE (Daily) | C43: 2020-01-31 | D43: 16:05:00 | E43: 48.25 | F43: 48.799999 | G43: 47.240002 | H43: 47.529999 | I43: 11790800 | J43: -0.470001 | K43: 2020-02-02T15:20:55
A44: MSFT | B44: Microsoft Corporation (MSFT) -NasdaqGS (Daily) | C44: 2020-03-09 | D44: 16:00:00 | E44: 151 | F44: 157.75 | G44: 150 | H44: 150.619995 | I44: 69167627 | J44: -10.950012 | K44: 2020-03-09T17:06:41
A45: NFLX | B45: Netflix, Inc. (NFLX) -NasdaqGS (Daily) | C45: 2020-03-09 | D45: 16:00:00 | E45: 343.859985 | F45: 357.470001 | G45: 341.720886 | H45: 346.48999 | I45: 6746188 | J45: -22.480011 | K45: 2020-03-09T17:23:37
A46: NUGT | B46: Direxion Daily Gold Miners Index Bull 3X Shares (NUGT) -NYSEArca (Daily) | C46: 2020-01-31 | D46: 16:00:00 | E46: 32.439999 | F46: 33.830002 | G46: 32.240002 | H46: 33.02 | I46: 11325200 | J46: 0.84 | K46: 2020-02-02T15:21:51
A47: NVS | B47: Novartis AG (NVS) -NYSE (Daily) | C47: 2020-03-06 | D47: 16:02:00 | E47: 84.330002 | F47: 85.830002 | G47: 83.970001 | H47: 85.720001 | I47: 5624700 | J47: -0.089997 | K47: 2020-03-08T16:56:35
A48: NVDA | B48: NVIDIA Corporation (NVDA) -NasdaqGS (Daily) | C48: 2020-05-14 | D48: 16:00:00 | E48: 313.665009 | F48: 321.440002 | G48: 307.5 | H48: 321.220001 | I48: 14504126 | J48: 10.019989 | K48: 2020-05-14T17:54:58
A49: PRU | B49: Prudential Financial, Inc. (PRU) -NYSE (Daily) | C49: 2020-03-09 | D49: 16:02:00 | E49: 63.75 | F49: 65.830002 | G49: 57.375 | H49: 58.240002 | I49: 7614493 | J49: -11.569996 | K49: 2020-03-09T17:11:43
A50: PSEC | B50: Prospect Capital Corporation (PSEC) -NasdaqGS (Daily) | C50: 2020-02-14 | D50: 16:00:00 | E50: 6.53 | F50: 6.56 | G50: 6.51 | H50: 6.52 | I50: 1235500 | J50: -0.04 | K50: 2020-02-15T14:43:16
A51: RPM | B51: RPM International Inc. (RPM) -NYSE (Daily) | C51: 2020-03-09 | D51: 16:02:00 | E51: 64.470001 | F51: 66.730003 | G51: 63.5 | H51: 65.290001 | I51: 1115882 | J51: -2.919998 | K51: 2020-03-09T17:10:08
A52: RSP | B52: Invesco S&P 500 Equal Weight ETF (RSP) -NYSEArca (Daily) | C52: 2020-01-31 | D52: 16:00:00 | E52: 115.279999 | F52: 115.32 | G52: 113.230003 | H52: 113.540001 | I52: 747600 | J52: -2.309997 | K52: 2020-02-02T15:28:52
A53: SPR | B53: Spirit AeroSystems Holdings, Inc. (SPR) -NYSE (Daily) | C53: 2020-03-09 | D53: 16:06:00 | E53: 43.700001 | F53: 43.880001 | G53: 41.5 | H53: 42.139999 | I53: 2091368 | J53: -5.23 | K53: 2020-03-09T17:09:37
A54: SWKS | B54: Skyworks Solutions, Inc. (SWKS) -NasdaqGS (Daily) | C54: 2020-01-31 | D54: 16:00:00 | E54: 115.5 | F54: 115.739998 | G54: 112.720001 | H54: 113.150002 | I54: 2444600 | J54: -3.080001 | K54: 2020-02-02T15:26:46
A55: TOL | B55: Toll Brothers, Inc. (TOL) -NYSE (Daily) | C55: 2020-03-09 | D55: 16:07:00 | E55: 34.759998 | F55: 35.314999 | G55: 32.060001 | H55: 34.110001 | I55: 3127968 | J55: -2.86 | K55: 2020-03-09T17:12:09
A56: TSLA | B56: Tesla, Inc. (TSLA) -NasdaqGS (Daily) | C56: 2020-03-13 | D56: 12:08:00 | E56: 595 | F56: 607.570007 | G56: 502.01001 | H56: 510 | I56: 12224537 | J56: -50.549988 | K56: 2020-03-13T12:08:39
A57: UNP | B57: Union Pacific Corporation (UNP) -NYSE (Daily) | C57: 2020-03-09 | D57: 16:07:00 | E57: 145.199997 | F57: 145.580002 | G57: 133.179993 | H57: 135.839996 | I57: 9380024 | J57: -20.25 | K57: 2020-03-09T17:11:21
A58: VZ | B58: Verizon Communications Inc. (VZ) -NYSE (Daily) | C58: 2019-04-10 | D58: 16:00:00 | E58: 58.400002 | F58: 58.700001 | G58: 58.360001 | H58: 58.610001 | I58: 8022000 | J58: 0.209999
A59: WBA | B59: Walgreens Boots Alliance, Inc. (WBA) -NasdaqGS (Daily) | C59: 2020-01-31 | D59: 16:00:00 | E59: 51.709999 | F59: 51.919998 | G59: 50.66 | H59: 50.849998 | I59: 6532300 | J59: -1.100003 | K59: 2020-02-02T15:28:06
A60: WMT | B60: Walmart Inc. (WMT) -NYSE (Daily) | C60: 2020-03-09 | D60: 16:01:00 | E60: 113.82 | F60: 120.629997 | G60: 112.730003 | H60: 117.160004 | I60: 19567750 | J60: -0.069999 | K60: 2020-03-09T17:10:39
A62: ^AEX | B62: AEX-INDEX (^AEX) -Amsterdam (Daily) | C62: 2020-03-09 | D62: 18:05:00 | E62: 506.950012 | F62: 506.950012 | G62: 485.730011 | H62: 490.660004 | I62: 0 | J62: -40.629974 | K62: 2020-03-09T17:41:58
A63: ^AORD | B63: ALL ORDINARIES (^AORD) -ASX (Daily) | C63: 2020-03-09 | D63: 16:17:00 | E63: 6472.399902 | F63: 6287.299805 | G63: 5822.399902 | H63: 5822.399902 | I63: 0 | J63: -465.100098 | K63: 2020-03-09T17:45:59
A64: ^DJI | B64: Dow Jones Industrial Average (^DJI) -DJI (Daily) | C64: 2020-03-09 | D64: 16:59:00 | E64: 24992.35938 | F64: 24992.35938 | G64: 23706.07031 | H64: 23851.01953 | I64: 750431083 | J64: -2013.759766 | K64: 2020-03-09T17:37:29
A65: ^FTSE | B65: FTSE 100 (^FTSE) -FTSE Index (Daily) | C65: 2020-03-09 | D65: 16:45:00 | E65: 6462.549805 | F65: 6462.549805 | G65: 5891.560059 | H65: 5965.77002 | I65: 0 | J65: -496.830078 | K65: 2020-03-09T17:43:57
A66: ^GSPC | B66: S&P 500 (^GSPC) -SNP (Daily) | C66: 2019-09-13 | D66: 16:56:00 | E66: 3012.209961 | F66: 3017.330078 | G66: 3002.899902 | H66: 3007.389893 | I66: 3520060000 | J66: -2.180175
A67: ^HSI | B67: HANG SENG INDEX (^HSI) -HKSE (Daily) | C67: 2020-03-09 | D67: 16:08:00 | E67: 25134.01953 | F67: 25321.2793 | G67: 24948.38086 | H67: 25040.46094 | I67: 0 | J67: -1106.208984 | K67: 2020-03-09T17:39:06
A68: ^MID | B68: S&P MID CAP 400 INDEX (^MID) -NYSE (Daily) | C68: 2020-02-14 | D68: 16:06:00 | E68: 2099.459961 | F68: 2100.51001 | G68: 2089.610107 | H68: 2096.610107 | I68: 0 | J68: -0.679932 | K68: 2020-02-14T21:04:41
A69: ^NDX | B69: NASDAQ 100 (^NDX) -Nasdaq GIDS (Daily) | C69: 2020-02-14 | D69: 16:51:00 | E69: 9613.881836 | F69: 9634.750977 | G69: 9583.083008 | H69: 9623.580078 | I69: 469910279 | J69: 27.879883 | K69: 2020-02-14T16:52:02
A70: ^NYA | B70: NYSE COMPOSITE (DJ) (^NYA) -NYSE (Daily) | C70: 2020-03-13 | D70: 13:53:00 | E70: 10445.44043 | F70: 10642.39844 | G70: 10060.35352 | H70: 10464.54883 | I70: 0 | J70: 403.789062 | K70: 2020-03-13T14:08:31
A71: ^OEX | B71: S&P 100 INDEX (^OEX) -Chicago Options (Daily) | C71: 2019-09-13 | D71: 16:56:00 | E71: 1332.27002 | F71: 1334.420044 | G71: 1328.73999 | H71: 1330.969971 | I71: 3520060000 | J71: -1.010009
A72: ^RUT | B72: Russell 2000 (^RUT) -Chicago Options (Daily) | C72: 2019-09-13 | D72: 16:30:00 | E72: 1579.22998 | F72: 1589.449951 | G72: 1577.109985 | H72: 1578.140015 | I72: 35200600 | J72: 3.070069
A73: ^SSEC | B73: SSE Composite Index (^SSEC) -Shanghai (Daily) | C73: 2020-03-09 | D73: 15:00:00 | E73: 3039.939453 | F73: 2989.205078 | G73: 2940.713867 | H73: 2943.290771 | I73: 2801367936 | J73: -388.231202 | K73: 2020-03-09T17:38:09
A74: ^VIX | B74: CBOE Volatility Index (^VIX) -Chicago Options (Daily) | C74: 2020-03-09 | D74: 16:14:00 | E74: 41.939999 | F74: 62.119999 | G74: 41.939999 | H74: 54.459999 | I74: 0 | J74: 12.52 | K74: 2020-03-09T17:38:36
A75: IWM | B75: iShares Russell 2000 ETF (IWM) -NYSEArca (Daily) | C75: 2018-04-13 | D75: 16:00:00 | E75: 155.289993 | F75: 155.330002 | G75: 153.509995 | H75: 153.949997 | I75: 19710100 | J75: -0.809998
A76: QQQ | B76: Invesco QQQ Trust (QQQ) -NasdaqGM (Daily) | C76: 2019-08-12 | D76: 16:00:00 | E76: 185.339996 | F76: 185.889999 | G76: 183.5 | H76: 184.350006 | I76: 23162601 | J76: -2.139999
A77: SPY | B77: SPDR S&P 500 ETF Trust (SPY) -NYSEArca (Daily) | C77: 2020-05-15 | D77: 16:00:00 | E77: 282.369995 | F77: 286.329987 | G77: 281.339996 | H77: 286.279999 | I77: 95724021 | J77: 1.309998 | K77: 2020-05-15T19:08:43
A79: ACAD | B79: ACADIA Pharmaceut (ACAD) -NasdaqNM (Daily) | C79: 2014-07-21 | D79: 16:00:00 | E79: 20.13 | F79: 20.55 | G79: 19.8101 | H79: 20.31 | I79: 691016
A80: CLDX | B80: Celldex Therapeut (CLDX) -NasdaqNM (Daily) | C80: 2015-02-02 | D80: 16:00:00 | E80: 21.47 | F80: 21.69 | G80: 20.11 | H80: 21.02 | I80: 1570418 | J80: -0.4
A81: ICPT | B81: Intercept Pharmac (ICPT) -NasdaqNM (Daily) | C81: 2014-07-21 | D81: 16:00:00 | E81: 215.97 | F81: 218.43 | G81: 213.05 | H81: 218.14 | I81: 191276
A82: INO | B82: Inovio Pharmaceut (INO) -AMEX (Daily) | C82: 2014-07-21 | D82: 16:00:00 | E82: 10.3 | F82: 11.08 | G82: 10.1 | H82: 11.01 | I82: 1800796
A83: JCP | B83: J. C. Penney Company, Inc. (JCP) -NYSE (Daily) | C83: 2017-12-07 | D83: 16:01:00 | E83: 3.34 | F83: 3.4 | G83: 3.25 | H83: 3.27 | I83: 14485464 | J83: -0.07
A84: LCI | B84: Lannett Co Inc Co (LCI) -NYSE (Daily) | C84: 2014-07-21 | D84: 16:02:00 | E84: 38.09 | F84: 38.803 | G84: 36.5101 | H84: 37.76 | I84: 611367
A85: NPSP | B85: NPS Pharmaceutica (NPSP) -NasdaqNM (Daily) | C85: 2014-07-21 | D85: 15:59:00 | E85: 28.75 | F85: 29.43 | G85: 28.31 | H85: 29.29 | I85: 1126758
A86: PBYI | B86: Puma Biotechnolog (PBYI) -NYSE (Daily) | C86: 2014-07-21 | D86: 16:02:00 | E86: 58.27 | F86: 59.46 | G86: 57.39 | H86: 58.98 | I86: 348030
